Service Area Categorisation,Service Division Categorisation,Responsible Unit,Expenses Types,Detailed Expenses Type,Expense Code,Narrative,Payment Date,Transaction Number,Order ID,Amount,Capital/Revenue,Supplier Name,Supplier ID,Customer ID
Community Care,Community Care Team,Social Care and Health,Third Party Payments,Third Party,Personal Care.,,04/01/2021,315697,0,446,R,REDACTED PERSONAL DATA,,
Community Care,ADULT DISABILITY SERVICES,Social Care and Health,Third Party Payments,Third Party,Personal Care.,,04/01/2021,315698,0,295.47,R,REDACTED PERSONAL DATA,,
Community Care,Community Care Team,Social Care and Health,Third Party Payments,Third Party,Third party payments NOT relating to goods or services,,11/01/2021,315715,0,750.4,R,Five Oaks Care Ltd,,
Community Care,ADULT DISABILITY SERVICES,Social Care and Health,Third Party Payments,Third Party,Personal Care.,,12/01/2021,315721,0,295.47,R,REDACTED PERSONAL DATA,,
Community Care,Community Care Team,Social Care and Health,Third Party Payments,Third Party,Residential.,,13/01/2021,315728,0,"-2,290.29",R,Cantref Homes Ltd,,
Community Care,Community Care Team,Social Care and Health,Third Party Payments,Third Party,Nursing.,,14/01/2021,315733,0,"2,768.00",R,Milkwood Care Ltd T/A Castleford,,
Community Care,Community Care Team,Social Care and Health,Third Party Payments,Third Party,Third party payments NOT relating to goods or services,,18/01/2021,315745,0,"2,045.50",R,Abicare Services Ltd,,
Community Care,Community Care Team,Social Care and Health,Third Party Payments,Third Party,Third party payments NOT relating to goods or services,,18/01/2021,315747,0,"39,522.57",R,Gibraltar Care Village Limited t/a PSP Healthcare Limited,,
Community Care,Community Care Team,Social Care and Health,Third Party Payments,Third Party,Third party payments NOT relating to goods or services,,19/01/2021,315751,0,221.43,R,Accomplish Group,,
Community Care,Community Care Team,Social Care and Health,Third Party Payments,Third Party,Third party payments NOT relating to goods or services,,19/01/2021,315753,0,163.86,R,B&F Care Ltd,,
Community Care,ADULT DISABILITY SERVICES,Social Care and Health,Third Party Payments,Third Party,Personal Care.,,19/01/2021,315755,0,295.47,R,REDACTED PERSONAL DATA,,
Community Care,Community Care Team,Social Care and Health,Third Party Payments,Third Party,Third party payments NOT relating to goods or services,,19/01/2021,315762,0,390.44,R,Belmont House Res Home,,
Community Care,Community Care Team,Social Care and Health,Third Party Payments,Third Party,Third party payments NOT relating to goods or services,,19/01/2021,315763,0,"57,456.80",R,Gibraltar Care Village Limited t/a PSP Healthcare Limited,,
Community Care,Community Care Team,Social Care and Health,Third Party Payments,Third Party,Third party payments NOT relating to goods or services,,21/01/2021,315769,0,"18,091.00",R,Hallmark Healthcare Caldicot Ltd,,
Community Care,Community Care Team,Social Care and Health,Third Party Payments,Third Party,Third party payments NOT relating to goods or services,,21/01/2021,315771,0,221.43,R,Dulas Court,,
Community Care,ADULT DISABILITY SERVICES,Social Care and Health,Third Party Payments,Third Party,Personal Care.,,25/01/2021,315787,0,295.47,R,REDACTED PERSONAL DATA,,
Community Care,Community Care Team,Social Care and Health,Third Party Payments,Third Party,Personal Care.,,29/01/2021,315810,0,446,R,REDACTED PERSONAL DATA,,
"Commercial, Corporate & landlord Services",Property Services & Facilities Management,Resources,Premises,"Repairs, Alterations & Maintenance of Buildings",Building Improvements / Maintenance,,04/01/2021,10821708,760016208,535,R,Trident Water Solutions Ltd,,
"Commercial, Corporate & landlord Services",Property Services & Facilities Management,Resources,Premises,"Repairs, Alterations & Maintenance of Buildings",Building Improvements / Maintenance,,08/01/2021,10821751,90055528,50,R,Ambassador Fire & Security LTD,,
"Commercial, Corporate & landlord Services",Property Services & Facilities Management,Resources,Premises,"Repairs, Alterations & Maintenance of Buildings",Building Improvements / Maintenance,,08/01/2021,10826230,90055540,262.67,R,EFS Systems (UK) Ltd,,
"Commercial, Corporate & landlord Services",Property Services & Facilities Management,Resources,Premises,"Repairs, Alterations & Maintenance of Buildings",Building Improvements / Maintenance,,08/01/2021,10826242,90055539,133.53,R,EFS Systems (UK) Ltd,,
"Commercial, Corporate & landlord Services",Property Services & Facilities Management,Resources,Premises,"Repairs, Alterations & Maintenance of Buildings",Building Improvements / Maintenance,,08/01/2021,10826398,90055536,37,R,EFS Systems (UK) Ltd,,
"Commercial, Corporate & landlord Services",Property Services & Facilities Management,Resources,Premises,"Repairs, Alterations & Maintenance of Buildings",Building Improvements / Maintenance,,08/01/2021,10827202,90055028,357.5,R,A.J Quinn Building Contractors Ltd,,
Neighbourhood Services,Highways,Enterprise,Supplies & Services,"Equipment, Furniture and Materials",Materials & Consumables.,,08/01/2021,10829171,10107489,490,R,KPR Engineering (M&E) Ltd,,
Neighbourhood Services,Waste and Street Services,Enterprise,Supplies & Services,"Equipment, Furniture and Materials",Health & Safety Equipment.,,04/01/2021,10831162,816354,607.14,R,Cambrian Group UK,,
Finance & Business Devlopment,Attractions,MonLife Directorate,Premises,"Repairs, Alterations & Maintenance of Buildings",Security Maintenance.,,07/01/2021,10831263,10107245,228.48,R,G4S Fire and Security Systems (UK),,
Children Services,Children Services Other,Social Care and Health,Income,Customer and Client Receipts,Donations Received,,15/01/2021,10831660,0,60,R,BSM Purchase Card Transactions,,
Children Services,Supporting Children & Young People Service,Social Care and Health,Income,Customer and Client Receipts,Donations Received,,15/01/2021,10831668,0,43.76,R,BSM Purchase Card Transactions,,
Neighbourhood Services,Highways,Enterprise,Supplies & Services,"Printing, Stationery and General Office Expenses",Stationery,,15/01/2021,10831679,0,7.48,R,BSM Purchase Card Transactions,,
Children Services,Children Services Other,Social Care and Health,Supplies & Services,Services,Leaving Care Grants,,15/01/2021,10831683,0,60,R,BSM Purchase Card Transactions,,
Schools Total,School Group 2 � Pupil Capacity 144-314,MCC Schools,Supplies & Services,"Equipment, Furniture and Materials",Materials & Consumables.,,15/01/2021,10831697,0,27.6,R,BSM Purchase Card Transactions,,
Children Services,Children Services Other,Social Care and Health,Income,Customer and Client Receipts,Donations Received,,15/01/2021,10831699,0,29,R,BSM Purchase Card Transactions,,
Children Services,Children Services Other,Social Care and Health,Supplies & Services,Services,Leaving Care Grants,,15/01/2021,10831703,0,60,R,BSM Purchase Card Transactions,,
Children Services,Children Services Other,Social Care and Health,Income,Customer and Client Receipts,Donations Received,,15/01/2021,10831709,0,60,R,BSM Purchase Card Transactions,,
Children Services,Children Services Other,Social Care and Health,Supplies & Services,Services,Leaving Care Grants,,15/01/2021,10831716,0,5,R,BSM Purchase Card Transactions,,
Children Services,Supporting Children & Young People Service,Social Care and Health,Income,Customer and Client Receipts,Donations Received,,15/01/2021,10831719,0,193.77,R,BSM Purchase Card Transactions,,
Children Services,Children Services Other,Social Care and Health,Third Party Payments,Third Party,Third party payments NOT relating to goods or services,,15/01/2021,10831730,0,390,R,BSM Purchase Card Transactions,,
Schools Total,School Group 7 � Pupil Capacity 501-1800,MCC Schools,Supplies & Services,"Equipment, Furniture and Materials",Materials & Consumables.,,15/01/2021,10831734,0,57.08,R,BSM Purchase Card Transactions,,
Facilities & Fleet Management,Home to School Transport Dept,Enterprise,Supplies & Services,"Printing, Stationery and General Office Expenses",Stationery,,15/01/2021,10831736,0,9.99,R,BSM Purchase Card Transactions,,
Children Services,Children Services Teams,Social Care and Health,Supplies & Services,Services,Direct Work with Young People,,15/01/2021,10831742,0,4.77,R,BSM Purchase Card Transactions,,
Schools Total,School Group 2 � Pupil Capacity 144-314,MCC Schools,Supplies & Services,"Equipment, Furniture and Materials",Materials & Consumables.,,15/01/2021,10831751,0,43.9,R,BSM Purchase Card Transactions,,
Neighbourhood Services,Waste and Street Services,Enterprise,Supplies & Services,"Equipment, Furniture and Materials",Materials & Consumables.,,15/01/2021,10831753,0,61.05,R,BSM Purchase Card Transactions,,
Schools Total,School Group 2 � Pupil Capacity 144-314,MCC Schools,Supplies & Services,"Equipment, Furniture and Materials",Materials & Consumables.,,15/01/2021,10831754,0,228,R,BSM Purchase Card Transactions,,
Facilities & Fleet Management,Home to School Transport Dept,Enterprise,Supplies & Services,"Printing, Stationery and General Office Expenses",Stationery,,15/01/2021,10831757,0,23.75,R,BSM Purchase Card Transactions,,
Schools Total,School Group 2 � Pupil Capacity 144-314,MCC Schools,Supplies & Services,"Equipment, Furniture and Materials",Materials & Consumables.,,15/01/2021,10831759,0,61.5,R,BSM Purchase Card Transactions,,
Neighbourhood Services,Waste and Street Services,Enterprise,Supplies & Services,"Equipment, Furniture and Materials",Materials & Consumables.,,15/01/2021,10831761,0,10.07,R,BSM Purchase Card Transactions,,
Children Services,Children Services Teams,Social Care and Health,Supplies & Services,Services,Direct Work with Young People,,15/01/2021,10831763,0,50.35,R,BSM Purchase Card Transactions,,
Facilities & Fleet Management,Home to School Transport Dept,Enterprise,Supplies & Services,"Printing, Stationery and General Office Expenses",Stationery,,15/01/2021,10831765,0,243.72,R,BSM Purchase Card Transactions,,
Schools Total,School Group 7 � Pupil Capacity 501-1800,MCC Schools,Supplies & Services,"Equipment, Furniture and Materials",Materials & Consumables.,,15/01/2021,10831767,0,6.55,R,BSM Purchase Card Transactions,,
Children Services,Supporting Children & Young People Service,Social Care and Health,Income,Customer and Client Receipts,Donations Received,,15/01/2021,10831768,0,965.95,R,BSM Purchase Card Transactions,,
Children Services,Children Services Teams,Social Care and Health,Supplies & Services,Services,Supported Housing Costs,,15/01/2021,10831769,0,157.5,R,BSM Purchase Card Transactions,,
Schools Total,School Group 2 � Pupil Capacity 144-314,MCC Schools,Supplies & Services,"Equipment, Furniture and Materials",Materials & Consumables.,,15/01/2021,10831772,0,4.59,R,BSM Purchase Card Transactions,,
Schools Total,School Group 7 � Pupil Capacity 501-1800,MCC Schools,Supplies & Services,"Equipment, Furniture and Materials",Materials & Consumables.,,15/01/2021,10831775,0,72,R,BSM Purchase Card Transactions,,
Neighbourhood Services,Highways,Enterprise,Supplies & Services,"Printing, Stationery and General Office Expenses",Stationery,,15/01/2021,10831779,0,14.6,R,BSM Purchase Card Transactions,,
Children Services,Supporting Children & Young People Service,Social Care and Health,Income,Customer and Client Receipts,Donations Received,,15/01/2021,10831781,0,"2,506.50",R,BSM Purchase Card Transactions,,
Schools Total,School Group 2 � Pupil Capacity 144-314,MCC Schools,Supplies & Services,"Equipment, Furniture and Materials",Materials & Consumables.,,15/01/2021,10831783,0,11.37,R,BSM Purchase Card Transactions,,
Schools Total,School Group 7 � Pupil Capacity 501-1800,MCC Schools,Supplies & Services,"Equipment, Furniture and Materials",Health & Safety Equipment.,,15/01/2021,10831784,0,22.6,R,BSM Purchase Card Transactions,,
Neighbourhood Services,Highways,Enterprise,Supplies & Services,"Equipment, Furniture and Materials",Materials & Consumables.,,15/01/2021,10831785,0,12.08,R,BSM Purchase Card Transactions,,
Schools Total,School Group 2 � Pupil Capacity 144-314,MCC Schools,Supplies & Services,"Equipment, Furniture and Materials",Materials & Consumables.,,15/01/2021,10831787,0,3.06,R,BSM Purchase Card Transactions,,
Schools Total,School Group 2 � Pupil Capacity 144-314,MCC Schools,Supplies & Services,"Printing, Stationery and General Office Expenses",Stationery,,15/01/2021,10831789,0,6.58,R,BSM Purchase Card Transactions,,
Neighbourhood Services,Highways,Enterprise,Supplies & Services,"Printing, Stationery and General Office Expenses",Stationery,,15/01/2021,10831793,0,13.32,R,BSM Purchase Card Transactions,,
Neighbourhood Services,Highways,Enterprise,Supplies & Services,"Printing, Stationery and General Office Expenses",Stationery,,15/01/2021,10831817,0,26.56,R,BSM Purchase Card Transactions,,
Neighbourhood Services,Highways,Enterprise,Supplies & Services,"Printing, Stationery and General Office Expenses",Stationery,,15/01/2021,10831867,0,89.5,R,BSM Purchase Card Transactions,,
Schools Total,School Group 2 � Pupil Capacity 144-314,MCC Schools,Supplies & Services,"Equipment, Furniture and Materials",Materials & Consumables.,,15/01/2021,10831876,0,8.55,R,BSM Purchase Card Transactions,,
Neighbourhood Services,Highways,Enterprise,Supplies & Services,"Printing, Stationery and General Office Expenses",Stationery,,15/01/2021,10831938,0,37.44,R,BSM Purchase Card Transactions,,
Neighbourhood Services,Highways,Enterprise,Supplies & Services,"Printing, Stationery and General Office Expenses",Stationery,,15/01/2021,10831964,0,10.4,R,BSM Purchase Card Transactions,,
Children Services,Children Services Other,Social Care and Health,Supplies & Services,Services,Assistance To Clients,,15/01/2021,10831971,0,24.05,R,BSM Purchase Card Transactions,,
Schools Total,SCHGRP3 � School Group 3 � Pupil Capacity 315-500,MCC Schools,Supplies & Services,"Equipment, Furniture and Materials",Materials & Consumables.,,15/01/2021,10831978,0,54.75,R,BSM Purchase Card Transactions,,
Schools Total,SCHGRP3 � School Group 3 � Pupil Capacity 315-500,MCC Schools,Supplies & Services,"Equipment, Furniture and Materials",Materials & Consumables.,,15/01/2021,10831982,0,117.5,R,BSM Purchase Card Transactions,,
Schools Total,SCHGRP3 � School Group 3 � Pupil Capacity 315-500,MCC Schools,Supplies & Services,"Printing, Stationery and General Office Expenses",Printing,,15/01/2021,10831984,0,14.82,R,BSM Purchase Card Transactions,,
Schools Total,School Group 2 � Pupil Capacity 144-314,MCC Schools,Supplies & Services,"Equipment, Furniture and Materials",Materials & Consumables.,,15/01/2021,10831986,0,4.5,R,BSM Purchase Card Transactions,,
Schools Total,SCHGRP3 � School Group 3 � Pupil Capacity 315-500,MCC Schools,Supplies & Services,"Equipment, Furniture and Materials",Materials & Consumables.,,15/01/2021,10831988,0,1.62,R,BSM Purchase Card Transactions,,
Children Services,Children Services Teams,Social Care and Health,Supplies & Services,Services,Direct Work with Young People,,15/01/2021,10831990,0,8.61,R,BSM Purchase Card Transactions,,
Schools Total,School Group 7 � Pupil Capacity 501-1800,MCC Schools,Supplies & Services,Communications and Computing,IT Software,,15/01/2021,10831992,0,29.49,R,BSM Purchase Card Transactions,,
Neighbourhood Services,Highways,Enterprise,Supplies & Services,"Equipment, Furniture and Materials",Materials & Consumables.,,15/01/2021,10831996,0,3.24,R,BSM Purchase Card Transactions,,
Schools Total,School Group 2 � Pupil Capacity 144-314,MCC Schools,Supplies & Services,"Equipment, Furniture and Materials",Materials & Consumables.,,15/01/2021,10831998,0,6.65,R,BSM Purchase Card Transactions,,
Schools Total,School Group 2 � Pupil Capacity 144-314,MCC Schools,Supplies & Services,"Equipment, Furniture and Materials",Materials & Consumables.,,15/01/2021,10832000,0,2.36,R,BSM Purchase Card Transactions,,
Neighbourhood Services,Highways,Enterprise,Supplies & Services,"Printing, Stationery and General Office Expenses",Stationery,,15/01/2021,10832004,0,41.59,R,BSM Purchase Card Transactions,,
Schools Total,School Group 2 � Pupil Capacity 144-314,MCC Schools,Premises,"Repairs, Alterations & Maintenance of Buildings",Premises Repairs And Maintenance,,15/01/2021,10832005,0,27.8,R,BSM Purchase Card Transactions,,
Schools Total,SCHGRP3 � School Group 3 � Pupil Capacity 315-500,MCC Schools,Supplies & Services,"Printing, Stationery and General Office Expenses",Printing,,15/01/2021,10832006,0,33.32,R,BSM Purchase Card Transactions,,
Children Services,Children Services Other,Social Care and Health,Supplies & Services,"Clothes, Uniform and Laundry",Clothing (Direct),,15/01/2021,10832012,0,45.6,R,BSM Purchase Card Transactions,,
Business Growth and Enterprise,Communications,Enterprise,Supplies & Services,"Equipment, Furniture and Materials",Advertising,,15/01/2021,10832014,0,200,R,BSM Purchase Card Transactions,,
Schools Total,School Group 7 � Pupil Capacity 501-1800,MCC Schools,Supplies & Services,"Equipment, Furniture and Materials",Materials & Consumables.,,15/01/2021,10832016,0,28.35,R,BSM Purchase Card Transactions,,
Children Services,Children Services Other,Social Care and Health,Supplies & Services,Services,Maintenance Of Clients,,15/01/2021,10832018,0,90,R,BSM Purchase Card Transactions,,
Neighbourhood Services,Highways,Enterprise,Supplies & Services,"Printing, Stationery and General Office Expenses",Stationery,,15/01/2021,10832020,0,16.58,R,BSM Purchase Card Transactions,,
Schools Total,School Group 7 � Pupil Capacity 501-1800,MCC Schools,Supplies & Services,"Equipment, Furniture and Materials",Materials & Consumables.,,15/01/2021,10832021,0,7.44,R,BSM Purchase Card Transactions,,
Neighbourhood Services,Highways,Enterprise,Supplies & Services,"Equipment, Furniture and Materials",Materials & Consumables.,,15/01/2021,10832022,0,116.59,R,BSM Purchase Card Transactions,,
Schools Total,School Group 2 � Pupil Capacity 144-314,MCC Schools,Supplies & Services,"Equipment, Furniture and Materials",Equipment Purchases,,15/01/2021,10832023,0,180,R,BSM Purchase Card Transactions,,
Neighbourhood Services,Highways,Enterprise,Supplies & Services,"Printing, Stationery and General Office Expenses",Stationery,,15/01/2021,10832029,0,2.77,R,BSM Purchase Card Transactions,,
Neighbourhood Services,Highways,Enterprise,Supplies & Services,"Printing, Stationery and General Office Expenses",Stationery,,15/01/2021,10832032,0,17.31,R,BSM Purchase Card Transactions,,
Schools Total,School Group 2 � Pupil Capacity 144-314,MCC Schools,Supplies & Services,"Equipment, Furniture and Materials",Materials & Consumables.,,15/01/2021,10832033,0,133,R,BSM Purchase Card Transactions,,
Schools Total,School Group 2 � Pupil Capacity 144-314,MCC Schools,Supplies & Services,"Equipment, Furniture and Materials",Materials & Consumables.,,15/01/2021,10832036,0,15.4,R,BSM Purchase Card Transactions,,
Schools Total,School Group 2 � Pupil Capacity 144-314,MCC Schools,Supplies & Services,"Equipment, Furniture and Materials",Materials & Consumables.,,15/01/2021,10832037,0,14.22,R,BSM Purchase Card Transactions,,
Schools Total,School Group 1 � Pupil Capacity 1-143,MCC Schools,Supplies & Services,"Equipment, Furniture and Materials",Materials & Consumables.,,15/01/2021,10832039,0,10.8,R,BSM Purchase Card Transactions,,
Neighbourhood Services,Highways,Enterprise,Supplies & Services,"Equipment, Furniture and Materials",Materials & Consumables.,,15/01/2021,10832041,0,19.46,R,BSM Purchase Card Transactions,,
Schools Total,School Group 2 � Pupil Capacity 144-314,MCC Schools,Supplies & Services,"Equipment, Furniture and Materials",Materials & Consumables.,,15/01/2021,10832045,0,5,R,BSM Purchase Card Transactions,,
Neighbourhood Services,Highways,Enterprise,Supplies & Services,"Equipment, Furniture and Materials",Materials & Consumables.,,15/01/2021,10832047,0,"1,630.60",R,BSM Purchase Card Transactions,,
Schools Total,School Group 2 � Pupil Capacity 144-314,MCC Schools,Supplies & Services,"Equipment, Furniture and Materials",Materials & Consumables.,,15/01/2021,10832052,0,10.2,R,BSM Purchase Card Transactions,,
Schools Total,School Group 2 � Pupil Capacity 144-314,MCC Schools,Premises,"Repairs, Alterations & Maintenance of Buildings",Building Improvements / Maintenance,,15/01/2021,10832055,0,6.46,R,BSM Purchase Card Transactions,,
Business Growth and Enterprise,Communications,Enterprise,Supplies & Services,"Equipment, Furniture and Materials",Equipment Purchases,,15/01/2021,10832057,0,200,R,BSM Purchase Card Transactions,,
Children Services,Children Services Other,Social Care and Health,Supplies & Services,"Clothes, Uniform and Laundry",Clothing (Direct),,15/01/2021,10832059,0,53.1,R,BSM Purchase Card Transactions,,
Children Services,Children Services Teams,Social Care and Health,Supplies & Services,Services,Direct Work with Young People,,15/01/2021,10832062,0,3.05,R,BSM Purchase Card Transactions,,
Schools Total,School Group 2 � Pupil Capacity 144-314,MCC Schools,Supplies & Services,"Equipment, Furniture and Materials",Materials & Consumables.,,15/01/2021,10832066,0,17,R,BSM Purchase Card Transactions,,
Schools Total,SCHGRP3 � School Group 3 � Pupil Capacity 315-500,MCC Schools,Supplies & Services,"Equipment, Furniture and Materials",Materials & Consumables.,,15/01/2021,10832068,0,23.1,R,BSM Purchase Card Transactions,,
Schools Total,School Group 2 � Pupil Capacity 144-314,MCC Schools,Supplies & Services,"Equipment, Furniture and Materials",Materials & Consumables.,,15/01/2021,10832070,0,19.9,R,BSM Purchase Card Transactions,,
Schools Total,SCHGRP3 � School Group 3 � Pupil Capacity 315-500,MCC Schools,Supplies & Services,"Equipment, Furniture and Materials",Materials & Consumables.,,15/01/2021,10832072,0,9.81,R,BSM Purchase Card Transactions,,
Neighbourhood Services,Highways,Enterprise,Supplies & Services,"Equipment, Furniture and Materials",Materials & Consumables.,,15/01/2021,10832074,0,73.33,R,BSM Purchase Card Transactions,,
Schools Total,School Group 2 � Pupil Capacity 144-314,MCC Schools,Supplies & Services,"Equipment, Furniture and Materials",Materials & Consumables.,,15/01/2021,10832076,0,1.94,R,BSM Purchase Card Transactions,,
Schools Total,School Group 7 � Pupil Capacity 501-1800,MCC Schools,Supplies & Services,"Equipment, Furniture and Materials",Equipment Purchases,,15/01/2021,10832080,0,8.7,R,BSM Purchase Card Transactions,,
Children Services,Children Services Teams,Social Care and Health,Supplies & Services,"Equipment, Furniture and Materials",Marketing General,,15/01/2021,10832082,0,80,R,BSM Purchase Card Transactions,,
Schools Total,School Group 2 � Pupil Capacity 144-314,MCC Schools,Supplies & Services,"Equipment, Furniture and Materials",Materials & Consumables.,,15/01/2021,10832083,0,13.5,R,BSM Purchase Card Transactions,,
Neighbourhood Services,Highways,Enterprise,Supplies & Services,"Equipment, Furniture and Materials",Materials & Consumables.,,15/01/2021,10832084,0,42.08,R,BSM Purchase Card Transactions,,
Children Services,Children Services Teams,Social Care and Health,Supplies & Services,Services,Supported Housing Costs,,15/01/2021,10832086,0,80,R,BSM Purchase Card Transactions,,
Neighbourhood Services,Highways,Enterprise,Supplies & Services,Grants and Subscriptions,Subscriptions,,15/01/2021,10832088,0,-7.99,R,BSM Purchase Card Transactions,,
Schools Total,School Group 2 � Pupil Capacity 144-314,MCC Schools,Supplies & Services,"Equipment, Furniture and Materials",Materials & Consumables.,,15/01/2021,10832094,0,18.4,R,BSM Purchase Card Transactions,,
Schools Total,School Group 7 � Pupil Capacity 501-1800,MCC Schools,Supplies & Services,"Equipment, Furniture and Materials",Materials & Consumables.,,15/01/2021,10832101,0,82.8,R,BSM Purchase Card Transactions,,
Schools Total,SCHGRP3 � School Group 3 � Pupil Capacity 315-500,MCC Schools,Supplies & Services,"Equipment, Furniture and Materials",Materials & Consumables.,,15/01/2021,10832108,0,9.85,R,BSM Purchase Card Transactions,,
Schools Total,School Group 1 � Pupil Capacity 1-143,MCC Schools,Supplies & Services,"Equipment, Furniture and Materials",Materials & Consumables.,,15/01/2021,10832110,0,66,R,BSM Purchase Card Transactions,,
Schools Total,School Group 2 � Pupil Capacity 144-314,MCC Schools,Supplies & Services,"Equipment, Furniture and Materials",Materials & Consumables.,,15/01/2021,10832111,0,22,R,BSM Purchase Card Transactions,,
Schools Total,School Group 1 � Pupil Capacity 1-143,MCC Schools,Supplies & Services,"Equipment, Furniture and Materials",Materials & Consumables.,,15/01/2021,10832117,0,80.1,R,BSM Purchase Card Transactions,,
Children Services,Children Services Teams,Social Care and Health,Supplies & Services,"Equipment, Furniture and Materials",Furniture Purchases / Replacement,,15/01/2021,10832119,0,235.79,R,BSM Purchase Card Transactions,,
Schools Total,SCHGRP3 � School Group 3 � Pupil Capacity 315-500,MCC Schools,Supplies & Services,"Equipment, Furniture and Materials",Materials & Consumables.,,15/01/2021,10832121,0,484,R,BSM Purchase Card Transactions,,
Children Services,Children Services Teams,Social Care and Health,Supplies & Services,Services,Direct Work with Young People,,15/01/2021,10832125,0,5.09,R,BSM Purchase Card Transactions,,
Neighbourhood Services,Highways,Enterprise,Supplies & Services,"Equipment, Furniture and Materials",Materials & Consumables.,,15/01/2021,10832129,0,27.94,R,BSM Purchase Card Transactions,,
Schools Total,School Group 7 � Pupil Capacity 501-1800,MCC Schools,Supplies & Services,"Equipment, Furniture and Materials",Materials & Consumables.,,15/01/2021,10832131,0,15.3,R,BSM Purchase Card Transactions,,
Schools Total,School Group 7 � Pupil Capacity 501-1800,MCC Schools,Supplies & Services,"Equipment, Furniture and Materials",Materials & Consumables.,,15/01/2021,10832133,0,30,R,BSM Purchase Card Transactions,,
Children Services,Children Services Other,Social Care and Health,Supplies & Services,Services,Leaving Care Grants,,15/01/2021,10832135,0,192.94,R,BSM Purchase Card Transactions,,
Schools Total,SCHGRP3 � School Group 3 � Pupil Capacity 315-500,MCC Schools,Employees,Indirect Employee Expenses,Health & Safety,,15/01/2021,10832137,0,200,R,BSM Purchase Card Transactions,,
Schools Total,School Group 7 � Pupil Capacity 501-1800,MCC Schools,Supplies & Services,"Equipment, Furniture and Materials",Equipment Purchases,,15/01/2021,10832139,0,13.5,R,BSM Purchase Card Transactions,,
Children Services,Children Services Teams,Social Care and Health,Supplies & Services,Services,Assistance To Clients,,15/01/2021,10832141,0,17.09,R,BSM Purchase Card Transactions,,
Schools Total,School Group 1 � Pupil Capacity 1-143,MCC Schools,Premises,"Repairs, Alterations & Maintenance of Buildings",Building Improvements / Maintenance,,15/01/2021,10832143,0,162,R,BSM Purchase Card Transactions,,
Children Services,Children Services Teams,Social Care and Health,Supplies & Services,"Equipment, Furniture and Materials",Marketing General,,15/01/2021,10832149,0,460,R,BSM Purchase Card Transactions,,
Facilities & Fleet Management,Home to School Transport Dept,Enterprise,Supplies & Services,Services,Training Charges,,15/01/2021,10832151,0,80,R,BSM Purchase Card Transactions,,
Schools Total,School Group 7 � Pupil Capacity 501-1800,MCC Schools,Supplies & Services,"Equipment, Furniture and Materials",Materials & Consumables.,,15/01/2021,10832153,0,16.65,R,BSM Purchase Card Transactions,,
Schools Total,School Group 2 � Pupil Capacity 144-314,MCC Schools,Supplies & Services,"Equipment, Furniture and Materials",Materials & Consumables.,,15/01/2021,10832155,0,107,R,BSM Purchase Card Transactions,,
Schools Total,SCHGRP3 � School Group 3 � Pupil Capacity 315-500,MCC Schools,Supplies & Services,"Equipment, Furniture and Materials",Materials & Consumables.,,15/01/2021,10832157,0,25,R,BSM Purchase Card Transactions,,
Schools Total,School Group 2 � Pupil Capacity 144-314,MCC Schools,Supplies & Services,"Equipment, Furniture and Materials",Materials & Consumables.,,15/01/2021,10832159,0,472,R,BSM Purchase Card Transactions,,
Facilities & Fleet Management,Transport Department,Enterprise,Supplies & Services,"Equipment, Furniture and Materials",Equipment Purchases,,15/01/2021,10832161,0,57.9,R,BSM Purchase Card Transactions,,
Schools Total,SCHGRP3 � School Group 3 � Pupil Capacity 315-500,MCC Schools,Supplies & Services,"Equipment, Furniture and Materials",Materials & Consumables.,,15/01/2021,10832170,0,4.3,R,BSM Purchase Card Transactions,,
Children Services,Children Services Teams,Social Care and Health,Supplies & Services,Services,Supported Housing Costs,,15/01/2021,10832192,0,199,R,BSM Purchase Card Transactions,,
Schools Total,SCHGRP3 � School Group 3 � Pupil Capacity 315-500,MCC Schools,Supplies & Services,"Equipment, Furniture and Materials",Materials & Consumables.,,15/01/2021,10832205,0,14.5,R,BSM Purchase Card Transactions,,
Schools Total,SCHGRP3 � School Group 3 � Pupil Capacity 315-500,MCC Schools,Supplies & Services,"Equipment, Furniture and Materials",Materials & Consumables.,,15/01/2021,10832209,0,3.5,R,BSM Purchase Card Transactions,,
Schools Total,School Group 7 � Pupil Capacity 501-1800,MCC Schools,Supplies & Services,Expenses,Exam Fees (Schools),,15/01/2021,10832219,0,31.25,R,BSM Purchase Card Transactions,,
Planning & Housing,General Fund Housing,Enterprise,Income,Customer and Client Receipts,Covid19 Expenditure Recoupment,,15/01/2021,10832233,0,15,R,BSM Purchase Card Transactions,,
"Commercial, Corporate & landlord Services",Property Services & Facilities Management,Resources,Premises,"Repairs, Alterations & Maintenance of Buildings",Building Improvements / Maintenance,,06/01/2021,10832271,90055370,"2,574.26",R,Lorne Stewart  Plc,,
"Commercial, Corporate & landlord Services",Property Services & Facilities Management,Resources,Premises,"Repairs, Alterations & Maintenance of Buildings",Building Improvements / Maintenance,,04/01/2021,10832589,760013628,"1,150.00",R,Torfaen County Borough Council,,
"Commercial, Corporate & landlord Services",Property Services & Facilities Management,Resources,Premises,"Repairs, Alterations & Maintenance of Buildings",Building Improvements / Maintenance,,06/01/2021,10832592,90056321,599,R,Fireco Limited,,
Neighbourhood Services,Waste and Street Services,Enterprise,Supplies & Services,"Equipment, Furniture and Materials",Materials & Consumables.,,07/01/2021,10832678,10105235,7.53,R,Robert Price Builders Merchants Ltd,,
Neighbourhood Services,Waste and Street Services,Enterprise,Premises,"Repairs, Alterations & Maintenance of Buildings",Skip Hire,,04/01/2021,10833001,816499,252.5,R,Thomas Waste Management Ltd,,
"Commercial, Corporate & landlord Services",Property Services & Facilities Management,Resources,Premises,"Repairs, Alterations & Maintenance of Buildings",Building Improvements / Maintenance,,04/01/2021,10833103,90056393,"1,225.00",R,SHIELD ON-SITE SERVICES,,
Neighbourhood Services,Waste and Street Services,Enterprise,Supplies & Services,"Equipment, Furniture and Materials",Materials & Consumables.,,07/01/2021,10833155,10103729,12.15,R,Robert Price Builders Merchants Ltd,,
Information Communication Technology,Technology & Organisational Design,Resources,Supplies & Services,"Equipment, Furniture and Materials",Materials & Consumables.,,07/01/2021,10833323,10106556,"4,346.83",R,SRS Public,,
"Commercial, Corporate & landlord Services",Property Services & Facilities Management,Resources,Premises,"Repairs, Alterations & Maintenance of Buildings",Building Improvements / Maintenance,,05/01/2021,10833786,90053918,"2,775.00",R,REDACTED PERSONAL DATA,,
"Commercial, Corporate & landlord Services",Property Services & Facilities Management,Resources,Premises,"Repairs, Alterations & Maintenance of Buildings",Building Improvements / Maintenance,,05/01/2021,10833787,760015260,"1,050.00",R,REDACTED PERSONAL DATA,,
"Commercial, Corporate & landlord Services",Property Services & Facilities Management,Resources,Supplies & Services,Services,Professional And Specialist Fees,,06/01/2021,10833788,90051219,652,R,REDACTED PERSONAL DATA,,
"Commercial, Corporate & landlord Services",Property Services & Facilities Management,Resources,Premises,"Repairs, Alterations & Maintenance of Buildings",Premises Repairs And Maintenance,,05/01/2021,10833789,90051046,104.1,R,Dale Sauna Ltd,,
"Commercial, Corporate & landlord Services",Property Services & Facilities Management,Resources,Premises,"Repairs, Alterations & Maintenance of Buildings",Premises Repairs And Maintenance,,07/01/2021,10833905,90053408,80,R,Ambassador Fire & Security LTD,,
Facilities & Fleet Management,Home to School Transport Dept,Enterprise,Transport,Contract Hire and Operating Leases,PTU Vehicle Contracts,,07/01/2021,10833952,0,"4,736.00",R,Murrays Minibus Hire,,
"Commercial, Corporate & landlord Services",Property Services & Facilities Management,Resources,Premises,"Repairs, Alterations & Maintenance of Buildings",Building Improvements / Maintenance,,06/01/2021,10833960,90053283,170.53,R,Lorne Stewart  Plc,,
"Commercial, Corporate & landlord Services",Property Services & Facilities Management,Resources,Premises,"Repairs, Alterations & Maintenance of Buildings",Building Improvements / Maintenance,,06/01/2021,10833961,760015760,259.4,R,Lorne Stewart  Plc,,
"Commercial, Corporate & landlord Services",Property Services & Facilities Management,Resources,Premises,"Repairs, Alterations & Maintenance of Buildings",Building Improvements / Maintenance,,06/01/2021,10833962,760015246,769.1,R,Lorne Stewart  Plc,,
"Commercial, Corporate & landlord Services",Property Services & Facilities Management,Resources,Premises,"Repairs, Alterations & Maintenance of Buildings",Building Improvements / Maintenance,,06/01/2021,10833963,760015262,"1,908.21",R,Lorne Stewart  Plc,,
"Commercial, Corporate & landlord Services",Property Services & Facilities Management,Resources,Premises,"Repairs, Alterations & Maintenance of Buildings",Building Improvements / Maintenance,,06/01/2021,10833964,760016080,55.48,R,Lorne Stewart  Plc,,
"Commercial, Corporate & landlord Services",Property Services & Facilities Management,Resources,Premises,"Repairs, Alterations & Maintenance of Buildings",Building Improvements / Maintenance,,05/01/2021,10833965,760016115,184.56,R,Lorne Stewart  Plc,,
"Commercial, Corporate & landlord Services",Property Services & Facilities Management,Resources,Premises,"Repairs, Alterations & Maintenance of Buildings",Building Improvements / Maintenance,,06/01/2021,10833966,760016158,124.96,R,Lorne Stewart  Plc,,
"Commercial, Corporate & landlord Services",Property Services & Facilities Management,Resources,Premises,"Repairs, Alterations & Maintenance of Buildings",Building Improvements / Maintenance,,07/01/2021,10833967,760016211,281.68,R,Lorne Stewart  Plc,,
Planning & Housing,General Fund Housing,Enterprise,Premises,Rents,Rents/Hire Of Premises.,,05/01/2021,10833968,0,590,R,REDACTED PERSONAL DATA,,
Planning & Housing,General Fund Housing,Enterprise,Premises,Rents,Rents/Hire Of Premises.,,05/01/2021,10833970,0,590,R,REDACTED PERSONAL DATA,,
Planning & Housing,General Fund Housing,Enterprise,Premises,Rents,Rents/Hire Of Premises.,,05/01/2021,10833972,0,590,R,Worth Consultin Limited,,
Planning & Housing,General Fund Housing,Enterprise,Premises,Rents,Rents/Hire Of Premises.,,05/01/2021,10833974,0,590,R,Worth Consultin Limited,,
Planning & Housing,General Fund Housing,Enterprise,Premises,Rents,Rents/Hire Of Premises.,,05/01/2021,10833976,0,350,R,REDACTED PERSONAL DATA,,
"Commercial, Corporate & landlord Services",Asset Management,Resources,Premises,Energy Costs,Electricity.,,05/01/2021,10833978,0,337.84,R,IMServ Europe Ltd,,
Appropriations,Appropriations,Appropriations,Premises,Energy Costs,Electricity.,,05/01/2021,10833980,0,30.15,R,E.ON Energy,,
Schools Total,School Group 2 � Pupil Capacity 144-314,MCC Schools,Premises,Energy Costs,Liquid Gas.,,05/01/2021,10833982,0,551.61,R,Calor Gas Ltd,,
"Leisure, Youth & Outdoor Adventure",Youth & Education,MonLife Directorate,Premises,Energy Costs,Liquid Gas.,,05/01/2021,10833984,0,175.65,R,Calor Gas Ltd,,
"Commercial, Corporate & landlord Services",Asset Management,Resources,Premises,Water Services,Water Services-Metered.,,05/01/2021,10833986,0,"1,316.87",R,Welsh Water,,
"Commercial, Corporate & landlord Services",Property Services & Facilities Management,Resources,Premises,"Repairs, Alterations & Maintenance of Buildings",Building Improvements / Maintenance,,06/01/2021,10833988,760016197,124.96,R,Lorne Stewart  Plc,,
"Commercial, Corporate & landlord Services",Property Services & Facilities Management,Resources,Premises,"Repairs, Alterations & Maintenance of Buildings",Building Improvements / Maintenance,,06/01/2021,10833989,760016223,80.97,R,Lorne Stewart  Plc,,
"Commercial, Corporate & landlord Services",Property Services & Facilities Management,Resources,Premises,"Repairs, Alterations & Maintenance of Buildings",Building Improvements / Maintenance,,06/01/2021,10833990,760016235,482.26,R,Lorne Stewart  Plc,,
"Commercial, Corporate & landlord Services",Property Services & Facilities Management,Resources,Premises,"Repairs, Alterations & Maintenance of Buildings",Building Improvements / Maintenance,,06/01/2021,10833991,760016246,99.47,R,Lorne Stewart  Plc,,
"Commercial, Corporate & landlord Services",Property Services & Facilities Management,Resources,Premises,"Repairs, Alterations & Maintenance of Buildings",Building Improvements / Maintenance,,06/01/2021,10833992,760016250,146.23,R,Lorne Stewart  Plc,,
"Commercial, Corporate & landlord Services",Property Services & Facilities Management,Resources,Premises,"Repairs, Alterations & Maintenance of Buildings",Building Improvements / Maintenance,,06/01/2021,10833993,760016267,93.72,R,Lorne Stewart  Plc,,
"Commercial, Corporate & landlord Services",Property Services & Facilities Management,Resources,Premises,"Repairs, Alterations & Maintenance of Buildings",Building Improvements / Maintenance,,06/01/2021,10833994,90053913,"7,426.06",R,A.J Quinn Building Contractors Ltd,,
"Commercial, Corporate & landlord Services",Property Services & Facilities Management,Resources,Premises,"Repairs, Alterations & Maintenance of Buildings",Building Improvements / Maintenance,,07/01/2021,10833995,90056472,181.19,R,Catertech Services Ltd,,
"Commercial, Corporate & landlord Services",Property Services & Facilities Management,Resources,Premises,"Repairs, Alterations & Maintenance of Buildings",Premises Repairs And Maintenance,,06/01/2021,10833996,90055413,661.2,R,Audience Systems Limited,,
"Commercial, Corporate & landlord Services",Property Services & Facilities Management,Resources,Premises,"Repairs, Alterations & Maintenance of Buildings",Building Improvements / Maintenance,,06/01/2021,10835619,760011880,977.03,R,Lorne Stewart  Plc,,
"Commercial, Corporate & landlord Services",Property Services & Facilities Management,Resources,Premises,"Repairs, Alterations & Maintenance of Buildings",Building Improvements / Maintenance,,06/01/2021,10835620,90055523,172.12,R,Lorne Stewart  Plc,,
"Commercial, Corporate & landlord Services",Property Services & Facilities Management,Resources,Premises,"Repairs, Alterations & Maintenance of Buildings",Building Improvements / Maintenance,,06/01/2021,10835621,90055527,278.51,R,Lorne Stewart  Plc,,
"Commercial, Corporate & landlord Services",Property Services & Facilities Management,Resources,Premises,"Repairs, Alterations & Maintenance of Buildings",Building Improvements / Maintenance,,06/01/2021,10835622,90055545,195.68,R,Lorne Stewart  Plc,,
"Commercial, Corporate & landlord Services",Property Services & Facilities Management,Resources,Premises,"Repairs, Alterations & Maintenance of Buildings",Building Improvements / Maintenance,,06/01/2021,10835623,90055632,55.48,R,Lorne Stewart  Plc,,
"Commercial, Corporate & landlord Services",Property Services & Facilities Management,Resources,Premises,"Repairs, Alterations & Maintenance of Buildings",Building Improvements / Maintenance,,06/01/2021,10835624,90055633,55.48,R,Lorne Stewart  Plc,,
"Commercial, Corporate & landlord Services",Property Services & Facilities Management,Resources,Premises,"Repairs, Alterations & Maintenance of Buildings",Building Improvements / Maintenance,,06/01/2021,10835626,90055537,344.75,R,Lorne Stewart  Plc,,
"Commercial, Corporate & landlord Services",Property Services & Facilities Management,Resources,Premises,"Repairs, Alterations & Maintenance of Buildings",Building Improvements / Maintenance,,06/01/2021,10835627,90055681,"5,498.00",R,Springvale Wproofing Ltd,,
Corporate (COL),Corporate (COL),Corporate Costs & Levies,Supplies & Services,Services,Professional And Specialist Fees,,07/01/2021,10835636,10106750,"14,672.33",R,Wales Audit Office,,
Schools Total,School Group 2 � Pupil Capacity 144-314,MCC Schools,Employees,Direct Employee Expenses,Agency Staff,,26/01/2021,10835639,80074660,678.76,R,Empowering Learning Limited,,
"Commercial, Corporate & landlord Services",Property Services & Facilities Management,Resources,Premises,"Repairs, Alterations & Maintenance of Buildings",Building Improvements / Maintenance,,06/01/2021,10835651,90055982,192.1,R,Lorne Stewart  Plc,,
"Commercial, Corporate & landlord Services",Property Services & Facilities Management,Resources,Premises,"Repairs, Alterations & Maintenance of Buildings",Building Improvements / Maintenance,,06/01/2021,10835652,90055714,73.98,R,Lorne Stewart  Plc,,
"Commercial, Corporate & landlord Services",Property Services & Facilities Management,Resources,Premises,"Repairs, Alterations & Maintenance of Buildings",Building Improvements / Maintenance,,06/01/2021,10835653,90055715,545.96,R,Lorne Stewart  Plc,,
"Commercial, Corporate & landlord Services",Property Services & Facilities Management,Resources,Premises,"Repairs, Alterations & Maintenance of Buildings",Building Improvements / Maintenance,,06/01/2021,10835654,90055858,336.74,R,Lorne Stewart  Plc,,
"Commercial, Corporate & landlord Services",Property Services & Facilities Management,Resources,Premises,"Repairs, Alterations & Maintenance of Buildings",Building Improvements / Maintenance,,06/01/2021,10835655,90055859,93.72,R,Lorne Stewart  Plc,,
"Commercial, Corporate & landlord Services",Property Services & Facilities Management,Resources,Premises,"Repairs, Alterations & Maintenance of Buildings",Building Improvements / Maintenance,,06/01/2021,10835656,90055857,76.85,R,Lorne Stewart  Plc,,
Neighbourhood Services,Highways,Enterprise,Supplies & Services,Services,Professional And Specialist Fees,,06/01/2021,10835676,816682,"2,985.00",R,Lloyds Register EMEA,,
"Commercial, Corporate & landlord Services",Property Services & Facilities Management,Resources,Premises,"Repairs, Alterations & Maintenance of Buildings",Building Improvements / Maintenance,,08/01/2021,10835681,90055868,549.65,R,Lorne Stewart  Plc,,
"Commercial, Corporate & landlord Services",Property Services & Facilities Management,Resources,Premises,"Repairs, Alterations & Maintenance of Buildings",Building Improvements / Maintenance,,06/01/2021,10835682,90055874,73.98,R,Lorne Stewart  Plc,,
"Commercial, Corporate & landlord Services",Property Services & Facilities Management,Resources,Premises,"Repairs, Alterations & Maintenance of Buildings",Building Improvements / Maintenance,,06/01/2021,10835683,90055875,76.85,R,Lorne Stewart  Plc,,
"Commercial, Corporate & landlord Services",Property Services & Facilities Management,Resources,Premises,"Repairs, Alterations & Maintenance of Buildings",Building Improvements / Maintenance,,08/01/2021,10835684,90055880,176.51,R,Lorne Stewart  Plc,,
"Commercial, Corporate & landlord Services",Property Services & Facilities Management,Resources,Premises,"Repairs, Alterations & Maintenance of Buildings",Building Improvements / Maintenance,,06/01/2021,10835686,90055879,80.97,R,Lorne Stewart  Plc,,
"Commercial, Corporate & landlord Services",Property Services & Facilities Management,Resources,Premises,"Repairs, Alterations & Maintenance of Buildings",Building Improvements / Maintenance,,06/01/2021,10835687,90055885,61.23,R,Lorne Stewart  Plc,,
"Commercial, Corporate & landlord Services",Property Services & Facilities Management,Resources,Premises,"Repairs, Alterations & Maintenance of Buildings",Building Improvements / Maintenance,,06/01/2021,10835690,90055925,350,R,Lorne Stewart  Plc,,
"Commercial, Corporate & landlord Services",Property Services & Facilities Management,Resources,Premises,"Repairs, Alterations & Maintenance of Buildings",Building Improvements / Maintenance,,07/01/2021,10835699,90055973,284.28,R,Lorne Stewart  Plc,,
Control Division,Control Dept,Control,Current Liabilities,Short Term Creditors,Resource Link Payments,,07/01/2021,10835711,0,112.5,R,Caps,,
Control Division,Control Dept,Control,Current Liabilities,Short Term Creditors,Resource Link Payments,,07/01/2021,10835713,0,206.14,R,DWP CMS Employers,,
Facilities & Fleet Management,Home to School Transport Dept,Enterprise,Transport,Contract Hire and Operating Leases,PTU Vehicle Contracts,,07/01/2021,10835736,0,640,R,Usk Cabs,,
"Commercial, Corporate & landlord Services",Property Services & Facilities Management,Resources,Supplies & Services,Communications and Computing,Mobile Telephones,,08/01/2021,10835763,10103153,140,R,EE Limited,,
Neighbourhood Services,Waste and Street Services,Enterprise,Third Party Payments,Third Party,General Contracts,,07/01/2021,10835777,10103566,"6,236.34",R,Dragon Waste Ltd,,
Children Services,Children Services Teams,Social Care and Health,Employees,Direct Employee Expenses,Agency Staff,,07/01/2021,10835799,10106610,"1,083.60",R,NonStop Recruitment Ltd.,,
Community Care,Community Care Team,Social Care and Health,Third Party Payments,Third Party,Personal Care.,,07/01/2021,10835836,0,"2,588.51",R,Radis Community Care,,
Community Care,Community Care Team,Social Care and Health,Third Party Payments,Third Party,Personal Care.,,07/01/2021,10835838,0,249.56,R,Radis Community Care,,
Community Care,Community Care Team,Social Care and Health,Third Party Payments,Third Party,Personal Care.,,07/01/2021,10835840,0,99.8,R,Radis Community Care,,
Community Care,Community Care Team,Social Care and Health,Third Party Payments,Third Party,Personal Care.,,07/01/2021,10835842,0,"1,686.64",R,Radis Community Care,,
"Commercial, Corporate & landlord Services",Property Services & Facilities Management,Resources,Premises,"Repairs, Alterations & Maintenance of Buildings",Building Improvements / Maintenance,,07/01/2021,10835844,90055991,76.85,R,Lorne Stewart  Plc,,
"Commercial, Corporate & landlord Services",Property Services & Facilities Management,Resources,Premises,"Repairs, Alterations & Maintenance of Buildings",Building Improvements / Maintenance,,07/01/2021,10835845,90055037,74,R,EFS Systems (UK) Ltd,,
Community Care,Community Care Team,Social Care and Health,Third Party Payments,Third Party,Personal Care.,,07/01/2021,10835847,0,472.4,R,Radis Community Care,,
"Commercial, Corporate & landlord Services",Property Services & Facilities Management,Resources,Premises,"Repairs, Alterations & Maintenance of Buildings",Building Improvements / Maintenance,,07/01/2021,10835848,90055876,500.96,R,EFS Systems (UK) Ltd,,
"Commercial, Corporate & landlord Services",Property Services & Facilities Management,Resources,Premises,"Repairs, Alterations & Maintenance of Buildings",Building Improvements / Maintenance,,07/01/2021,10835849,90055924,115.97,R,EFS Systems (UK) Ltd,,
Community Care,Community Care Team,Social Care and Health,Third Party Payments,Third Party,Personal Care.,,07/01/2021,10835851,0,"1,005.68",R,Radis Community Care,,
"Commercial, Corporate & landlord Services",Property Services & Facilities Management,Resources,Premises,"Repairs, Alterations & Maintenance of Buildings",Building Improvements / Maintenance,,07/01/2021,10835853,90055949,"6,947.50",R,EFS Systems (UK) Ltd,,
"Commercial, Corporate & landlord Services",Property Services & Facilities Management,Resources,Premises,"Repairs, Alterations & Maintenance of Buildings",Building Improvements / Maintenance,,07/01/2021,10835854,90056009,84.39,R,EFS Systems (UK) Ltd,,
Community Care,Community Care Team,Social Care and Health,Third Party Payments,Third Party,Personal Care.,,07/01/2021,10835855,0,555.78,R,Radis Community Care,,
Community Care,Community Care Team,Social Care and Health,Third Party Payments,Third Party,Personal Care.,,07/01/2021,10835857,0,"2,799.17",R,Radis Community Care,,
Community Care,Community Care Team,Social Care and Health,Third Party Payments,Third Party,Personal Care.,,07/01/2021,10835859,0,402.84,R,Radis Community Care,,
Schools Total,School Group 2 � Pupil Capacity 144-314,MCC Schools,Supplies & Services,Communications and Computing,IT Hardware,,07/01/2021,10835867,80076109,"3,848.10",R,CHG-MERIDIAN COMPUTER LEASING UK LTD,,
Standards,Early Years,Children & Young People,Supplies & Services,Services,Child Minding Fees,,07/01/2021,10835941,10103615,"5,184.00",R,Tiny Tots Pre-School Playgroup,,
Business Growth and Enterprise,Business Growth & Enterprise,Enterprise,Employees,Indirect Employee Expenses,"Course, Conference And Seminar Fees",,07/01/2021,10835967,10107647,290,R,BSY Limited,,
"Commercial, Corporate & landlord Services",Property Services & Facilities Management,Resources,Premises,"Repairs, Alterations & Maintenance of Buildings",Building Improvements / Maintenance,,12/01/2021,10835989,90056021,469.96,R,EFS Systems (UK) Ltd,,
"Commercial, Corporate & landlord Services",Property Services & Facilities Management,Resources,Premises,"Repairs, Alterations & Maintenance of Buildings",Building Improvements / Maintenance,,12/01/2021,10835990,90056053,98.09,R,EFS Systems (UK) Ltd,,
Control Division,Control Dept,Control,Current Liabilities,Short Term Creditors,Resource Link Payments,,07/01/2021,10835991,0,71,R,Plutus Heaalth,,
Control Division,Control Dept,Control,Current Liabilities,Short Term Creditors,Resource Link Payments,,07/01/2021,10835993,0,639.37,R,GMB National Administration Unit,,
Control Division,Control Dept,Control,Current Liabilities,Short Term Creditors,Resource Link Payments,,07/01/2021,10835995,0,55,R,G A Y E,,
Control Division,Control Dept,Control,Current Liabilities,Short Term Creditors,Resource Link Payments,,07/01/2021,10835997,0,"3,634.19",R,Clerical Medical Investment Group,,
Control Division,Control Dept,Control,Current Liabilities,Short Term Creditors,Resource Link Payments,,07/01/2021,10835999,0,16.25,R,Unite The Union,,
Neighbourhood Services,Highways,Enterprise,Current Assets,Inventories,Stock Received Suspense,,08/01/2021,10836007,816541,"10,475.10",R,Tata Steel UK Ltd,,
"Commercial, Corporate & landlord Services",Property Services & Facilities Management,Resources,Premises,"Repairs, Alterations & Maintenance of Buildings",Building Improvements / Maintenance,,07/01/2021,10836008,90056058,98.85,R,EFS Systems (UK) Ltd,,
"Commercial, Corporate & landlord Services",Property Services & Facilities Management,Resources,Premises,"Repairs, Alterations & Maintenance of Buildings",Building Improvements / Maintenance,,12/01/2021,10836009,90056087,74,R,EFS Systems (UK) Ltd,,
Neighbourhood Services,Highways,Enterprise,Supplies & Services,"Equipment, Furniture and Materials",Display Equipment,,08/01/2021,10836010,816321,482,R,Griffiths Signs & Equipment Co.,,
"Commercial, Corporate & landlord Services",Property Services & Facilities Management,Resources,Premises,"Repairs, Alterations & Maintenance of Buildings",Building Improvements / Maintenance,,12/01/2021,10836011,90056098,136.23,R,EFS Systems (UK) Ltd,,
Neighbourhood Services,Highways,Enterprise,Supplies & Services,"Equipment, Furniture and Materials",Materials & Consumables.,,08/01/2021,10836017,816606,428.64,R,Tata Steel UK Ltd,,
Neighbourhood Services,Highways,Enterprise,Supplies & Services,"Equipment, Furniture and Materials",Materials & Consumables.,,07/01/2021,10836019,816535,"3,381.82",R,Tata Steel UK Ltd,,
"Commercial, Corporate & landlord Services",Property Services & Facilities Management,Resources,Premises,"Repairs, Alterations & Maintenance of Buildings",Building Improvements / Maintenance,,07/01/2021,10836024,90056114,74,R,EFS Systems (UK) Ltd,,
"Commercial, Corporate & landlord Services",Property Services & Facilities Management,Resources,Premises,"Repairs, Alterations & Maintenance of Buildings",Building Improvements / Maintenance,,07/01/2021,10836026,90056116,23,R,EFS Systems (UK) Ltd,,
Neighbourhood Services,Highways,Enterprise,Current Assets,Inventories,Stock Received Suspense,,07/01/2021,10836027,816611,"5,651.20",R,Tata Steel UK Ltd,,
"Commercial, Corporate & landlord Services",Property Services & Facilities Management,Resources,Premises,"Repairs, Alterations & Maintenance of Buildings",Building Improvements / Maintenance,,07/01/2021,10836028,90056134,74,R,EFS Systems (UK) Ltd,,
Neighbourhood Services,Highways,Enterprise,Current Assets,Inventories,Stock Received Suspense,,07/01/2021,10836029,816644,108,R,Tata Steel UK Ltd,,
Neighbourhood Services,Highways,Enterprise,Current Assets,Inventories,Stock Received Suspense,,07/01/2021,10836031,816578,"4,759.03",R,Tata Steel UK Ltd,,
Neighbourhood Services,Highways,Enterprise,Supplies & Services,"Equipment, Furniture and Materials",Materials & Consumables.,,08/01/2021,10836034,816707,183.08,R,Tata Steel UK Ltd,,
"Commercial, Corporate & landlord Services",Property Services & Facilities Management,Resources,Premises,"Repairs, Alterations & Maintenance of Buildings",Building Improvements / Maintenance,,11/01/2021,10836041,90056025,"1,040.25",R,EFS Systems (UK) Ltd,,
"Commercial, Corporate & landlord Services",Property Services & Facilities Management,Resources,Premises,"Repairs, Alterations & Maintenance of Buildings",Building Improvements / Maintenance,,12/01/2021,10836053,90056106,269.51,R,EFS Systems (UK) Ltd,,
"Commercial, Corporate & landlord Services",Property Services & Facilities Management,Resources,Premises,"Repairs, Alterations & Maintenance of Buildings",Building Improvements / Maintenance,,12/01/2021,10836054,90056115,258.54,R,EFS Systems (UK) Ltd,,
"Commercial, Corporate & landlord Services",Property Services & Facilities Management,Resources,Premises,"Repairs, Alterations & Maintenance of Buildings",Building Improvements / Maintenance,,12/01/2021,10836055,90056133,130.3,R,EFS Systems (UK) Ltd,,
"Commercial, Corporate & landlord Services",Property Services & Facilities Management,Resources,Premises,"Repairs, Alterations & Maintenance of Buildings",Building Improvements / Maintenance,,12/01/2021,10836056,90056135,139.88,R,EFS Systems (UK) Ltd,,
"Commercial, Corporate & landlord Services",Property Services & Facilities Management,Resources,Premises,"Repairs, Alterations & Maintenance of Buildings",Premises Repairs And Maintenance,,08/01/2021,10836062,90053370,420,R,Trident Water Solutions Ltd,,
"Commercial, Corporate & landlord Services",Property Services & Facilities Management,Resources,Premises,"Repairs, Alterations & Maintenance of Buildings",Premises Repairs And Maintenance,,08/01/2021,10836063,90053371,420,R,Trident Water Solutions Ltd,,
"Commercial, Corporate & landlord Services",Property Services & Facilities Management,Resources,Premises,"Repairs, Alterations & Maintenance of Buildings",Premises Repairs And Maintenance,,11/01/2021,10836069,90048138,340.23,R,Kone Plc,,
"Commercial, Corporate & landlord Services",Property Services & Facilities Management,Resources,Premises,"Repairs, Alterations & Maintenance of Buildings",Building Improvements / Maintenance,,08/01/2021,10836083,90055861,195,R,Development Plus Limited,,
Business Growth and Enterprise,Strategic Projects � Transport & Regeneration,Enterprise,Supplies & Services,Grants and Subscriptions,Grants Payable,,08/01/2021,10836131,0,"64,997.00",R,Varteg Motors Ltd,,
Business Growth and Enterprise,Strategic Projects � Transport & Regeneration,Enterprise,Supplies & Services,Grants and Subscriptions,Grants Payable,,08/01/2021,10836133,0,"58,348.00",R,First Cymru Buses Ltd,,
Business Growth and Enterprise,Strategic Projects � Transport & Regeneration,Enterprise,Supplies & Services,Grants and Subscriptions,Grants Payable,,08/01/2021,10836135,0,"394,699.00",R,Newport Transport Ltd,,
Business Growth and Enterprise,Strategic Projects � Transport & Regeneration,Enterprise,Supplies & Services,Grants and Subscriptions,Grants Payable,,08/01/2021,10836137,0,630,R,Accessible Caring Transport (ACT),,
Business Growth and Enterprise,Strategic Projects � Transport & Regeneration,Enterprise,Supplies & Services,Grants and Subscriptions,Grants Payable,,08/01/2021,10836139,0,"3,850.00",R,Travol Community Transport,,
Business Growth and Enterprise,Strategic Projects � Transport & Regeneration,Enterprise,Supplies & Services,Grants and Subscriptions,Grants Payable,,08/01/2021,10836141,0,"2,257.00",R,Bridgend County Borough Council,,
Business Growth and Enterprise,Strategic Projects � Transport & Regeneration,Enterprise,Supplies & Services,Grants and Subscriptions,Grants Payable,,08/01/2021,10836143,0,"3,875.00",R,Caerphilly CBC,,
Business Growth and Enterprise,Strategic Projects � Transport & Regeneration,Enterprise,Supplies & Services,Grants and Subscriptions,Grants Payable,,08/01/2021,10836145,0,142,R,REDACTED PERSONAL DATA,,
Business Growth and Enterprise,Strategic Projects � Transport & Regeneration,Enterprise,Supplies & Services,Grants and Subscriptions,Grants Payable,,08/01/2021,10836147,0,"1,963.00",R,Torfaen Community Transport,,
Business Growth and Enterprise,Strategic Projects � Transport & Regeneration,Enterprise,Supplies & Services,Grants and Subscriptions,Grants Payable,,08/01/2021,10836149,0,851,R,Voluntary Emergency Service Transport,,
Business Growth and Enterprise,Strategic Projects � Transport & Regeneration,Enterprise,Supplies & Services,Grants and Subscriptions,Grants Payable,,08/01/2021,10836151,0,"11,212.00",R,Edwards Coaches Ltd,,
Business Growth and Enterprise,Strategic Projects � Transport & Regeneration,Enterprise,Supplies & Services,Grants and Subscriptions,Grants Payable,,08/01/2021,10836153,0,"1,798.00",R,Globe Coaches,,
Business Growth and Enterprise,Strategic Projects � Transport & Regeneration,Enterprise,Supplies & Services,Grants and Subscriptions,Grants Payable,,08/01/2021,10836155,0,822,R,Henley's Bus Service Ltd,,
Business Growth and Enterprise,Strategic Projects � Transport & Regeneration,Enterprise,Supplies & Services,Grants and Subscriptions,Grants Payable,,08/01/2021,10836157,0,"49,139.00",R,Newport Transport Ltd,,
Business Growth and Enterprise,Strategic Projects � Transport & Regeneration,Enterprise,Supplies & Services,Grants and Subscriptions,Grants Payable,,08/01/2021,10836159,0,584,R,Peyton Travel Ltd,,
Business Growth and Enterprise,Strategic Projects � Transport & Regeneration,Enterprise,Supplies & Services,Grants and Subscriptions,Grants Payable,,08/01/2021,10836161,0,"1,798.00",R,Thomas of Rhondda,,
"Commercial, Corporate & landlord Services",Property Services & Facilities Management,Resources,Premises,"Repairs, Alterations & Maintenance of Buildings",Building Improvements / Maintenance,,12/01/2021,10836250,90055985,273,R,Ambassador Fire & Security LTD,,
"Commercial, Corporate & landlord Services",Property Services & Facilities Management,Resources,Premises,"Repairs, Alterations & Maintenance of Buildings",Building Improvements / Maintenance,,11/01/2021,10836251,90054886,345,R,Ambassador Fire & Security LTD,,
"Commercial, Corporate & landlord Services",Property Services & Facilities Management,Resources,Premises,"Repairs, Alterations & Maintenance of Buildings",Premises Repairs And Maintenance,,11/01/2021,10836252,90053423,80,R,Ambassador Fire & Security LTD,,
Neighbourhood Services,Highways,Enterprise,Supplies & Services,"Equipment, Furniture and Materials",Repairs & Maintenance.,,08/01/2021,10836267,816485,100,R,Richard Griffiths Ltd,,
"Commercial, Corporate & landlord Services",Property Services & Facilities Management,Resources,Premises,"Repairs, Alterations & Maintenance of Buildings",Building Improvements / Maintenance,,08/01/2021,10836274,90056473,825,R,SHIELD ON-SITE SERVICES,,
Planning & Housing,Highways Dev & Car Parks,Enterprise,Employees,Indirect Employee Expenses,"Course, Conference And Seminar Fees",,11/01/2021,10836277,816683,"1,920.00",R,University Of South Wales,,
"Commercial, Corporate & landlord Services",Property Services & Facilities Management,Resources,Premises,"Repairs, Alterations & Maintenance of Buildings",Building Improvements / Maintenance,,11/01/2021,10836321,90054647,150,R,P&P Pest Control,,
"Commercial, Corporate & landlord Services",Property Services & Facilities Management,Resources,Premises,"Repairs, Alterations & Maintenance of Buildings",Building Improvements / Maintenance,,11/01/2021,10836325,90054894,100,R,Gemini Blinds Gwent,,
"Commercial, Corporate & landlord Services",Property Services & Facilities Management,Resources,Premises,"Repairs, Alterations & Maintenance of Buildings",Premises Repairs And Maintenance,,12/01/2021,10836347,90055735,393.75,R,Development Plus Limited,,
"Commercial, Corporate & landlord Services",Property Services & Facilities Management,Resources,Premises,"Repairs, Alterations & Maintenance of Buildings",Premises Repairs And Maintenance,,11/01/2021,10836357,90055733,131.25,R,Development Plus Limited,,
"Commercial, Corporate & landlord Services",Property Services & Facilities Management,Resources,Premises,"Repairs, Alterations & Maintenance of Buildings",Premises Repairs And Maintenance,,12/01/2021,10836360,90055206,603.75,R,Development Plus Limited,,
"Commercial, Corporate & landlord Services",Property Services & Facilities Management,Resources,Premises,Energy Costs,Liquid Gas.,,11/01/2021,10836376,0,274.65,R,Calor Gas Ltd,,
"Commercial, Corporate & landlord Services",Property Services & Facilities Management,Resources,Premises,Energy Costs,Gas.,,11/01/2021,10836378,0,75,R,British Gas Business,,
Planning & Housing,General Fund Housing,Enterprise,Premises,Energy Costs,Electricity.,,11/01/2021,10836380,0,153.68,R,British Gas Business,,
"Commercial, Corporate & landlord Services",Asset Management,Resources,Premises,Energy Costs,Electricity.,,11/01/2021,10836382,0,19.85,R,British Gas Business,,
Community Care,Community Care Team,Social Care and Health,Premises,Energy Costs,Electricity.,,11/01/2021,10836384,0,125.81,R,British Gas Trading Ltd,,
"Commercial, Corporate & landlord Services",Asset Management,Resources,Premises,Energy Costs,Gas.,,11/01/2021,10836386,0,35.59,R,E.ON Energy,,
"Commercial, Corporate & landlord Services",Asset Management,Resources,Premises,Energy Costs,Electricity.,,11/01/2021,10836388,0,78.83,R,EDF Energy,,
Schools Total,School Group 2 � Pupil Capacity 144-314,MCC Schools,Employees,Direct Employee Expenses,Agency Staff,,11/01/2021,10836396,0,182,R,New Directions Education Ltd,,
"Commercial, Corporate & landlord Services",Property Services & Facilities Management,Resources,Third Party Payments,Third Party,General Contracts,,18/01/2021,10836397,90039385,"2,191.95",R,Box-It Wales and Severn,,
"Commercial, Corporate & landlord Services",Procurement,Resources,Income,Customer and Client Receipts,External Fee Income,,11/01/2021,10836399,0,"-1,380.69",R,Randstad Solutions Ltd,,
"Commercial, Corporate & landlord Services",Procurement,Resources,Income,Customer and Client Receipts,External Fee Income,,11/01/2021,10836401,0,"-1,029.94",R,Randstad Solutions Ltd,,
"Commercial, Corporate & landlord Services",Procurement,Resources,Income,Customer and Client Receipts,External Fee Income,,11/01/2021,10836402,0,"-1,028.30",R,Randstad Solutions Ltd,,
"Commercial, Corporate & landlord Services",Property Services & Facilities Management,Resources,Premises,"Repairs, Alterations & Maintenance of Buildings",Premises Repairs And Maintenance,,12/01/2021,10836477,90053629,80,R,Ambassador Fire & Security LTD,,
"Commercial, Corporate & landlord Services",Property Services & Facilities Management,Resources,Premises,"Repairs, Alterations & Maintenance of Buildings",Premises Repairs And Maintenance,,12/01/2021,10836480,90055748,80,R,Ambassador Fire & Security LTD,,
"Commercial, Corporate & landlord Services",Property Services & Facilities Management,Resources,Premises,"Repairs, Alterations & Maintenance of Buildings",Building Improvements / Maintenance,,12/01/2021,10836481,90055507,"1,265.23",R,Ambassador Fire & Security LTD,,
"Commercial, Corporate & landlord Services",Property Services & Facilities Management,Resources,Premises,"Repairs, Alterations & Maintenance of Buildings",Premises Repairs And Maintenance,,12/01/2021,10836482,90054582,120.58,R,Lorne Stewart  Plc,,
"Commercial, Corporate & landlord Services",Property Services & Facilities Management,Resources,Premises,"Repairs, Alterations & Maintenance of Buildings",Building Improvements / Maintenance,,12/01/2021,10836483,90055041,106.46,R,Lorne Stewart  Plc,,
"Commercial, Corporate & landlord Services",Property Services & Facilities Management,Resources,Premises,"Repairs, Alterations & Maintenance of Buildings",Building Improvements / Maintenance,,25/01/2021,10836540,90055088,521.97,R,Lorne Stewart  Plc,,
"Commercial, Corporate & landlord Services",Property Services & Facilities Management,Resources,Premises,"Repairs, Alterations & Maintenance of Buildings",Building Improvements / Maintenance,,12/01/2021,10836544,90055092,80.97,R,Lorne Stewart  Plc,,
"Commercial, Corporate & landlord Services",Property Services & Facilities Management,Resources,Premises,"Repairs, Alterations & Maintenance of Buildings",Building Improvements / Maintenance,,12/01/2021,10836548,90055095,213.45,R,Lorne Stewart  Plc,,
"Commercial, Corporate & landlord Services",Property Services & Facilities Management,Resources,Premises,"Repairs, Alterations & Maintenance of Buildings",Building Improvements / Maintenance,,25/01/2021,10836551,90055080,157.44,R,Lorne Stewart  Plc,,
"Commercial, Corporate & landlord Services",Property Services & Facilities Management,Resources,Premises,"Repairs, Alterations & Maintenance of Buildings",Building Improvements / Maintenance,,12/01/2021,10836553,90055112,279.93,R,Lorne Stewart  Plc,,
"Commercial, Corporate & landlord Services",Property Services & Facilities Management,Resources,Premises,"Repairs, Alterations & Maintenance of Buildings",Building Improvements / Maintenance,,12/01/2021,10836579,90055114,803.48,R,Lorne Stewart  Plc,,
"Commercial, Corporate & landlord Services",Property Services & Facilities Management,Resources,Premises,"Repairs, Alterations & Maintenance of Buildings",Building Improvements / Maintenance,,12/01/2021,10836582,90055131,93.72,R,Lorne Stewart  Plc,,
"Commercial, Corporate & landlord Services",Property Services & Facilities Management,Resources,Premises,"Repairs, Alterations & Maintenance of Buildings",Building Improvements / Maintenance,,12/01/2021,10836584,90055140,119.21,R,Lorne Stewart  Plc,,
"Commercial, Corporate & landlord Services",Property Services & Facilities Management,Resources,Premises,"Repairs, Alterations & Maintenance of Buildings",Building Improvements / Maintenance,,12/01/2021,10836586,90055226,402.5,R,Lorne Stewart  Plc,,
"Commercial, Corporate & landlord Services",Property Services & Facilities Management,Resources,Premises,"Repairs, Alterations & Maintenance of Buildings",Building Improvements / Maintenance,,12/01/2021,10836589,90055241,136.13,R,Lorne Stewart  Plc,,
"Commercial, Corporate & landlord Services",Property Services & Facilities Management,Resources,Premises,"Repairs, Alterations & Maintenance of Buildings",Building Improvements / Maintenance,,12/01/2021,10836592,90055132,55.48,R,Lorne Stewart  Plc,,
"Commercial, Corporate & landlord Services",Property Services & Facilities Management,Resources,Premises,"Repairs, Alterations & Maintenance of Buildings",Premises Repairs And Maintenance,,12/01/2021,10836599,90055316,50.98,R,Lorne Stewart  Plc,,
"Commercial, Corporate & landlord Services",Property Services & Facilities Management,Resources,Premises,"Repairs, Alterations & Maintenance of Buildings",Premises Repairs And Maintenance,,12/01/2021,10836600,90055317,197,R,Lorne Stewart  Plc,,
"Commercial, Corporate & landlord Services",Property Services & Facilities Management,Resources,Premises,"Repairs, Alterations & Maintenance of Buildings",Building Improvements / Maintenance,,12/01/2021,10836601,90055412,80.97,R,Lorne Stewart  Plc,,
"Commercial, Corporate & landlord Services",Property Services & Facilities Management,Resources,Premises,"Repairs, Alterations & Maintenance of Buildings",Building Improvements / Maintenance,,12/01/2021,10836602,90055415,182.93,R,Lorne Stewart  Plc,,
"Commercial, Corporate & landlord Services",Property Services & Facilities Management,Resources,Premises,"Repairs, Alterations & Maintenance of Buildings",Premises Repairs And Maintenance,,12/01/2021,10836603,90055351,88.18,R,Lorne Stewart  Plc,,
"Commercial, Corporate & landlord Services",Property Services & Facilities Management,Resources,Premises,"Repairs, Alterations & Maintenance of Buildings",Building Improvements / Maintenance,,12/01/2021,10836604,90055429,68.91,R,Lorne Stewart  Plc,,
"Commercial, Corporate & landlord Services",Property Services & Facilities Management,Resources,Premises,"Repairs, Alterations & Maintenance of Buildings",Premises Repairs And Maintenance,,12/01/2021,10836605,90054931,253.66,R,Lorne Stewart  Plc,,
"Commercial, Corporate & landlord Services",Property Services & Facilities Management,Resources,Premises,"Repairs, Alterations & Maintenance of Buildings",Building Improvements / Maintenance,,12/01/2021,10836606,90055005,55.48,R,Lorne Stewart  Plc,,
"Commercial, Corporate & landlord Services",Property Services & Facilities Management,Resources,Premises,"Repairs, Alterations & Maintenance of Buildings",Building Improvements / Maintenance,,25/01/2021,10836607,90055213,474.86,R,Lorne Stewart  Plc,,
"Commercial, Corporate & landlord Services",Property Services & Facilities Management,Resources,Supplies & Services,Communications and Computing,IT Software,,14/01/2021,10836608,90055336,600.01,R,Lorne Stewart  Plc,,
"Commercial, Corporate & landlord Services",Property Services & Facilities Management,Resources,Premises,"Repairs, Alterations & Maintenance of Buildings",Premises Repairs And Maintenance,,12/01/2021,10836609,90055631,66.67,R,Circuit Compliance t/a Circuit Electrical Testing Ltd,,
"Commercial, Corporate & landlord Services",Property Services & Facilities Management,Resources,Premises,"Repairs, Alterations & Maintenance of Buildings",Premises Repairs And Maintenance,,12/01/2021,10836610,90055189,11.21,R,Circuit Compliance t/a Circuit Electrical Testing Ltd,,
"Commercial, Corporate & landlord Services",Property Services & Facilities Management,Resources,Premises,"Repairs, Alterations & Maintenance of Buildings",Premises Repairs And Maintenance,,14/01/2021,10836611,90054814,745.76,R,Circuit Compliance t/a Circuit Electrical Testing Ltd,,
"Commercial, Corporate & landlord Services",Property Services & Facilities Management,Resources,Premises,"Repairs, Alterations & Maintenance of Buildings",Premises Repairs And Maintenance,,14/01/2021,10836612,90055623,5.9,R,Circuit Compliance t/a Circuit Electrical Testing Ltd,,
"Commercial, Corporate & landlord Services",Property Services & Facilities Management,Resources,Premises,"Repairs, Alterations & Maintenance of Buildings",Premises Repairs And Maintenance,,14/01/2021,10836613,90055609,185.26,R,Circuit Compliance t/a Circuit Electrical Testing Ltd,,
"Commercial, Corporate & landlord Services",Property Services & Facilities Management,Resources,Premises,"Repairs, Alterations & Maintenance of Buildings",Premises Repairs And Maintenance,,14/01/2021,10836614,90055616,31.86,R,Circuit Compliance t/a Circuit Electrical Testing Ltd,,
"Commercial, Corporate & landlord Services",Property Services & Facilities Management,Resources,Premises,"Repairs, Alterations & Maintenance of Buildings",Premises Repairs And Maintenance,,12/01/2021,10836615,90053590,29.5,R,Circuit Compliance t/a Circuit Electrical Testing Ltd,,
"Commercial, Corporate & landlord Services",Property Services & Facilities Management,Resources,Premises,"Repairs, Alterations & Maintenance of Buildings",Premises Repairs And Maintenance,,12/01/2021,10836617,90055608,160.48,R,Circuit Compliance t/a Circuit Electrical Testing Ltd,,
"Commercial, Corporate & landlord Services",Property Services & Facilities Management,Resources,Premises,"Repairs, Alterations & Maintenance of Buildings",Building Improvements / Maintenance,,12/01/2021,10836632,760016129,"1,197.00",R,Springvale Wproofing Ltd,,
"Commercial, Corporate & landlord Services",Property Services & Facilities Management,Resources,Premises,"Repairs, Alterations & Maintenance of Buildings",Building Improvements / Maintenance,,25/01/2021,10836633,90038105,450,R,Osprey Services,,
"Commercial, Corporate & landlord Services",Property Services & Facilities Management,Resources,Premises,"Repairs, Alterations & Maintenance of Buildings",Premises Repairs And Maintenance,,14/01/2021,10836644,90053587,564.04,R,Circuit Compliance t/a Circuit Electrical Testing Ltd,,
"Commercial, Corporate & landlord Services",Property Services & Facilities Management,Resources,Premises,"Repairs, Alterations & Maintenance of Buildings",Premises Repairs And Maintenance,,14/01/2021,10836645,90053589,19.47,R,Circuit Compliance t/a Circuit Electrical Testing Ltd,,
"Commercial, Corporate & landlord Services",Property Services & Facilities Management,Resources,Premises,"Repairs, Alterations & Maintenance of Buildings",Premises Repairs And Maintenance,,13/01/2021,10836646,90053588,71.39,R,Circuit Compliance t/a Circuit Electrical Testing Ltd,,
"Commercial, Corporate & landlord Services",Property Services & Facilities Management,Resources,Premises,"Repairs, Alterations & Maintenance of Buildings",Premises Repairs And Maintenance,,13/01/2021,10836648,90055194,261.37,R,Circuit Compliance t/a Circuit Electrical Testing Ltd,,
"Commercial, Corporate & landlord Services",Property Services & Facilities Management,Resources,Premises,"Repairs, Alterations & Maintenance of Buildings",Premises Repairs And Maintenance,,13/01/2021,10836649,90055195,5.9,R,Circuit Compliance t/a Circuit Electrical Testing Ltd,,
"Commercial, Corporate & landlord Services",Property Services & Facilities Management,Resources,Premises,"Repairs, Alterations & Maintenance of Buildings",Building Improvements / Maintenance,,14/01/2021,10836714,90055468,879.04,R,EFS Systems (UK) Ltd,,
"Commercial, Corporate & landlord Services",Property Services & Facilities Management,Resources,Premises,"Repairs, Alterations & Maintenance of Buildings",Building Improvements / Maintenance,,13/01/2021,10836721,90055772,104.18,R,EFS Systems (UK) Ltd,,
"Commercial, Corporate & landlord Services",Property Services & Facilities Management,Resources,Premises,"Repairs, Alterations & Maintenance of Buildings",Building Improvements / Maintenance,,13/01/2021,10836722,90055796,402.43,R,EFS Systems (UK) Ltd,,
Business Growth and Enterprise,Borough Theatre,Enterprise,Premises,"Repairs, Alterations & Maintenance of Buildings",Building Improvements / Maintenance,,13/01/2021,10836723,90055824,23,R,EFS Systems (UK) Ltd,,
"Commercial, Corporate & landlord Services",Property Services & Facilities Management,Resources,Premises,"Repairs, Alterations & Maintenance of Buildings",Building Improvements / Maintenance,,14/01/2021,10836724,90055830,132.52,R,EFS Systems (UK) Ltd,,
"Commercial, Corporate & landlord Services",Property Services & Facilities Management,Resources,Premises,"Repairs, Alterations & Maintenance of Buildings",Building Improvements / Maintenance,,14/01/2021,10836725,90055837,248.17,R,EFS Systems (UK) Ltd,,
"Commercial, Corporate & landlord Services",Property Services & Facilities Management,Resources,Premises,"Repairs, Alterations & Maintenance of Buildings",Building Improvements / Maintenance,,13/01/2021,10836728,90055883,74,R,EFS Systems (UK) Ltd,,
"Commercial, Corporate & landlord Services",Property Services & Facilities Management,Resources,Premises,"Repairs, Alterations & Maintenance of Buildings",Building Improvements / Maintenance,,13/01/2021,10836729,90055884,50.52,R,EFS Systems (UK) Ltd,,
"Commercial, Corporate & landlord Services",Property Services & Facilities Management,Resources,Premises,"Repairs, Alterations & Maintenance of Buildings",Building Improvements / Maintenance,,13/01/2021,10836731,90055904,117.65,R,EFS Systems (UK) Ltd,,
"Commercial, Corporate & landlord Services",Property Services & Facilities Management,Resources,Premises,"Repairs, Alterations & Maintenance of Buildings",Building Improvements / Maintenance,,13/01/2021,10836858,90055908,59.33,R,EFS Systems (UK) Ltd,,
"Commercial, Corporate & landlord Services",Property Services & Facilities Management,Resources,Premises,"Repairs, Alterations & Maintenance of Buildings",Building Improvements / Maintenance,,14/01/2021,10836859,90055910,470.36,R,EFS Systems (UK) Ltd,,
"Commercial, Corporate & landlord Services",Property Services & Facilities Management,Resources,Premises,"Repairs, Alterations & Maintenance of Buildings",Building Improvements / Maintenance,,13/01/2021,10836860,90055939,58.83,R,EFS Systems (UK) Ltd,,
"Commercial, Corporate & landlord Services",Property Services & Facilities Management,Resources,Premises,"Repairs, Alterations & Maintenance of Buildings",Building Improvements / Maintenance,,15/01/2021,10836861,90055958,93.53,R,EFS Systems (UK) Ltd,,
"Commercial, Corporate & landlord Services",Property Services & Facilities Management,Resources,Premises,"Repairs, Alterations & Maintenance of Buildings",Building Improvements / Maintenance,,13/01/2021,10836862,90055994,75.02,R,EFS Systems (UK) Ltd,,
"Commercial, Corporate & landlord Services",Property Services & Facilities Management,Resources,Premises,"Repairs, Alterations & Maintenance of Buildings",Building Improvements / Maintenance,,15/01/2021,10836863,90056000,34.5,R,EFS Systems (UK) Ltd,,
Neighbourhood Services,Waste and Street Services,Enterprise,Third Party Payments,Third Party,Fencing/Walls Barriers,,13/01/2021,10836869,10106714,"1,135.00",R,Forest Products Ltd,,
"Commercial, Corporate & landlord Services",Property Services & Facilities Management,Resources,Premises,"Repairs, Alterations & Maintenance of Buildings",Building Improvements / Maintenance,,15/01/2021,10836882,760016163,80.5,R,EFS Systems (UK) Ltd,,
"Commercial, Corporate & landlord Services",Property Services & Facilities Management,Resources,Premises,"Repairs, Alterations & Maintenance of Buildings",Building Improvements / Maintenance,,15/01/2021,10836883,760016317,32.7,R,EFS Systems (UK) Ltd,,
"Commercial, Corporate & landlord Services",Property Services & Facilities Management,Resources,Premises,"Repairs, Alterations & Maintenance of Buildings",Building Improvements / Maintenance,,14/01/2021,10836884,760016324,23,R,EFS Systems (UK) Ltd,,
"Commercial, Corporate & landlord Services",Property Services & Facilities Management,Resources,Premises,"Repairs, Alterations & Maintenance of Buildings",Building Improvements / Maintenance,,14/01/2021,10836885,760016331,92.5,R,EFS Systems (UK) Ltd,,
"Commercial, Corporate & landlord Services",Property Services & Facilities Management,Resources,Premises,"Repairs, Alterations & Maintenance of Buildings",Building Improvements / Maintenance,,14/01/2021,10836886,760016215,79.78,R,EFS Systems (UK) Ltd,,
"Commercial, Corporate & landlord Services",Property Services & Facilities Management,Resources,Premises,"Repairs, Alterations & Maintenance of Buildings",Building Improvements / Maintenance,,14/01/2021,10836887,760016218,141.24,R,EFS Systems (UK) Ltd,,
"Commercial, Corporate & landlord Services",Property Services & Facilities Management,Resources,Premises,"Repairs, Alterations & Maintenance of Buildings",Building Improvements / Maintenance,,15/01/2021,10836888,760016234,131.7,R,EFS Systems (UK) Ltd,,
"Commercial, Corporate & landlord Services",Property Services & Facilities Management,Resources,Premises,"Repairs, Alterations & Maintenance of Buildings",Building Improvements / Maintenance,,14/01/2021,10836889,760016205,96.22,R,EFS Systems (UK) Ltd,,
"Commercial, Corporate & landlord Services",Property Services & Facilities Management,Resources,Premises,"Repairs, Alterations & Maintenance of Buildings",Building Improvements / Maintenance,,14/01/2021,10836890,760016242,52.14,R,EFS Systems (UK) Ltd,,
"Commercial, Corporate & landlord Services",Property Services & Facilities Management,Resources,Premises,"Repairs, Alterations & Maintenance of Buildings",Building Improvements / Maintenance,,15/01/2021,10836891,760016243,64.62,R,EFS Systems (UK) Ltd,,
"Commercial, Corporate & landlord Services",Property Services & Facilities Management,Resources,Premises,"Repairs, Alterations & Maintenance of Buildings",Building Improvements / Maintenance,,14/01/2021,10836892,760016245,149.49,R,EFS Systems (UK) Ltd,,
"Commercial, Corporate & landlord Services",Property Services & Facilities Management,Resources,Premises,"Repairs, Alterations & Maintenance of Buildings",Building Improvements / Maintenance,,14/01/2021,10836893,760016259,"2,106.08",R,EFS Systems (UK) Ltd,,
"Commercial, Corporate & landlord Services",Property Services & Facilities Management,Resources,Premises,"Repairs, Alterations & Maintenance of Buildings",Building Improvements / Maintenance,,15/01/2021,10836894,760016260,74,R,EFS Systems (UK) Ltd,,
"Commercial, Corporate & landlord Services",Property Services & Facilities Management,Resources,Premises,"Repairs, Alterations & Maintenance of Buildings",Building Improvements / Maintenance,,14/01/2021,10836895,760016162,23,R,EFS Systems (UK) Ltd,,
"Commercial, Corporate & landlord Services",Property Services & Facilities Management,Resources,Premises,"Repairs, Alterations & Maintenance of Buildings",Building Improvements / Maintenance,,15/01/2021,10836896,760016261,113.9,R,EFS Systems (UK) Ltd,,
"Commercial, Corporate & landlord Services",Property Services & Facilities Management,Resources,Premises,"Repairs, Alterations & Maintenance of Buildings",Building Improvements / Maintenance,,14/01/2021,10836897,760016269,60.18,R,EFS Systems (UK) Ltd,,
"Commercial, Corporate & landlord Services",Property Services & Facilities Management,Resources,Premises,"Repairs, Alterations & Maintenance of Buildings",Building Improvements / Maintenance,,14/01/2021,10836898,760016287,67.32,R,EFS Systems (UK) Ltd,,
"Commercial, Corporate & landlord Services",Property Services & Facilities Management,Resources,Premises,"Repairs, Alterations & Maintenance of Buildings",Building Improvements / Maintenance,,14/01/2021,10836899,760016290,105.97,R,EFS Systems (UK) Ltd,,
"Commercial, Corporate & landlord Services",Property Services & Facilities Management,Resources,Premises,"Repairs, Alterations & Maintenance of Buildings",Building Improvements / Maintenance,,15/01/2021,10836900,760016293,75.88,R,EFS Systems (UK) Ltd,,
"Commercial, Corporate & landlord Services",Property Services & Facilities Management,Resources,Premises,"Repairs, Alterations & Maintenance of Buildings",Building Improvements / Maintenance,,15/01/2021,10836901,760016299,48.52,R,EFS Systems (UK) Ltd,,
"Commercial, Corporate & landlord Services",Property Services & Facilities Management,Resources,Premises,"Repairs, Alterations & Maintenance of Buildings",Building Improvements / Maintenance,,15/01/2021,10836902,760016305,81.56,R,EFS Systems (UK) Ltd,,
"Commercial, Corporate & landlord Services",Property Services & Facilities Management,Resources,Premises,"Repairs, Alterations & Maintenance of Buildings",Building Improvements / Maintenance,,15/01/2021,10836903,760016326,273.14,R,EFS Systems (UK) Ltd,,
"Commercial, Corporate & landlord Services",Property Services & Facilities Management,Resources,Premises,"Repairs, Alterations & Maintenance of Buildings",Building Improvements / Maintenance,,15/01/2021,10838596,760014953,80,R,Ambassador Fire & Security LTD,,
"Commercial, Corporate & landlord Services",Property Services & Facilities Management,Resources,Premises,"Repairs, Alterations & Maintenance of Buildings",Building Improvements / Maintenance,,15/01/2021,10838597,760014950,50,R,Ambassador Fire & Security LTD,,
"Commercial, Corporate & landlord Services",Property Services & Facilities Management,Resources,Premises,"Repairs, Alterations & Maintenance of Buildings",Building Improvements / Maintenance,,15/01/2021,10838632,760016217,125,R,Industrial Door Services,,
"Commercial, Corporate & landlord Services",Property Services & Facilities Management,Resources,Premises,"Repairs, Alterations & Maintenance of Buildings",Building Improvements / Maintenance,,15/01/2021,10838633,760015564,"8,951.94",R,Industrial Door Services,,
Children Services,Children Services Other,Social Care and Health,Supplies & Services,Services,Legal Costs,,14/01/2021,10838635,10106994,600,R,REDACTED PERSONAL DATA,,
"Commercial, Corporate & landlord Services",Property Services & Facilities Management,Resources,Premises,"Repairs, Alterations & Maintenance of Buildings",Building Improvements / Maintenance,,14/01/2021,10838637,760015720,75,R,Industrial Door Services,,
"Commercial, Corporate & landlord Services",Property Services & Facilities Management,Resources,Premises,"Repairs, Alterations & Maintenance of Buildings",Building Improvements / Maintenance,,15/01/2021,10838657,760016167,826.94,R,Fire Safety Direct,,
"Commercial, Corporate & landlord Services",Property Services & Facilities Management,Resources,Premises,"Repairs, Alterations & Maintenance of Buildings",Building Improvements / Maintenance,,15/01/2021,10838717,760016176,840,R,Industrial Door Services,,
"Commercial, Corporate & landlord Services",Property Services & Facilities Management,Resources,Premises,"Repairs, Alterations & Maintenance of Buildings",Building Improvements / Maintenance,,15/01/2021,10838718,760016038,65,R,Industrial Door Services,,
"Commercial, Corporate & landlord Services",Property Services & Facilities Management,Resources,Premises,"Repairs, Alterations & Maintenance of Buildings",Premises Repairs And Maintenance,,15/01/2021,10838720,90055734,105,R,Development Plus Limited,,
"Commercial, Corporate & landlord Services",Property Services & Facilities Management,Resources,Premises,"Repairs, Alterations & Maintenance of Buildings",Building Improvements / Maintenance,,15/01/2021,10838722,90055659,"2,861.20",R,Industrial Door Services,,
Neighbourhood Services,Highways,Enterprise,Premises,"Repairs, Alterations & Maintenance of Buildings",Building Improvements / Maintenance,,15/01/2021,10838733,816492,285,R,Thomas Waste Management Ltd,,
Neighbourhood Services,Highways,Enterprise,Supplies & Services,"Equipment, Furniture and Materials",Repairs & Maintenance.,,15/01/2021,10838734,816456,417.71,R,KPR Engineering (M&E) Ltd,,
Neighbourhood Services,Highways,Enterprise,Supplies & Services,"Equipment, Furniture and Materials",Materials & Consumables.,,15/01/2021,10838739,816148,"1,562.70",R,Morris's of Usk Garden Centre & Nurseries Ltd,,
Neighbourhood Services,Highways,Enterprise,Supplies & Services,"Equipment, Furniture and Materials",Materials & Consumables.,,15/01/2021,10838741,816631,"1,325.00",R,Morris's of Usk Garden Centre & Nurseries Ltd,,
Neighbourhood Services,Highways,Enterprise,Transport,Direct Transport Costs,Vechicles Repairs and Maintenance,,15/01/2021,10838743,816745,60,R,Speedy Asset Services Limited,,
Neighbourhood Services,Highways,Enterprise,Transport,Contract Hire and Operating Leases,Plant Hire Charge,,15/01/2021,10838744,815803,899,R,Speedy Asset Services Limited,,
Neighbourhood Services,Highways,Enterprise,Transport,Contract Hire and Operating Leases,Plant Hire Charge,,15/01/2021,10838745,815803,372,R,Speedy Asset Services Limited,,
Neighbourhood Services,Highways,Enterprise,Transport,Contract Hire and Operating Leases,Plant Hire Charge,,15/01/2021,10838746,815803,651,R,Speedy Asset Services Limited,,
Neighbourhood Services,Highways,Enterprise,Transport,Contract Hire and Operating Leases,Plant Hire Charge,,15/01/2021,10838749,813334,30,R,Forest Traffic Signals Ltd,,
Neighbourhood Services,Highways,Enterprise,Transport,Contract Hire and Operating Leases,Plant Hire Charge,,15/01/2021,10838750,811831,417.14,R,Forest Traffic Signals Ltd,,
Planning & Housing,Highways Dev & Car Parks,Enterprise,Supplies & Services,Services,Professional And Specialist Fees,,15/01/2021,10838751,816674,"60,450.00",R,Arup,,
Neighbourhood Services,Highways,Enterprise,Supplies & Services,"Equipment, Furniture and Materials",Materials & Consumables.,,15/01/2021,10838752,815517,"1,402.50",R,Morris's of Usk Garden Centre & Nurseries Ltd,,
Community Care,Community Care Team,Social Care and Health,Third Party Payments,Third Party,Third party payments NOT relating to goods or services,,26/01/2021,10838762,10109127,"11,250.00",R,Carers Trust Care South East Wales,,
Corporate (COL),Insurance,Corporate Costs & Levies,Supplies & Services,Miscellaneous Expenses,Insurance Settlement Expenditure(Direct),,26/01/2021,10838844,0,"2,450.00",R,Dolmans Solicitors,,
Neighbourhood Services,Highways,Enterprise,Transport,Contract Hire and Operating Leases,Plant Hire Charge,,15/01/2021,10838864,815803,"1,985.41",R,Speedy Asset Services Limited,,
Neighbourhood Services,Highways,Enterprise,Supplies & Services,"Equipment, Furniture and Materials",Materials & Consumables.,,15/01/2021,10838865,815930,242.88,R,Speedy Asset Services Limited,,
Neighbourhood Services,Highways,Enterprise,Transport,Contract Hire and Operating Leases,Plant Hire Charge,,15/01/2021,10838866,816469,585,R,Forest Traffic Signals Ltd,,
Neighbourhood Services,Highways,Enterprise,Supplies & Services,"Equipment, Furniture and Materials",Materials & Consumables.,,15/01/2021,10838870,816518,"2,048.17",R,Bradfords Building Supplies Ltd,,
Neighbourhood Services,Highways,Enterprise,Transport,Contract Hire and Operating Leases,Plant Hire Charge,,15/01/2021,10838880,816284,95,R,Gibbon Equipment Hire,,
Neighbourhood Services,Highways,Enterprise,Premises,Cleaning and Domestic Supplies,Premises Pest Control,,15/01/2021,10838882,10105955,45.5,R,P&P Pest Control,,
"Commercial, Corporate & landlord Services",Property Services & Facilities Management,Resources,Premises,"Repairs, Alterations & Maintenance of Buildings",Building Improvements / Maintenance,,15/01/2021,10838884,760016238,72.19,R,Tremorfa Ltd,,
"Commercial, Corporate & landlord Services",Property Services & Facilities Management,Resources,Premises,"Repairs, Alterations & Maintenance of Buildings",Premises Repairs And Maintenance,,15/01/2021,10838887,90053482,75,R,Industrial Door Services,,
Neighbourhood Services,Highways,Enterprise,Transport,Contract Hire and Operating Leases,Plant Hire Charge,,15/01/2021,10838889,816475,537,R,Skid Steer Hire Solutions,,
Neighbourhood Services,Highways,Enterprise,Transport,Contract Hire and Operating Leases,Plant Hire Charge,,15/01/2021,10838891,815894,230,R,Insite Portable Accommodation,,
Neighbourhood Services,Highways,Enterprise,Transport,Contract Hire and Operating Leases,Plant Hire Charge,,15/01/2021,10838892,815894,230,R,Insite Portable Accommodation,,
Neighbourhood Services,Highways,Enterprise,Transport,Contract Hire and Operating Leases,Plant Hire Charge,,15/01/2021,10838893,815894,230,R,Insite Portable Accommodation,,
Facilities & Fleet Management,Property Services -  Cleaning,Enterprise,Supplies & Services,"Equipment, Furniture and Materials",Materials & Consumables.,,15/01/2021,10838895,10103645,184,R,P&P Pest Control,,
Neighbourhood Services,Highways,Enterprise,Supplies & Services,"Equipment, Furniture and Materials",Materials & Consumables.,,15/01/2021,10838896,816528,327,R,A Jones & Co (Usk) Ltd,,
Neighbourhood Services,Highways,Enterprise,Supplies & Services,"Equipment, Furniture and Materials",Materials & Consumables.,,15/01/2021,10838898,10106677,6.67,R,A Jones & Co (Usk) Ltd,,
Neighbourhood Services,Highways,Enterprise,Transport,Contract Hire and Operating Leases,Plant Hire Charge,,15/01/2021,10838899,816385,108.57,R,Gibbon Equipment Hire,,
Neighbourhood Services,Highways,Enterprise,Supplies & Services,"Equipment, Furniture and Materials",Materials & Consumables.,,18/01/2021,10838900,10106677,50.34,R,A Jones & Co (Usk) Ltd,,
Neighbourhood Services,Highways,Enterprise,Transport,Contract Hire and Operating Leases,Plant Hire Charge,,15/01/2021,10838902,815425,924,R,South Wales Fork Trucks Hire Ltd,,
"Commercial, Corporate & landlord Services",Property Services & Facilities Management,Resources,Premises,"Repairs, Alterations & Maintenance of Buildings",Building Improvements / Maintenance,,22/01/2021,10838903,90056254,50,R,Ambassador Fire & Security LTD,,
Neighbourhood Services,Highways,Enterprise,Current Assets,Inventories,Stock Received Suspense,,15/01/2021,10838907,816453,"21,547.50",R,Estuary Oils,,
Neighbourhood Services,Highways,Enterprise,Transport,Contract Hire and Operating Leases,Plant Hire Charge,,15/01/2021,10838909,816027,135.72,R,Gibbon Equipment Hire,,
Business Growth and Enterprise,Strategic Projects � Transport & Regeneration,Enterprise,Supplies & Services,Grants and Subscriptions,Grants Payable,,15/01/2021,10838910,0,"33,492.00",R,Harris Coaches,,
Neighbourhood Services,Highways,Enterprise,Supplies & Services,"Equipment, Furniture and Materials",Materials & Consumables.,,15/01/2021,10838912,10105938,65.22,R,A Jones & Co (Usk) Ltd,,
Neighbourhood Services,Highways,Enterprise,Transport,Contract Hire and Operating Leases,Plant Hire Charge,,18/01/2021,10838984,814565,358.57,R,Forest Traffic Signals Ltd,,
Neighbourhood Services,Highways,Enterprise,Supplies & Services,"Equipment, Furniture and Materials",Materials & Consumables.,,19/01/2021,10838999,10107489,530,R,KPR Engineering (M&E) Ltd,,
Neighbourhood Services,Highways,Enterprise,Transport,Contract Hire and Operating Leases,Plant Hire Charge,,18/01/2021,10839000,10106437,417.14,R,Forest Traffic Signals Ltd,,
Neighbourhood Services,Highways,Enterprise,Transport,Contract Hire and Operating Leases,Plant Hire Charge,,18/01/2021,10839001,816497,398.57,R,Forest Traffic Signals Ltd,,
"Commercial, Corporate & landlord Services",Property Services & Facilities Management,Resources,Premises,"Repairs, Alterations & Maintenance of Buildings",Building Improvements / Maintenance,,25/01/2021,10839002,90054988,50,R,Ambassador Fire & Security LTD,,
Facilities & Fleet Management,Transport Department,Enterprise,Transport,Direct Transport Costs,All Other Non-Contract Transport Work.,,26/01/2021,10839016,0,"1,837.95",R,Dennis Eagle Limited,,
Facilities & Fleet Management,Transport Department,Enterprise,Transport,Direct Transport Costs,Spare Parts,,26/01/2021,10839035,0,485.91,R,Dennis Eagle Limited,,
Facilities & Fleet Management,Transport Department,Enterprise,Transport,Direct Transport Costs,Spare Parts,,26/01/2021,10839037,0,823.38,R,Dennis Eagle Limited,,
Facilities & Fleet Management,Transport Department,Enterprise,Transport,Contract Hire and Operating Leases,Vehicle Hire Charge,,26/01/2021,10839039,0,"1,028.56",R,Go Plant Fleet Services Ltd,,
Facilities & Fleet Management,Transport Department,Enterprise,Transport,Direct Transport Costs,Vehicle Collision Damage Costs,,26/01/2021,10839042,0,163.36,R,Whale Tankers Ltd,,
Neighbourhood Services,Highways,Enterprise,Supplies & Services,"Equipment, Furniture and Materials",Display Equipment,,18/01/2021,10839106,816325,398,R,Griffiths Signs & Equipment Co.,,
"Commercial, Corporate & landlord Services",Property Services & Facilities Management,Resources,Premises,"Repairs, Alterations & Maintenance of Buildings",Building Improvements / Maintenance,,29/01/2021,10839109,90044563,43.06,R,A.J Quinn Building Contractors Ltd,,
"Commercial, Corporate & landlord Services",Property Services & Facilities Management,Resources,Premises,"Repairs, Alterations & Maintenance of Buildings",Building Improvements / Maintenance,,25/01/2021,10839110,90054185,542.72,R,A.J Quinn Building Contractors Ltd,,
"Commercial, Corporate & landlord Services",Property Services & Facilities Management,Resources,Premises,"Repairs, Alterations & Maintenance of Buildings",Building Improvements / Maintenance,,25/01/2021,10839111,90055568,168.22,R,Ambassador Fire & Security LTD,,
Schools Total,School Group 7 � Pupil Capacity 501-1800,MCC Schools,Employees,Direct Employee Expenses,Agency Staff,,18/01/2021,10839112,0,185,R,New Directions Education Ltd,,
Schools Total,School Group 7 � Pupil Capacity 501-1800,MCC Schools,Employees,Direct Employee Expenses,Agency Staff,,18/01/2021,10839114,0,185,R,New Directions Education Ltd,,
Schools Total,School Group 7 � Pupil Capacity 501-1800,MCC Schools,Employees,Direct Employee Expenses,Agency Staff,,18/01/2021,10839116,0,185,R,New Directions Education Ltd,,
Schools Total,School Group 7 � Pupil Capacity 501-1800,MCC Schools,Employees,Direct Employee Expenses,Agency Staff,,18/01/2021,10839118,0,135.33,R,New Directions Education Ltd,,
Schools Total,School Group 7 � Pupil Capacity 501-1800,MCC Schools,Employees,Direct Employee Expenses,Agency Staff,,18/01/2021,10839120,0,135.33,R,New Directions Education Ltd,,
Schools Total,SCHGRP3 � School Group 3 � Pupil Capacity 315-500,MCC Schools,Employees,Direct Employee Expenses,Agency Staff,,18/01/2021,10839122,0,184,R,New Directions Education Ltd,,
Schools Total,SCHGRP3 � School Group 3 � Pupil Capacity 315-500,MCC Schools,Employees,Direct Employee Expenses,Agency Staff,,18/01/2021,10839124,0,184,R,New Directions Education Ltd,,
Schools Total,SCHGRP3 � School Group 3 � Pupil Capacity 315-500,MCC Schools,Employees,Direct Employee Expenses,Agency Staff,,18/01/2021,10839126,0,184,R,New Directions Education Ltd,,
Planning & Housing,General Fund Housing,Enterprise,Premises,Rents,Rents/Hire Of Premises.,,18/01/2021,10839127,0,500,R,REDACTED PERSONAL DATA,,
Planning & Housing,General Fund Housing,Enterprise,Premises,Rents,Rents/Hire Of Premises.,,18/01/2021,10839129,0,450,R,REDACTED PERSONAL DATA,,
Planning & Housing,General Fund Housing,Enterprise,Premises,Rents,Rents/Hire Of Premises.,,18/01/2021,10839131,0,625,R,REDACTED PERSONAL DATA,,
Planning & Housing,General Fund Housing,Enterprise,Premises,Rents,Rents/Hire Of Premises.,,18/01/2021,10839133,0,740,R,AR and RA Pook,,
Planning & Housing,General Fund Housing,Enterprise,Premises,Rents,Rents/Hire Of Premises.,,18/01/2021,10839135,0,590,R,REDACTED PERSONAL DATA,,
"Commercial, Corporate & landlord Services",Asset Management,Resources,Premises,Energy Costs,Electricity.,,18/01/2021,10839137,0,290,R,Western Power Distribution,,
"Commercial, Corporate & landlord Services",Asset Management,Resources,Premises,Water Services,Water Services-Metered.,,18/01/2021,10839139,0,15.02,R,Welsh Water,,
Schools Total,School Group 2 � Pupil Capacity 144-314,MCC Schools,Premises,Water Services,Water Services-Metered.,,18/01/2021,10839141,0,"1,826.45",R,Welsh Water,,
Schools Total,School Group 2 � Pupil Capacity 144-314,MCC Schools,Premises,Water Services,Water Services-Metered.,,18/01/2021,10839143,0,"1,509.27",R,Welsh Water,,
Schools Total,School Group 2 � Pupil Capacity 144-314,MCC Schools,Premises,Water Services,Water Services-Metered.,,18/01/2021,10839145,0,103.06,R,Welsh Water,,
Schools Total,SCHGRP3 � School Group 3 � Pupil Capacity 315-500,MCC Schools,Premises,Water Services,Water Services-Metered.,,18/01/2021,10839147,0,"2,488.47",R,Welsh Water,,
Facilities & Fleet Management,Home to School Transport Dept,Enterprise,Premises,Energy Costs,Liquid Gas.,,18/01/2021,10839149,0,432.55,R,Calor Gas Ltd,,
Schools Total,School Group 2 � Pupil Capacity 144-314,MCC Schools,Premises,Energy Costs,Electricity.,,18/01/2021,10839151,0,574.58,R,EDF Energy,,
Planning & Housing,General Fund Housing,Enterprise,Premises,Energy Costs,Gas.,,18/01/2021,10839153,0,73.31,R,Corona Energy,,
"Commercial, Corporate & landlord Services",Property Services & Facilities Management,Resources,Premises,Energy Costs,Gas.,,18/01/2021,10839155,0,"1,416.84",R,Corona Energy,,
Children Services,Children Services Other,Social Care and Health,Premises,Energy Costs,Gas.,,18/01/2021,10839157,0,187.61,R,Corona Energy,,
"Governance, Democracy & Support",Community Hubs,Chief Executive's Unit,Premises,Energy Costs,Gas.,,18/01/2021,10839159,0,29.46,R,Corona Energy,,
Schools Total,School Group 2 � Pupil Capacity 144-314,MCC Schools,Premises,Energy Costs,Gas.,,18/01/2021,10839161,0,468.78,R,Corona Energy,,
Finance & Business Devlopment,Attractions,MonLife Directorate,Premises,Energy Costs,Gas.,,18/01/2021,10839163,0,162.56,R,Corona Energy,,
"Commercial, Corporate & landlord Services",Asset Management,Resources,Premises,Energy Costs,Gas.,,18/01/2021,10839165,0,14.88,R,Corona Energy,,
Planning & Housing,General Fund Housing,Enterprise,Premises,Energy Costs,Gas.,,18/01/2021,10839166,0,85.87,R,Corona Energy,,
"Commercial, Corporate & landlord Services",Asset Management,Resources,Premises,Energy Costs,Gas.,,18/01/2021,10839168,0,181.75,R,Corona Energy,,
Adult Services,Direct Care,Social Care and Health,Premises,Energy Costs,Gas.,,18/01/2021,10839170,0,70.27,R,Corona Energy,,
Schools Total,School Group 2 � Pupil Capacity 144-314,MCC Schools,Premises,Energy Costs,Gas.,,18/01/2021,10839172,0,454.88,R,Corona Energy,,
"Commercial, Corporate & landlord Services",Asset Management,Resources,Premises,Energy Costs,Gas.,,18/01/2021,10839174,0,102.22,R,Corona Energy,,
"Commercial, Corporate & landlord Services",Property Services & Facilities Management,Resources,Premises,Energy Costs,Gas.,,18/01/2021,10839176,0,"1,825.17",R,Corona Energy,,
Schools Total,School Group 2 � Pupil Capacity 144-314,MCC Schools,Premises,Energy Costs,Gas.,,18/01/2021,10839178,0,424.03,R,Corona Energy,,
Schools Total,School Group 2 � Pupil Capacity 144-314,MCC Schools,Premises,Energy Costs,Gas.,,18/01/2021,10839180,0,512.3,R,Corona Energy,,
Schools Total,School Group 2 � Pupil Capacity 144-314,MCC Schools,Premises,Energy Costs,Gas.,,18/01/2021,10839182,0,"1,129.10",R,Corona Energy,,
Schools Total,School Group 1 � Pupil Capacity 1-143,MCC Schools,Premises,Energy Costs,Gas.,,18/01/2021,10839184,0,89.04,R,Corona Energy,,
Schools Total,SCHGRP3 � School Group 3 � Pupil Capacity 315-500,MCC Schools,Premises,Energy Costs,Gas.,,18/01/2021,10839186,0,"1,413.12",R,Corona Energy,,
Schools Total,School Group 2 � Pupil Capacity 144-314,MCC Schools,Premises,Energy Costs,Gas.,,18/01/2021,10839188,0,369.87,R,Corona Energy,,
Children Services,Supporting Children & Young People Service,Social Care and Health,Premises,Energy Costs,Gas.,,18/01/2021,10839190,0,84.91,R,Corona Energy,,
Neighbourhood Services,Waste and Street Services,Enterprise,Premises,Energy Costs,Gas.,,18/01/2021,10839191,0,115.9,R,Corona Energy,,
"Commercial, Corporate & landlord Services",Asset Management,Resources,Premises,Energy Costs,Gas.,,18/01/2021,10839193,0,403.21,R,Corona Energy,,
"Commercial, Corporate & landlord Services",Property Services & Facilities Management,Resources,Premises,Energy Costs,Gas.,,18/01/2021,10839195,0,336.94,R,Corona Energy,,
"Commercial, Corporate & landlord Services",Property Services & Facilities Management,Resources,Premises,Energy Costs,Gas.,,18/01/2021,10839197,0,99.88,R,Corona Energy,,
Schools Total,School Group 2 � Pupil Capacity 144-314,MCC Schools,Premises,Energy Costs,Gas.,,18/01/2021,10839199,0,252.86,R,Corona Energy,,
Adult Services,Direct Care Residential,Social Care and Health,Premises,Energy Costs,Gas.,,18/01/2021,10839201,0,"1,265.87",R,Corona Energy,,
"Commercial, Corporate & landlord Services",Property Services & Facilities Management,Resources,Premises,Energy Costs,Gas.,,18/01/2021,10839203,0,593.97,R,Corona Energy,,
Finance & Business Devlopment,Attractions,MonLife Directorate,Premises,Energy Costs,Gas.,,18/01/2021,10839205,0,470.21,R,Corona Energy,,
Schools Total,SCHGRP3 � School Group 3 � Pupil Capacity 315-500,MCC Schools,Premises,Energy Costs,Gas.,,18/01/2021,10839207,0,584.39,R,Corona Energy,,
Schools Total,School Group 2 � Pupil Capacity 144-314,MCC Schools,Premises,Energy Costs,Gas.,,18/01/2021,10839209,0,544.37,R,Corona Energy,,
Schools Total,School Group 2 � Pupil Capacity 144-314,MCC Schools,Premises,Energy Costs,Gas.,,18/01/2021,10839211,0,708.99,R,Corona Energy,,
"Leisure, Youth & Outdoor Adventure",Leisure Services,MonLife Directorate,Premises,Energy Costs,Gas.,,18/01/2021,10839213,0,"4,794.04",R,Corona Energy,,
Adult Services,Direct Care Residential,Social Care and Health,Premises,Energy Costs,Gas.,,18/01/2021,10839214,0,"1,829.63",R,Corona Energy,,
Schools Total,School Group 2 � Pupil Capacity 144-314,MCC Schools,Premises,Energy Costs,Gas.,,18/01/2021,10839216,0,15.81,R,Corona Energy,,
Schools Total,School Group 2 � Pupil Capacity 144-314,MCC Schools,Premises,Energy Costs,Gas.,,18/01/2021,10839218,0,379.14,R,Corona Energy,,
Schools Total,School Group 2 � Pupil Capacity 144-314,MCC Schools,Premises,Energy Costs,Gas.,,18/01/2021,10839220,0,410.44,R,Corona Energy,,
Adult Services,Day Centres,Social Care and Health,Premises,Energy Costs,Gas.,,18/01/2021,10839222,0,260.38,R,Corona Energy,,
Schools Total,School Group 7 � Pupil Capacity 501-1800,MCC Schools,Premises,Energy Costs,Gas.,,18/01/2021,10839224,0,"3,607.73",R,Corona Energy,,
"Governance, Democracy & Support",Community Hubs,Chief Executive's Unit,Premises,Energy Costs,Gas.,,18/01/2021,10839226,0,602.26,R,Corona Energy,,
Finance & Business Devlopment,Attractions,MonLife Directorate,Premises,Energy Costs,Gas.,,18/01/2021,10839228,0,237.98,R,Corona Energy,,
Schools Total,School Group 2 � Pupil Capacity 144-314,MCC Schools,Premises,Energy Costs,Gas.,,18/01/2021,10839230,0,289.52,R,Corona Energy,,
Schools Total,Schools,MCC Schools,Premises,Energy Costs,Electricity.,,18/01/2021,10839232,0,22.65,R,EDF Energy,,
Facilities & Fleet Management,Property Services -  Cleaning,Enterprise,Premises,Energy Costs,Electricity.,,18/01/2021,10839234,0,112.12,R,EDF Energy,,
Schools Total,School Group 2 � Pupil Capacity 144-314,MCC Schools,Premises,Energy Costs,Electricity.,,18/01/2021,10839236,0,644.62,R,EDF Energy,,
Facilities & Fleet Management,Property Services -  Cleaning,Enterprise,Premises,Energy Costs,Electricity.,,18/01/2021,10839238,0,110.48,R,EDF Energy,,
Planning & Housing,General Fund Housing,Enterprise,Premises,Energy Costs,Electricity.,,18/01/2021,10839240,0,139.28,R,EDF Energy,,
Facilities & Fleet Management,Home to School Transport Dept,Enterprise,Premises,Energy Costs,Electricity.,,18/01/2021,10839242,0,51.37,R,EDF Energy,,
Neighbourhood Services,Waste and Street Services,Enterprise,Premises,Energy Costs,Electricity.,,18/01/2021,10839244,0,22.47,R,EDF Energy,,
Neighbourhood Services,Waste and Street Services,Enterprise,Premises,Energy Costs,Electricity.,,18/01/2021,10839246,0,44.54,R,EDF Energy,,
Appropriations,Appropriations,Appropriations,Premises,Energy Costs,Electricity.,,18/01/2021,10839248,0,21.5,R,EDF Energy,,
Facilities & Fleet Management,Property Services -  Cleaning,Enterprise,Premises,Energy Costs,Electricity.,,18/01/2021,10839250,0,112.71,R,EDF Energy,,
Planning & Housing,Highways Dev & Car Parks,Enterprise,Premises,Energy Costs,Electricity.,,18/01/2021,10839252,0,104.54,R,EDF Energy,,
Neighbourhood Services,Waste and Street Services,Enterprise,Premises,Energy Costs,Electricity.,,18/01/2021,10839254,0,214.72,R,EDF Energy,,
"Governance, Democracy & Support",Community Hubs,Chief Executive's Unit,Premises,Energy Costs,Electricity.,,18/01/2021,10839256,0,116.74,R,EDF Energy,,
Schools Total,School Group 2 � Pupil Capacity 144-314,MCC Schools,Premises,Energy Costs,Electricity.,,18/01/2021,10839258,0,5.6,R,EDF Energy,,
"Commercial, Corporate & landlord Services",Property Services & Facilities Management,Resources,Premises,Energy Costs,Electricity.,,18/01/2021,10839260,0,191.32,R,EDF Energy,,
Schools Total,School Group 2 � Pupil Capacity 144-314,MCC Schools,Premises,Energy Costs,Electricity.,,18/01/2021,10839262,0,492.54,R,EDF Energy,,
"Commercial, Corporate & landlord Services",Asset Management,Resources,Premises,Energy Costs,Electricity.,,18/01/2021,10839264,0,19.88,R,EDF Energy,,
Children Services,Supporting Children & Young People Service,Social Care and Health,Premises,Energy Costs,Electricity.,,18/01/2021,10839266,0,61.02,R,EDF Energy,,
Neighbourhood Services,Waste and Street Services,Enterprise,Premises,Energy Costs,Electricity.,,18/01/2021,10839268,0,431.77,R,EDF Energy,,
Neighbourhood Services,Waste and Street Services,Enterprise,Premises,Energy Costs,Electricity.,,18/01/2021,10839270,0,10.53,R,EDF Energy,,
Finance & Business Devlopment,Attractions,MonLife Directorate,Premises,Energy Costs,Electricity.,,18/01/2021,10839272,0,240.21,R,EDF Energy,,
"Commercial, Corporate & landlord Services",Asset Management,Resources,Premises,Energy Costs,Electricity.,,18/01/2021,10839274,0,23.58,R,EDF Energy,,
Neighbourhood Services,Waste and Street Services,Enterprise,Premises,Energy Costs,Electricity.,,18/01/2021,10839276,0,7.85,R,EDF Energy,,
Planning & Housing,General Fund Housing,Enterprise,Premises,Energy Costs,Electricity.,,18/01/2021,10839278,0,56.93,R,EDF Energy,,
Public Protection,Public Protection,Social Care and Health,Premises,Energy Costs,Electricity.,,18/01/2021,10839280,0,134.55,R,EDF Energy,,
Finance & Business Devlopment,Attractions,MonLife Directorate,Premises,Energy Costs,Electricity.,,18/01/2021,10839282,0,61.23,R,EDF Energy,,
Adult Services,Direct Care,Social Care and Health,Premises,Energy Costs,Electricity.,,18/01/2021,10839283,0,115.5,R,EDF Energy,,
Schools Total,School Group 2 � Pupil Capacity 144-314,MCC Schools,Premises,Energy Costs,Electricity.,,18/01/2021,10839285,0,506.77,R,EDF Energy,,
"Commercial, Corporate & landlord Services",Asset Management,Resources,Premises,Energy Costs,Electricity.,,18/01/2021,10839287,0,18.23,R,EDF Energy,,
Schools Total,School Group 2 � Pupil Capacity 144-314,MCC Schools,Premises,Energy Costs,Electricity.,,18/01/2021,10839289,0,930.43,R,EDF Energy,,
Schools Total,School Group 1 � Pupil Capacity 1-143,MCC Schools,Premises,Energy Costs,Electricity.,,18/01/2021,10839291,0,32.13,R,EDF Energy,,
Schools Total,School Group 1 � Pupil Capacity 1-143,MCC Schools,Premises,Energy Costs,Electricity.,,18/01/2021,10839293,0,297.45,R,EDF Energy,,
Schools Total,SCHGRP3 � School Group 3 � Pupil Capacity 315-500,MCC Schools,Premises,Energy Costs,Electricity.,,18/01/2021,10839295,0,"1,427.75",R,EDF Energy,,
Schools Total,School Group 2 � Pupil Capacity 144-314,MCC Schools,Premises,Energy Costs,Electricity.,,18/01/2021,10839297,0,129.71,R,EDF Energy,,
Standards,Early Years,Children & Young People,Premises,Energy Costs,Electricity.,,18/01/2021,10839299,0,72.06,R,EDF Energy,,
Finance & Business Devlopment,Attractions,MonLife Directorate,Premises,Energy Costs,Electricity.,,18/01/2021,10839301,0,133.27,R,EDF Energy,,
Schools Total,School Group 2 � Pupil Capacity 144-314,MCC Schools,Premises,Energy Costs,Electricity.,,18/01/2021,10839303,0,477.22,R,EDF Energy,,
"Commercial, Corporate & landlord Services",Property Services & Facilities Management,Resources,Premises,Energy Costs,Electricity.,,18/01/2021,10839305,0,295.69,R,EDF Energy,,
Countryside & Culture,Countryside,MonLife Directorate,Premises,Energy Costs,Electricity.,,18/01/2021,10839307,0,54.7,R,EDF Energy,,
Countryside & Culture,Museums,MonLife Directorate,Premises,Energy Costs,Electricity.,,18/01/2021,10839309,0,219.69,R,EDF Energy,,
Facilities & Fleet Management,Property Services -  Cleaning,Enterprise,Premises,Energy Costs,Electricity.,,18/01/2021,10839311,0,30.79,R,EDF Energy,,
Facilities & Fleet Management,Property Services -  Cleaning,Enterprise,Premises,Energy Costs,Electricity.,,18/01/2021,10839313,0,24.11,R,EDF Energy,,
Adult Services,Direct Care Residential,Social Care and Health,Premises,Energy Costs,Electricity.,,18/01/2021,10839315,0,"1,828.06",R,EDF Energy,,
"Commercial, Corporate & landlord Services",Asset Management,Resources,Premises,Energy Costs,Electricity.,,18/01/2021,10839317,0,265.45,R,EDF Energy,,
Schools Total,School Group 2 � Pupil Capacity 144-314,MCC Schools,Premises,Energy Costs,Electricity.,,18/01/2021,10839319,0,679.12,R,EDF Energy,,
Schools Total,School Group 2 � Pupil Capacity 144-314,MCC Schools,Premises,Energy Costs,Electricity.,,18/01/2021,10839321,0,"1,129.61",R,EDF Energy,,
Schools Total,School Group 2 � Pupil Capacity 144-314,MCC Schools,Premises,Energy Costs,Electricity.,,18/01/2021,10839323,0,966.07,R,EDF Energy,,
Schools Total,School Group 1 � Pupil Capacity 1-143,MCC Schools,Premises,Energy Costs,Electricity.,,18/01/2021,10839325,0,226.64,R,EDF Energy,,
Neighbourhood Services,Waste and Street Services,Enterprise,Premises,Energy Costs,Electricity.,,18/01/2021,10839327,0,26.84,R,EDF Energy,,
"Commercial, Corporate & landlord Services",Asset Management,Resources,Premises,Energy Costs,Electricity.,,18/01/2021,10839329,0,10.5,R,EDF Energy,,
Schools Total,School Group 2 � Pupil Capacity 144-314,MCC Schools,Premises,Energy Costs,Electricity.,,18/01/2021,10839331,0,667.53,R,EDF Energy,,
"Governance, Democracy & Support",Community Hubs,Chief Executive's Unit,Premises,Energy Costs,Electricity.,,18/01/2021,10839333,0,400.24,R,EDF Energy,,
"Commercial, Corporate & landlord Services",Asset Management,Resources,Premises,Energy Costs,Electricity.,,18/01/2021,10839335,0,24.3,R,British Gas Business,,
"Leisure, Youth & Outdoor Adventure",Leisure Services,MonLife Directorate,Premises,Water Services,Water Services-Metered.,,18/01/2021,10839337,0,158.91,R,Welsh Water,,
Schools Total,School Group 7 � Pupil Capacity 501-1800,MCC Schools,Premises,Energy Costs,Electricity.,,18/01/2021,10839339,0,494.8,R,EDF Energy,,
"Leisure, Youth & Outdoor Adventure",Leisure Services,MonLife Directorate,Premises,Energy Costs,Electricity.,,18/01/2021,10839341,0,"4,040.06",R,EDF Energy,,
Schools Total,School Group 7 � Pupil Capacity 501-1800,MCC Schools,Premises,Energy Costs,Electricity.,,18/01/2021,10839343,0,"7,292.52",R,EDF Energy,,
"Leisure, Youth & Outdoor Adventure",Leisure Services,MonLife Directorate,Premises,Energy Costs,Electricity.,,18/01/2021,10839345,0,"5,574.59",R,EDF Energy,,
Schools Total,School Group 2 � Pupil Capacity 144-314,MCC Schools,Premises,Energy Costs,Electricity.,,18/01/2021,10839347,0,"1,016.75",R,EDF Energy,,
"Leisure, Youth & Outdoor Adventure",Youth & Education,MonLife Directorate,Premises,Energy Costs,Electricity.,,18/01/2021,10839349,0,517.99,R,EDF Energy,,
Schools Total,School Group 2 � Pupil Capacity 144-314,MCC Schools,Premises,Energy Costs,Electricity.,,18/01/2021,10839351,0,"1,237.65",R,EDF Energy,,
Schools Total,SCHGRP3 � School Group 3 � Pupil Capacity 315-500,MCC Schools,Premises,Energy Costs,Electricity.,,18/01/2021,10839353,0,"2,136.59",R,EDF Energy,,
"Leisure, Youth & Outdoor Adventure",Leisure Services,MonLife Directorate,Premises,Energy Costs,Electricity.,,18/01/2021,10839354,0,"2,162.92",R,EDF Energy,,
"Commercial, Corporate & landlord Services",Property Services & Facilities Management,Resources,Premises,Energy Costs,Electricity.,,18/01/2021,10839356,0,"1,510.15",R,EDF Energy,,
Schools Total,School Group 2 � Pupil Capacity 144-314,MCC Schools,Premises,Energy Costs,Electricity.,,18/01/2021,10839358,0,967.21,R,EDF Energy,,
"Commercial, Corporate & landlord Services",Property Services & Facilities Management,Resources,Premises,Energy Costs,Electricity.,,18/01/2021,10839360,0,"2,222.76",R,EDF Energy,,
"Commercial, Corporate & landlord Services",Asset Management,Resources,Premises,Energy Costs,Electricity.,,18/01/2021,10839362,0,282.12,R,EDF Energy,,
Schools Total,SCHGRP3 � School Group 3 � Pupil Capacity 315-500,MCC Schools,Premises,Energy Costs,Electricity.,,18/01/2021,10839364,0,"1,045.87",R,EDF Energy,,
Schools Total,School Group 7 � Pupil Capacity 501-1800,MCC Schools,Premises,Energy Costs,Electricity.,,18/01/2021,10839366,0,"6,131.08",R,EDF Energy,,
Facilities & Fleet Management,Property Services -  Cleaning,Enterprise,Premises,Energy Costs,Electricity.,,18/01/2021,10839368,0,-49.97,R,EDF Energy,,
Schools Total,School Group 2 � Pupil Capacity 144-314,MCC Schools,Premises,Energy Costs,Electricity.,,18/01/2021,10839370,0,568.11,R,EDF Energy,,
Neighbourhood Services,Waste and Street Services,Enterprise,Premises,Water Services,Water Services-Metered.,,18/01/2021,10839372,0,177.39,R,Welsh Water,,
"Commercial, Corporate & landlord Services",Asset Management,Resources,Premises,Water Services,Water Services-Metered.,,18/01/2021,10839374,0,252.19,R,Welsh Water,,
Neighbourhood Services,Waste and Street Services,Enterprise,Premises,Water Services,Water Services-Metered.,,18/01/2021,10839376,0,"1,553.80",R,Welsh Water,,
Facilities & Fleet Management,Property Services -  Cleaning,Enterprise,Premises,Water Services,Water Services-Metered.,,18/01/2021,10839378,0,262.62,R,Welsh Water,,
"Leisure, Youth & Outdoor Adventure",Leisure Services,MonLife Directorate,Premises,Water Services,Water Services-Metered.,,18/01/2021,10839380,0,"2,094.68",R,Welsh Water,,
Schools Total,School Group 7 � Pupil Capacity 501-1800,MCC Schools,Premises,Water Services,Water Services-Metered.,,18/01/2021,10839382,0,202.22,R,Welsh Water,,
Standards,Early Years,Children & Young People,Premises,Water Services,Water Services-Metered.,,18/01/2021,10839384,0,469.29,R,Welsh Water,,
"Commercial, Corporate & landlord Services",Asset Management,Resources,Premises,Water Services,Water Services-Metered.,,18/01/2021,10839386,0,16.52,R,Welsh Water,,
Finance & Business Devlopment,Attractions,MonLife Directorate,Premises,Water Services,Water Services-Metered.,,18/01/2021,10839388,0,221.13,R,Welsh Water,,
"Governance, Democracy & Support",Community Hubs,Chief Executive's Unit,Premises,Water Services,Water Services-Metered.,,18/01/2021,10839389,0,123.62,R,Welsh Water,,
"Commercial, Corporate & landlord Services",Property Services & Facilities Management,Resources,Premises,Water Services,Water Services-Metered.,,18/01/2021,10839391,0,54.29,R,Welsh Water,,
"Commercial, Corporate & landlord Services",Asset Management,Resources,Premises,Energy Costs,Electricity.,,18/01/2021,10839393,0,-573.62,R,EDF Energy,,
Schools Total,School Group 2 � Pupil Capacity 144-314,MCC Schools,Premises,Energy Costs,Electricity.,,18/01/2021,10839395,0,289.84,R,EDF Energy,,
Children Services,Children Services Other,Social Care and Health,Premises,Energy Costs,Electricity.,,18/01/2021,10839397,0,9.51,R,EDF Energy,,
"Commercial, Corporate & landlord Services",Asset Management,Resources,Premises,Energy Costs,Electricity.,,18/01/2021,10839399,0,573.62,R,EDF Energy,,
Schools Total,School Group 2 � Pupil Capacity 144-314,MCC Schools,Premises,Energy Costs,Electricity.,,18/01/2021,10839401,0,-352.54,R,EDF Energy,,
Countryside & Culture,Museums,MonLife Directorate,Premises,Water Services,Water Services-Metered.,,18/01/2021,10839403,0,185.25,R,Welsh Water,,
Children Services,Children Services Other,Social Care and Health,Premises,Energy Costs,Electricity.,,18/01/2021,10839405,0,-15.44,R,EDF Energy,,
Schools Total,School Group 2 � Pupil Capacity 144-314,MCC Schools,Premises,Energy Costs,Electricity.,,18/01/2021,10839407,0,-317.74,R,EDF Energy,,
Neighbourhood Services,Highways,Enterprise,Premises,Energy Costs,Electricity.,,18/01/2021,10839409,0,"-19,848.04",R,EDF Energy,,
"Commercial, Corporate & landlord Services",Property Services & Facilities Management,Resources,Premises,"Repairs, Alterations & Maintenance of Buildings",Building Improvements / Maintenance,,19/01/2021,10839410,760016036,302.5,R,A.J Quinn Building Contractors Ltd,,
"Commercial, Corporate & landlord Services",Property Services & Facilities Management,Resources,Premises,"Repairs, Alterations & Maintenance of Buildings",Premises Repairs And Maintenance,,19/01/2021,10839412,90052215,42.48,R,Circuit Compliance t/a Circuit Electrical Testing Ltd,,
"Commercial, Corporate & landlord Services",Property Services & Facilities Management,Resources,Premises,"Repairs, Alterations & Maintenance of Buildings",Premises Repairs And Maintenance,,19/01/2021,10839413,90052212,14.16,R,Circuit Compliance t/a Circuit Electrical Testing Ltd,,
"Commercial, Corporate & landlord Services",Property Services & Facilities Management,Resources,Premises,"Repairs, Alterations & Maintenance of Buildings",Premises Repairs And Maintenance,,19/01/2021,10839414,90053957,51.92,R,Circuit Compliance t/a Circuit Electrical Testing Ltd,,
"Commercial, Corporate & landlord Services",Property Services & Facilities Management,Resources,Premises,"Repairs, Alterations & Maintenance of Buildings",Premises Repairs And Maintenance,,19/01/2021,10839417,90054818,44.84,R,Circuit Compliance t/a Circuit Electrical Testing Ltd,,
"Commercial, Corporate & landlord Services",Property Services & Facilities Management,Resources,Premises,"Repairs, Alterations & Maintenance of Buildings",Building Improvements / Maintenance,,19/01/2021,10839418,90056132,73.98,R,Lorne Stewart  Plc,,
"Commercial, Corporate & landlord Services",Property Services & Facilities Management,Resources,Premises,"Repairs, Alterations & Maintenance of Buildings",Building Improvements / Maintenance,,20/01/2021,10839419,90056148,168.94,R,Lorne Stewart  Plc,,
"Commercial, Corporate & landlord Services",Property Services & Facilities Management,Resources,Premises,"Repairs, Alterations & Maintenance of Buildings",Building Improvements / Maintenance,,19/01/2021,10839420,90056153,99.47,R,Lorne Stewart  Plc,,
"Commercial, Corporate & landlord Services",Property Services & Facilities Management,Resources,Premises,"Repairs, Alterations & Maintenance of Buildings",Building Improvements / Maintenance,,21/01/2021,10839421,90056156,786.19,R,Lorne Stewart  Plc,,
"Commercial, Corporate & landlord Services",Property Services & Facilities Management,Resources,Premises,"Repairs, Alterations & Maintenance of Buildings",Building Improvements / Maintenance,,19/01/2021,10839422,90056149,80.97,R,Lorne Stewart  Plc,,
"Commercial, Corporate & landlord Services",Property Services & Facilities Management,Resources,Premises,"Repairs, Alterations & Maintenance of Buildings",Building Improvements / Maintenance,,21/01/2021,10839423,90056131,161.84,R,Lorne Stewart  Plc,,
"Commercial, Corporate & landlord Services",Property Services & Facilities Management,Resources,Premises,"Repairs, Alterations & Maintenance of Buildings",Building Improvements / Maintenance,,19/01/2021,10839424,90056161,918.75,R,Lorne Stewart  Plc,,
"Commercial, Corporate & landlord Services",Property Services & Facilities Management,Resources,Premises,"Repairs, Alterations & Maintenance of Buildings",Building Improvements / Maintenance,,19/01/2021,10839425,90056328,163.19,R,Lorne Stewart  Plc,,
"Commercial, Corporate & landlord Services",Property Services & Facilities Management,Resources,Premises,"Repairs, Alterations & Maintenance of Buildings",Building Improvements / Maintenance,,21/01/2021,10839426,90056182,137.7,R,Lorne Stewart  Plc,,
"Commercial, Corporate & landlord Services",Property Services & Facilities Management,Resources,Premises,"Repairs, Alterations & Maintenance of Buildings",Building Improvements / Maintenance,,19/01/2021,10839427,90056208,98.22,R,Lorne Stewart  Plc,,
"Commercial, Corporate & landlord Services",Property Services & Facilities Management,Resources,Premises,"Repairs, Alterations & Maintenance of Buildings",Building Improvements / Maintenance,,19/01/2021,10839428,90056223,112.21,R,Lorne Stewart  Plc,,
"Commercial, Corporate & landlord Services",Property Services & Facilities Management,Resources,Premises,"Repairs, Alterations & Maintenance of Buildings",Building Improvements / Maintenance,,21/01/2021,10839429,90056225,284.28,R,Lorne Stewart  Plc,,
"Commercial, Corporate & landlord Services",Property Services & Facilities Management,Resources,Premises,"Repairs, Alterations & Maintenance of Buildings",Building Improvements / Maintenance,,20/01/2021,10839458,90056233,285.29,R,Lorne Stewart  Plc,,
"Commercial, Corporate & landlord Services",Property Services & Facilities Management,Resources,Premises,"Repairs, Alterations & Maintenance of Buildings",Building Improvements / Maintenance,,19/01/2021,10839459,90056247,120.26,R,Lorne Stewart  Plc,,
"Commercial, Corporate & landlord Services",Property Services & Facilities Management,Resources,Premises,"Repairs, Alterations & Maintenance of Buildings",Building Improvements / Maintenance,,19/01/2021,10839460,90056246,86.72,R,Lorne Stewart  Plc,,
"Commercial, Corporate & landlord Services",Property Services & Facilities Management,Resources,Premises,"Repairs, Alterations & Maintenance of Buildings",Building Improvements / Maintenance,,20/01/2021,10839461,90056302,302.49,R,Lorne Stewart  Plc,,
"Commercial, Corporate & landlord Services",Property Services & Facilities Management,Resources,Premises,"Repairs, Alterations & Maintenance of Buildings",Building Improvements / Maintenance,,19/01/2021,10839463,90056304,73.98,R,Lorne Stewart  Plc,,
"Commercial, Corporate & landlord Services",Property Services & Facilities Management,Resources,Premises,"Repairs, Alterations & Maintenance of Buildings",Building Improvements / Maintenance,,19/01/2021,10839464,90056313,450.72,R,Lorne Stewart  Plc,,
"Commercial, Corporate & landlord Services",Property Services & Facilities Management,Resources,Premises,"Repairs, Alterations & Maintenance of Buildings",Building Improvements / Maintenance,,19/01/2021,10839471,90056314,61.23,R,Lorne Stewart  Plc,,
"Commercial, Corporate & landlord Services",Property Services & Facilities Management,Resources,Premises,"Repairs, Alterations & Maintenance of Buildings",Building Improvements / Maintenance,,19/01/2021,10839473,90056322,61.23,R,Lorne Stewart  Plc,,
"Commercial, Corporate & landlord Services",Property Services & Facilities Management,Resources,Premises,"Repairs, Alterations & Maintenance of Buildings",Building Improvements / Maintenance,,19/01/2021,10839476,90056385,73.98,R,Lorne Stewart  Plc,,
"Commercial, Corporate & landlord Services",Property Services & Facilities Management,Resources,Premises,"Repairs, Alterations & Maintenance of Buildings",Building Improvements / Maintenance,,19/01/2021,10839478,90056388,94.77,R,Lorne Stewart  Plc,,
Facilities & Fleet Management,Transport Department,Enterprise,Supplies & Services,"Equipment, Furniture and Materials",Materials & Consumables.,,26/01/2021,10839523,0,"1,185.00",R,Tennants Distribution Limited,,
Facilities & Fleet Management,Transport Department,Enterprise,Supplies & Services,"Equipment, Furniture and Materials",Repairs & Maintenance.,,26/01/2021,10839527,0,307.55,R,Safety-Kleen Uk Ltd,,
"Commercial, Corporate & landlord Services",Property Services & Facilities Management,Resources,Premises,"Repairs, Alterations & Maintenance of Buildings",Building Improvements / Maintenance,,19/01/2021,10839528,90055879,80.97,R,Lorne Stewart  Plc,,
"Commercial, Corporate & landlord Services",Property Services & Facilities Management,Resources,Premises,"Repairs, Alterations & Maintenance of Buildings",Building Improvements / Maintenance,,19/01/2021,10839529,90055947,184.61,R,Lorne Stewart  Plc,,
"Commercial, Corporate & landlord Services",Property Services & Facilities Management,Resources,Premises,"Repairs, Alterations & Maintenance of Buildings",Building Improvements / Maintenance,,19/01/2021,10839530,90055983,55.48,R,Lorne Stewart  Plc,,
"Commercial, Corporate & landlord Services",Property Services & Facilities Management,Resources,Premises,"Repairs, Alterations & Maintenance of Buildings",Building Improvements / Maintenance,,19/01/2021,10839531,90056007,632.14,R,Lorne Stewart  Plc,,
"Commercial, Corporate & landlord Services",Property Services & Facilities Management,Resources,Premises,"Repairs, Alterations & Maintenance of Buildings",Building Improvements / Maintenance,,19/01/2021,10839532,90056018,343.21,R,Lorne Stewart  Plc,,
"Commercial, Corporate & landlord Services",Property Services & Facilities Management,Resources,Premises,"Repairs, Alterations & Maintenance of Buildings",Building Improvements / Maintenance,,20/01/2021,10839817,90056016,55.48,R,Lorne Stewart  Plc,,
"Commercial, Corporate & landlord Services",Property Services & Facilities Management,Resources,Premises,"Repairs, Alterations & Maintenance of Buildings",Building Improvements / Maintenance,,20/01/2021,10839818,90056067,55.48,R,Lorne Stewart  Plc,,
"Commercial, Corporate & landlord Services",Property Services & Facilities Management,Resources,Premises,"Repairs, Alterations & Maintenance of Buildings",Building Improvements / Maintenance,,25/01/2021,10839819,90056023,227.11,R,Lorne Stewart  Plc,,
"Commercial, Corporate & landlord Services",Property Services & Facilities Management,Resources,Premises,"Repairs, Alterations & Maintenance of Buildings",Building Improvements / Maintenance,,25/01/2021,10839820,90056024,"1,249.89",R,Lorne Stewart  Plc,,
"Commercial, Corporate & landlord Services",Property Services & Facilities Management,Resources,Premises,"Repairs, Alterations & Maintenance of Buildings",Building Improvements / Maintenance,,20/01/2021,10839821,90055913,208.91,R,Lorne Stewart  Plc,,
"Commercial, Corporate & landlord Services",Property Services & Facilities Management,Resources,Premises,"Repairs, Alterations & Maintenance of Buildings",Building Improvements / Maintenance,,20/01/2021,10839822,90055905,408.91,R,Lorne Stewart  Plc,,
"Commercial, Corporate & landlord Services",Property Services & Facilities Management,Resources,Premises,"Repairs, Alterations & Maintenance of Buildings",Building Improvements / Maintenance,,20/01/2021,10839823,90055920,177.62,R,Lorne Stewart  Plc,,
"Commercial, Corporate & landlord Services",Property Services & Facilities Management,Resources,Premises,"Repairs, Alterations & Maintenance of Buildings",Building Improvements / Maintenance,,20/01/2021,10839824,90055926,"1,350.00",R,Lorne Stewart  Plc,,
"Commercial, Corporate & landlord Services",Property Services & Facilities Management,Resources,Premises,"Repairs, Alterations & Maintenance of Buildings",Building Improvements / Maintenance,,20/01/2021,10839826,90056006,402.83,R,Lorne Stewart  Plc,,
"Commercial, Corporate & landlord Services",Property Services & Facilities Management,Resources,Premises,"Repairs, Alterations & Maintenance of Buildings",Building Improvements / Maintenance,,20/01/2021,10839827,90056015,61.23,R,Lorne Stewart  Plc,,
"Commercial, Corporate & landlord Services",Property Services & Facilities Management,Resources,Premises,"Repairs, Alterations & Maintenance of Buildings",Building Improvements / Maintenance,,20/01/2021,10839828,90056017,386.66,R,Lorne Stewart  Plc,,
"Commercial, Corporate & landlord Services",Property Services & Facilities Management,Resources,Premises,"Repairs, Alterations & Maintenance of Buildings",Building Improvements / Maintenance,,20/01/2021,10839832,90056022,99.47,R,Lorne Stewart  Plc,,
"Commercial, Corporate & landlord Services",Property Services & Facilities Management,Resources,Premises,"Repairs, Alterations & Maintenance of Buildings",Building Improvements / Maintenance,,21/01/2021,10839833,90056117,252.85,R,Lorne Stewart  Plc,,
"Commercial, Corporate & landlord Services",Property Services & Facilities Management,Resources,Premises,"Repairs, Alterations & Maintenance of Buildings",Building Improvements / Maintenance,,20/01/2021,10839834,90056074,62.38,R,Lorne Stewart  Plc,,
"Commercial, Corporate & landlord Services",Property Services & Facilities Management,Resources,Premises,"Repairs, Alterations & Maintenance of Buildings",Building Improvements / Maintenance,,20/01/2021,10839835,90056070,99.47,R,Lorne Stewart  Plc,,
"Commercial, Corporate & landlord Services",Property Services & Facilities Management,Resources,Premises,"Repairs, Alterations & Maintenance of Buildings",Building Improvements / Maintenance,,20/01/2021,10839836,90056122,55.48,R,Lorne Stewart  Plc,,
"Commercial, Corporate & landlord Services",Property Services & Facilities Management,Resources,Premises,"Repairs, Alterations & Maintenance of Buildings",Building Improvements / Maintenance,,20/01/2021,10839841,760016296,"1,106.68",R,Springvale Wproofing Ltd,,
"Commercial, Corporate & landlord Services",Property Services & Facilities Management,Resources,Premises,"Repairs, Alterations & Maintenance of Buildings",Building Improvements / Maintenance,,20/01/2021,10839845,90055670,"4,587.50",R,EXPRESS LIFTS,,
People,People Services,Resources,Transport,Contract Hire and Operating Leases,Plant Hire Charge,,27/01/2021,10839847,816435,375,R,Forest Traffic Signals Ltd,,
"Commercial, Corporate & landlord Services",Property Services & Facilities Management,Resources,Premises,"Repairs, Alterations & Maintenance of Buildings",Premises Repairs And Maintenance,,20/01/2021,10839850,90053509,277.78,R,Lorne Stewart  Plc,,
"Commercial, Corporate & landlord Services",Property Services & Facilities Management,Resources,Premises,"Repairs, Alterations & Maintenance of Buildings",Premises Repairs And Maintenance,,20/01/2021,10839851,90055732,544.5,R,Lorne Stewart  Plc,,
"Commercial, Corporate & landlord Services",Property Services & Facilities Management,Resources,Premises,"Repairs, Alterations & Maintenance of Buildings",Premises Repairs And Maintenance,,20/01/2021,10839852,90054005,544.5,R,Lorne Stewart  Plc,,
"Commercial, Corporate & landlord Services",Property Services & Facilities Management,Resources,Premises,"Repairs, Alterations & Maintenance of Buildings",Premises Repairs And Maintenance,,20/01/2021,10839853,90054009,544.5,R,Lorne Stewart  Plc,,
"Commercial, Corporate & landlord Services",Property Services & Facilities Management,Resources,Premises,"Repairs, Alterations & Maintenance of Buildings",Premises Repairs And Maintenance,,20/01/2021,10839854,90054010,544.5,R,Lorne Stewart  Plc,,
"Commercial, Corporate & landlord Services",Property Services & Facilities Management,Resources,Premises,"Repairs, Alterations & Maintenance of Buildings",Premises Repairs And Maintenance,,20/01/2021,10839855,90054011,544.5,R,Lorne Stewart  Plc,,
"Commercial, Corporate & landlord Services",Property Services & Facilities Management,Resources,Premises,"Repairs, Alterations & Maintenance of Buildings",Premises Repairs And Maintenance,,20/01/2021,10839859,90054022,544.5,R,Lorne Stewart  Plc,,
"Commercial, Corporate & landlord Services",Property Services & Facilities Management,Resources,Premises,"Repairs, Alterations & Maintenance of Buildings",Premises Repairs And Maintenance,,20/01/2021,10839860,90054023,544.5,R,Lorne Stewart  Plc,,
"Commercial, Corporate & landlord Services",Property Services & Facilities Management,Resources,Premises,"Repairs, Alterations & Maintenance of Buildings",Premises Repairs And Maintenance,,20/01/2021,10839861,90054040,544.5,R,Lorne Stewart  Plc,,
"Commercial, Corporate & landlord Services",Property Services & Facilities Management,Resources,Premises,"Repairs, Alterations & Maintenance of Buildings",Premises Repairs And Maintenance,,20/01/2021,10839862,90054021,544.5,R,Lorne Stewart  Plc,,
"Commercial, Corporate & landlord Services",Property Services & Facilities Management,Resources,Premises,"Repairs, Alterations & Maintenance of Buildings",Premises Repairs And Maintenance,,20/01/2021,10839863,90054019,544.5,R,Lorne Stewart  Plc,,
Corporate (COL),Insurance,Corporate Costs & Levies,Supplies & Services,Miscellaneous Expenses,Insurance Settlement Expenditure(Direct),,26/01/2021,10839985,0,"2,914.00",R,Dolmans Solicitors,,
"Commercial, Corporate & landlord Services",Property Services & Facilities Management,Resources,Premises,"Repairs, Alterations & Maintenance of Buildings",Premises Repairs And Maintenance,,20/01/2021,10840000,90054024,544.5,R,Lorne Stewart  Plc,,
"Commercial, Corporate & landlord Services",Property Services & Facilities Management,Resources,Premises,"Repairs, Alterations & Maintenance of Buildings",Premises Repairs And Maintenance,,20/01/2021,10840001,90054041,544.5,R,Lorne Stewart  Plc,,
"Commercial, Corporate & landlord Services",Property Services & Facilities Management,Resources,Premises,"Repairs, Alterations & Maintenance of Buildings",Premises Repairs And Maintenance,,20/01/2021,10840002,90054027,544.5,R,Lorne Stewart  Plc,,
"Commercial, Corporate & landlord Services",Property Services & Facilities Management,Resources,Premises,"Repairs, Alterations & Maintenance of Buildings",Premises Repairs And Maintenance,,20/01/2021,10840003,90054043,544.5,R,Lorne Stewart  Plc,,
"Commercial, Corporate & landlord Services",Property Services & Facilities Management,Resources,Premises,"Repairs, Alterations & Maintenance of Buildings",Premises Repairs And Maintenance,,20/01/2021,10840004,90054048,544.5,R,Lorne Stewart  Plc,,
"Commercial, Corporate & landlord Services",Property Services & Facilities Management,Resources,Premises,"Repairs, Alterations & Maintenance of Buildings",Premises Repairs And Maintenance,,20/01/2021,10840005,90054029,544.5,R,Lorne Stewart  Plc,,
"Commercial, Corporate & landlord Services",Property Services & Facilities Management,Resources,Premises,"Repairs, Alterations & Maintenance of Buildings",Premises Repairs And Maintenance,,20/01/2021,10840007,90054581,382.35,R,Lorne Stewart  Plc,,
"Commercial, Corporate & landlord Services",Property Services & Facilities Management,Resources,Premises,"Repairs, Alterations & Maintenance of Buildings",Premises Repairs And Maintenance,,20/01/2021,10840008,90054593,318.63,R,Lorne Stewart  Plc,,
"Commercial, Corporate & landlord Services",Property Services & Facilities Management,Resources,Premises,"Repairs, Alterations & Maintenance of Buildings",Premises Repairs And Maintenance,,22/01/2021,10840009,90054566,152.94,R,Lorne Stewart  Plc,,
"Commercial, Corporate & landlord Services",Property Services & Facilities Management,Resources,Premises,"Repairs, Alterations & Maintenance of Buildings",Premises Repairs And Maintenance,,20/01/2021,10840010,90054598,658.53,R,Lorne Stewart  Plc,,
"Commercial, Corporate & landlord Services",Property Services & Facilities Management,Resources,Premises,"Repairs, Alterations & Maintenance of Buildings",Premises Repairs And Maintenance,,20/01/2021,10840011,90054578,544.5,R,Lorne Stewart  Plc,,
"Commercial, Corporate & landlord Services",Property Services & Facilities Management,Resources,Premises,"Repairs, Alterations & Maintenance of Buildings",Premises Repairs And Maintenance,,21/01/2021,10840012,90054580,544.5,R,Lorne Stewart  Plc,,
"Commercial, Corporate & landlord Services",Property Services & Facilities Management,Resources,Premises,"Repairs, Alterations & Maintenance of Buildings",Premises Repairs And Maintenance,,21/01/2021,10840013,90054908,101.96,R,Lorne Stewart  Plc,,
"Commercial, Corporate & landlord Services",Property Services & Facilities Management,Resources,Premises,"Repairs, Alterations & Maintenance of Buildings",Premises Repairs And Maintenance,,22/01/2021,10840014,90054910,254.9,R,Lorne Stewart  Plc,,
"Commercial, Corporate & landlord Services",Property Services & Facilities Management,Resources,Premises,"Repairs, Alterations & Maintenance of Buildings",Premises Repairs And Maintenance,,22/01/2021,10840015,90055262,63.73,R,Lorne Stewart  Plc,,
"Commercial, Corporate & landlord Services",Property Services & Facilities Management,Resources,Premises,"Repairs, Alterations & Maintenance of Buildings",Premises Repairs And Maintenance,,22/01/2021,10840016,90055263,140.2,R,Lorne Stewart  Plc,,
"Commercial, Corporate & landlord Services",Property Services & Facilities Management,Resources,Premises,"Repairs, Alterations & Maintenance of Buildings",Premises Repairs And Maintenance,,21/01/2021,10840017,90055265,50.98,R,Lorne Stewart  Plc,,
"Commercial, Corporate & landlord Services",Property Services & Facilities Management,Resources,Premises,"Repairs, Alterations & Maintenance of Buildings",Premises Repairs And Maintenance,,22/01/2021,10840018,90053792,419.67,R,Lorne Stewart  Plc,,
"Commercial, Corporate & landlord Services",Property Services & Facilities Management,Resources,Premises,"Repairs, Alterations & Maintenance of Buildings",Premises Repairs And Maintenance,,21/01/2021,10840019,90054917,65.75,R,Lorne Stewart  Plc,,
"Commercial, Corporate & landlord Services",Property Services & Facilities Management,Resources,Premises,"Repairs, Alterations & Maintenance of Buildings",Premises Repairs And Maintenance,,22/01/2021,10840020,90055270,125.75,R,Lorne Stewart  Plc,,
"Commercial, Corporate & landlord Services",Property Services & Facilities Management,Resources,Premises,"Repairs, Alterations & Maintenance of Buildings",Premises Repairs And Maintenance,,21/01/2021,10840021,90055806,185.75,R,Lorne Stewart  Plc,,
"Commercial, Corporate & landlord Services",Property Services & Facilities Management,Resources,Premises,"Repairs, Alterations & Maintenance of Buildings",Premises Repairs And Maintenance,,25/01/2021,10840022,90055944,70.75,R,Lorne Stewart  Plc,,
Schools Total,School Group 7 � Pupil Capacity 501-1800,MCC Schools,Employees,Direct Employee Expenses,Agency Staff,,21/01/2021,10840060,0,185,R,New Directions Education Ltd,,
Schools Total,School Group 7 � Pupil Capacity 501-1800,MCC Schools,Employees,Direct Employee Expenses,Agency Staff,,21/01/2021,10840062,0,185,R,New Directions Education Ltd,,
Schools Total,School Group 7 � Pupil Capacity 501-1800,MCC Schools,Employees,Direct Employee Expenses,Agency Staff,,21/01/2021,10840064,0,135.33,R,New Directions Education Ltd,,
Schools Total,School Group 7 � Pupil Capacity 501-1800,MCC Schools,Employees,Direct Employee Expenses,Agency Staff,,21/01/2021,10840066,0,135.33,R,New Directions Education Ltd,,
Schools Total,SCHGRP3 � School Group 3 � Pupil Capacity 315-500,MCC Schools,Employees,Direct Employee Expenses,Agency Staff,,21/01/2021,10840068,0,184,R,New Directions Education Ltd,,
Schools Total,SCHGRP3 � School Group 3 � Pupil Capacity 315-500,MCC Schools,Employees,Direct Employee Expenses,Agency Staff,,21/01/2021,10840070,0,184,R,New Directions Education Ltd,,
Schools Total,SCHGRP3 � School Group 3 � Pupil Capacity 315-500,MCC Schools,Employees,Direct Employee Expenses,Agency Staff,,21/01/2021,10840072,0,184,R,New Directions Education Ltd,,
Facilities & Fleet Management,Transport Department,Enterprise,Transport,Contract Hire and Operating Leases,Vehicle Hire Charge,,26/01/2021,10840079,0,770,R,Enterprise Flex-E-Rent,,
"Commercial, Corporate & landlord Services",Property Services & Facilities Management,Resources,Premises,"Repairs, Alterations & Maintenance of Buildings",Building Improvements / Maintenance,,26/01/2021,10840086,90056213,102,R,Carreg Fawr Developments Ltd,,
"Commercial, Corporate & landlord Services",Property Services & Facilities Management,Resources,Premises,"Repairs, Alterations & Maintenance of Buildings",Building Improvements / Maintenance,,21/01/2021,10840087,760015957,81.66,R,Gemini Blinds Gwent,,
Facilities & Fleet Management,Transport Department,Enterprise,Supplies & Services,"Equipment, Furniture and Materials",Equipment Purchases,,26/01/2021,10841782,10086398,187.5,R,Quartix,,
"Commercial, Corporate & landlord Services",Property Services & Facilities Management,Resources,Premises,"Repairs, Alterations & Maintenance of Buildings",Building Improvements / Maintenance,,22/01/2021,10841816,760015444,40.71,R,Circuit Compliance t/a Circuit Electrical Testing Ltd,,
"Commercial, Corporate & landlord Services",Property Services & Facilities Management,Resources,Premises,"Repairs, Alterations & Maintenance of Buildings",Building Improvements / Maintenance,,21/01/2021,10841817,760015938,57.23,R,Circuit Compliance t/a Circuit Electrical Testing Ltd,,
"Commercial, Corporate & landlord Services",Property Services & Facilities Management,Resources,Premises,"Repairs, Alterations & Maintenance of Buildings",Building Improvements / Maintenance,,25/01/2021,10841818,760014544,125.67,R,Circuit Compliance t/a Circuit Electrical Testing Ltd,,
"Commercial, Corporate & landlord Services",Property Services & Facilities Management,Resources,Premises,"Repairs, Alterations & Maintenance of Buildings",Building Improvements / Maintenance,,22/01/2021,10841868,760015926,175.23,R,Circuit Compliance t/a Circuit Electrical Testing Ltd,,
"Commercial, Corporate & landlord Services",Property Services & Facilities Management,Resources,Premises,"Repairs, Alterations & Maintenance of Buildings",Building Improvements / Maintenance,,22/01/2021,10841869,760015928,52.51,R,Circuit Compliance t/a Circuit Electrical Testing Ltd,,
"Commercial, Corporate & landlord Services",Property Services & Facilities Management,Resources,Premises,"Repairs, Alterations & Maintenance of Buildings",Building Improvements / Maintenance,,21/01/2021,10841870,760015930,19.47,R,Circuit Compliance t/a Circuit Electrical Testing Ltd,,
"Commercial, Corporate & landlord Services",Property Services & Facilities Management,Resources,Premises,"Repairs, Alterations & Maintenance of Buildings",Building Improvements / Maintenance,,25/01/2021,10841871,760016118,188.8,R,Circuit Compliance t/a Circuit Electrical Testing Ltd,,
"Commercial, Corporate & landlord Services",Property Services & Facilities Management,Resources,Premises,"Repairs, Alterations & Maintenance of Buildings",Building Improvements / Maintenance,,21/01/2021,10841872,760015936,27.14,R,Circuit Compliance t/a Circuit Electrical Testing Ltd,,
"Commercial, Corporate & landlord Services",Property Services & Facilities Management,Resources,Premises,"Repairs, Alterations & Maintenance of Buildings",Building Improvements / Maintenance,,21/01/2021,10841873,760016108,732.78,R,Circuit Compliance t/a Circuit Electrical Testing Ltd,,
Planning & Housing,General Fund Housing,Enterprise,Premises,Rents,Rents/Hire Of Premises.,,21/01/2021,10841874,0,625,R,REDACTED PERSONAL DATA,,
Planning & Housing,General Fund Housing,Enterprise,Premises,Rents,Rents/Hire Of Premises.,,21/01/2021,10841876,0,590,R,AR and RA Pook,,
Planning & Housing,General Fund Housing,Enterprise,Premises,Rents,Rents/Hire Of Premises.,,21/01/2021,10841878,0,590,R,REDACTED PERSONAL DATA,,
Planning & Housing,General Fund Housing,Enterprise,Premises,Rents,Rents/Hire Of Premises.,,21/01/2021,10841880,0,500,R,REDACTED PERSONAL DATA,,
Planning & Housing,General Fund Housing,Enterprise,Premises,Rents,Rents/Hire Of Premises.,,21/01/2021,10841881,0,539.99,R,REDACTED PERSONAL DATA,,
Planning & Housing,General Fund Housing,Enterprise,Premises,Rents,Rents/Hire Of Premises.,,21/01/2021,10841883,0,539.99,R,Percivals Nurseries Ltd,,
Planning & Housing,General Fund Housing,Enterprise,Premises,Rents,Rents/Hire Of Premises.,,21/01/2021,10841885,0,720.02,R,REDACTED PERSONAL DATA,,
Planning & Housing,General Fund Housing,Enterprise,Premises,Rents,Rents/Hire Of Premises.,,21/01/2021,10841887,0,352,R,Greenbay Estates,,
Planning & Housing,General Fund Housing,Enterprise,Premises,Rents,Rents/Hire Of Premises.,,21/01/2021,10841889,0,500,R,REDACTED PERSONAL DATA,,
Planning & Housing,General Fund Housing,Enterprise,Premises,Rents,Rents/Hire Of Premises.,,21/01/2021,10841891,0,539.99,R,REDACTED PERSONAL DATA,,
Planning & Housing,General Fund Housing,Enterprise,Premises,Rents,Rents/Hire Of Premises.,,21/01/2021,10841893,0,446,R,REDACTED PERSONAL DATA,,
Planning & Housing,General Fund Housing,Enterprise,Premises,Rents,Rents/Hire Of Premises.,,21/01/2021,10841895,0,539.99,R,REDACTED PERSONAL DATA,,
Planning & Housing,General Fund Housing,Enterprise,Premises,Rents,Rents/Hire Of Premises.,,21/01/2021,10841897,0,352,R,REDACTED PERSONAL DATA,,
Planning & Housing,General Fund Housing,Enterprise,Premises,Rents,Rents/Hire Of Premises.,,21/01/2021,10841899,0,500,R,REDACTED PERSONAL DATA,,
Planning & Housing,General Fund Housing,Enterprise,Premises,Rents,Rents/Hire Of Premises.,,21/01/2021,10841901,0,472.48,R,REDACTED PERSONAL DATA,,
Planning & Housing,General Fund Housing,Enterprise,Premises,Rents,Rents/Hire Of Premises.,,21/01/2021,10841903,0,472.48,R,REDACTED PERSONAL DATA,,
Planning & Housing,General Fund Housing,Enterprise,Premises,Rents,Rents/Hire Of Premises.,,21/01/2021,10841905,0,472.51,R,REDACTED PERSONAL DATA,,
Planning & Housing,General Fund Housing,Enterprise,Premises,Rents,Rents/Hire Of Premises.,,21/01/2021,10841907,0,700,R,REDACTED PERSONAL DATA,,
Planning & Housing,General Fund Housing,Enterprise,Premises,Rents,Rents/Hire Of Premises.,,21/01/2021,10841909,0,446,R,REDACTED PERSONAL DATA,,
Planning & Housing,General Fund Housing,Enterprise,Premises,Rents,Rents/Hire Of Premises.,,21/01/2021,10841911,0,247.48,R,REDACTED PERSONAL DATA,,
Planning & Housing,General Fund Housing,Enterprise,Premises,Rents,Rents/Hire Of Premises.,,21/01/2021,10841913,0,425,R,REDACTED PERSONAL DATA,,
Planning & Housing,General Fund Housing,Enterprise,Premises,Rents,Rents/Hire Of Premises.,,21/01/2021,10841915,0,539.99,R,REDACTED PERSONAL DATA,,
Planning & Housing,General Fund Housing,Enterprise,Premises,Rents,Rents/Hire Of Premises.,,21/01/2021,10841917,0,560,R,RH Properties,,
Planning & Housing,General Fund Housing,Enterprise,Premises,Rents,Rents/Hire Of Premises.,,21/01/2021,10841919,0,446,R,REDACTED PERSONAL DATA,,
Planning & Housing,General Fund Housing,Enterprise,Premises,Rents,Rents/Hire Of Premises.,,21/01/2021,10841921,0,373.5,R,REDACTED PERSONAL DATA,,
Planning & Housing,General Fund Housing,Enterprise,Premises,Rents,Rents/Hire Of Premises.,,21/01/2021,10841923,0,335,R,Fonseca Law Limited Property Account,,
Planning & Housing,General Fund Housing,Enterprise,Premises,Rents,Rents/Hire Of Premises.,,21/01/2021,10841925,0,650,R,REDACTED PERSONAL DATA,,
"Commercial, Corporate & landlord Services",Property Services & Facilities Management,Resources,Premises,"Repairs, Alterations & Maintenance of Buildings",Building Improvements / Maintenance,,21/01/2021,10841927,760015424,250.2,R,Circuit Compliance t/a Circuit Electrical Testing Ltd,,
"Commercial, Corporate & landlord Services",Procurement,Resources,Income,Customer and Client Receipts,External Fee Income,,21/01/2021,10841928,0,"-1,333.94",R,Randstad Solutions Ltd,,
"Commercial, Corporate & landlord Services",Property Services & Facilities Management,Resources,Premises,"Repairs, Alterations & Maintenance of Buildings",Building Improvements / Maintenance,,22/01/2021,10841972,760016012,410.05,R,Circuit Compliance t/a Circuit Electrical Testing Ltd,,
Business Growth and Enterprise,Strategic Projects � Transport & Regeneration,Enterprise,Supplies & Services,Grants and Subscriptions,Grants Payable,,22/01/2021,10841973,0,"1,702.00",R,Peter's Minibus Hire,,
Facilities & Fleet Management,Transport Department,Enterprise,Supplies & Services,"Equipment, Furniture and Materials",Equipment Purchases,,26/01/2021,10841975,10086398,175,R,Quartix,,
Schools Total,School Group 2 � Pupil Capacity 144-314,MCC Schools,Employees,Direct Employee Expenses,Agency Staff,,26/01/2021,10842022,80073005,355.29,R,Teaching Personnel,,
Neighbourhood Services,Highways,Enterprise,Transport,Contract Hire and Operating Leases,Plant Hire Charge,,25/01/2021,10842052,816597,428.57,R,Amberon Ltd,,
Neighbourhood Services,Highways,Enterprise,Supplies & Services,Services,Sub-Contractors Fees,,25/01/2021,10842053,10107481,"1,224.40",R,G D Environmental Services Ltd,,
Neighbourhood Services,Highways,Enterprise,Supplies & Services,Services,Sub-Contractors Fees,,25/01/2021,10842054,10104108,155.87,R,G D Environmental Services Ltd,,
Neighbourhood Services,Highways,Enterprise,Supplies & Services,Services,Sub-Contractors Fees,,25/01/2021,10842055,10104534,376.65,R,G D Environmental Services Ltd,,
Neighbourhood Services,Highways,Enterprise,Supplies & Services,Services,Sub-Contractors Fees,,25/01/2021,10842056,10107481,105,R,G D Environmental Services Ltd,,
Neighbourhood Services,Highways,Enterprise,Supplies & Services,Services,Sub-Contractors Fees,,25/01/2021,10842057,10107016,"2,609.69",R,G D Environmental Services Ltd,,
Neighbourhood Services,Highways,Enterprise,Supplies & Services,Services,Sub-Contractors Fees,,25/01/2021,10842058,10107016,858.07,R,G D Environmental Services Ltd,,
Neighbourhood Services,Highways,Enterprise,Supplies & Services,Services,Sub-Contractors Fees,,25/01/2021,10842059,10107481,486.34,R,G D Environmental Services Ltd,,
Neighbourhood Services,Highways,Enterprise,Supplies & Services,Services,Sub-Contractors Fees,,25/01/2021,10842060,10107481,85.92,R,G D Environmental Services Ltd,,
Neighbourhood Services,Highways,Enterprise,Supplies & Services,Services,Sub-Contractors Fees,,25/01/2021,10842061,10107016,"1,890.29",R,G D Environmental Services Ltd,,
Neighbourhood Services,Highways,Enterprise,Supplies & Services,Services,Sub-Contractors Fees,,25/01/2021,10842062,10107481,585.26,R,G D Environmental Services Ltd,,
Neighbourhood Services,Highways,Enterprise,Supplies & Services,Services,Sub-Contractors Fees,,25/01/2021,10842063,10107481,453.95,R,G D Environmental Services Ltd,,
Neighbourhood Services,Highways,Enterprise,Supplies & Services,Services,Sub-Contractors Fees,,25/01/2021,10842064,10107481,800.28,R,G D Environmental Services Ltd,,
Neighbourhood Services,Highways,Enterprise,Supplies & Services,Services,Sub-Contractors Fees,,25/01/2021,10842065,10108805,420.82,R,G D Environmental Services Ltd,,
"Commercial, Corporate & landlord Services",Procurement,Resources,Income,Customer and Client Receipts,External Fee Income,,25/01/2021,10842066,0,"-1,050.70",R,Randstad Solutions Ltd,,
Neighbourhood Services,Highways,Enterprise,Supplies & Services,Services,Sub-Contractors Fees,,25/01/2021,10842067,10107481,414.73,R,G D Environmental Services Ltd,,
Neighbourhood Services,Highways,Enterprise,Supplies & Services,Services,Sub-Contractors Fees,,25/01/2021,10842068,10107481,831.75,R,G D Environmental Services Ltd,,
Neighbourhood Services,Highways,Enterprise,Supplies & Services,Services,Sub-Contractors Fees,,25/01/2021,10842069,10107481,473.1,R,G D Environmental Services Ltd,,
Neighbourhood Services,Highways,Enterprise,Supplies & Services,Services,Sub-Contractors Fees,,25/01/2021,10842070,10107481,448.71,R,G D Environmental Services Ltd,,
Neighbourhood Services,Highways,Enterprise,Supplies & Services,Services,Sub-Contractors Fees,,25/01/2021,10842071,10107481,480.17,R,G D Environmental Services Ltd,,
Neighbourhood Services,Highways,Enterprise,Supplies & Services,Services,Sub-Contractors Fees,,25/01/2021,10842072,10108805,353.17,R,G D Environmental Services Ltd,,
Neighbourhood Services,Highways,Enterprise,Supplies & Services,"Equipment, Furniture and Materials",Small Plant & Tools.,,25/01/2021,10842074,816686,"2,416.00",R,G D Environmental Services Ltd,,
Neighbourhood Services,Highways,Enterprise,Supplies & Services,Services,Sub-Contractors Fees,,25/01/2021,10842075,10108805,720.57,R,G D Environmental Services Ltd,,
Neighbourhood Services,Highways,Enterprise,Supplies & Services,Services,Sub-Contractors Fees,,25/01/2021,10842076,10108805,455.41,R,G D Environmental Services Ltd,,
Neighbourhood Services,Highways,Enterprise,Supplies & Services,Services,Sub-Contractors Fees,,25/01/2021,10842077,10108805,287.92,R,G D Environmental Services Ltd,,
Neighbourhood Services,Highways,Enterprise,Supplies & Services,Services,Sub-Contractors Fees,,25/01/2021,10842078,10108805,165.34,R,G D Environmental Services Ltd,,
Neighbourhood Services,Highways,Enterprise,Supplies & Services,Services,Sub-Contractors Fees,,25/01/2021,10842079,10108805,815.72,R,G D Environmental Services Ltd,,
Neighbourhood Services,Highways,Enterprise,Supplies & Services,Services,Sub-Contractors Fees,,25/01/2021,10842080,10108805,528.14,R,G D Environmental Services Ltd,,
Neighbourhood Services,Highways,Enterprise,Supplies & Services,Services,Sub-Contractors Fees,,25/01/2021,10842081,10108805,105,R,G D Environmental Services Ltd,,
Neighbourhood Services,Highways,Enterprise,Supplies & Services,Services,Sub-Contractors Fees,,25/01/2021,10842082,10107016,869.55,R,G D Environmental Services Ltd,,
Adult Services,Direct Care Residential,Social Care and Health,Supplies & Services,"Equipment, Furniture and Materials",Provisions.,,26/01/2021,10842086,10103737,192.43,R,Castell Howell Foods Ltd,,
Schools Total,School Group 2 � Pupil Capacity 144-314,MCC Schools,Supplies & Services,"Equipment, Furniture and Materials",Equipment Purchases,,26/01/2021,10842120,80076564,40.23,R,Yorkshire Purchasing,,
Neighbourhood Services,Highways,Enterprise,Supplies & Services,"Equipment, Furniture and Materials",Materials & Consumables.,,25/01/2021,10842128,10106728,733.8,R,Robert Price Builders Merchants Ltd,,
Neighbourhood Services,Highways,Enterprise,Third Party Payments,Third Party,Weed Spraying,,25/01/2021,10842129,815836,"9,313.92",R,Environmental Husbandry Limited,,
Neighbourhood Services,Highways,Enterprise,Third Party Payments,Third Party,Weed Spraying,,25/01/2021,10842130,815836,"2,106.72",R,Environmental Husbandry Limited,,
Neighbourhood Services,Highways,Enterprise,Supplies & Services,"Equipment, Furniture and Materials",Materials & Consumables.,,25/01/2021,10842133,815930,221.76,R,Speedy Asset Services Limited,,
Schools Total,SCHGRP3 � School Group 3 � Pupil Capacity 315-500,MCC Schools,Premises,Cleaning and Domestic Supplies,Premises Pest Control,,25/01/2021,10842140,80074252,35,R,Protectahome Ltd,,
Schools Total,SCHGRP3 � School Group 3 � Pupil Capacity 315-500,MCC Schools,Premises,Cleaning and Domestic Supplies,Premises Pest Control,,25/01/2021,10842141,80074252,70,R,Protectahome Ltd,,
Schools Total,SCHGRP3 � School Group 3 � Pupil Capacity 315-500,MCC Schools,Supplies & Services,"Printing, Stationery and General Office Expenses",Photocopying.,,25/01/2021,10842143,80074251,42.9,R,Midshire Business Systems (Northern) Ltd,,
Schools Total,SCHGRP3 � School Group 3 � Pupil Capacity 315-500,MCC Schools,Supplies & Services,"Printing, Stationery and General Office Expenses",Photocopying.,,25/01/2021,10842144,80074251,195.98,R,Midshire Business Systems (Northern) Ltd,,
Schools Total,SCHGRP3 � School Group 3 � Pupil Capacity 315-500,MCC Schools,Supplies & Services,"Printing, Stationery and General Office Expenses",Photocopying.,,25/01/2021,10842145,80074251,300.41,R,Midshire Business Systems (Northern) Ltd,,
Schools Total,SCHGRP3 � School Group 3 � Pupil Capacity 315-500,MCC Schools,Supplies & Services,"Printing, Stationery and General Office Expenses",Photocopying.,,25/01/2021,10842146,80074251,69.09,R,Midshire Business Systems (Northern) Ltd,,
Schools Total,SCHGRP3 � School Group 3 � Pupil Capacity 315-500,MCC Schools,Supplies & Services,"Printing, Stationery and General Office Expenses",Photocopying.,,25/01/2021,10842147,80074251,267.13,R,Midshire Business Systems (Northern) Ltd,,
Adult Services,Direct Care Residential,Social Care and Health,Supplies & Services,"Equipment, Furniture and Materials",Provisions.,,26/01/2021,10842152,10103508,41.33,R,Total Produce (Hereford),,
Adult Services,Direct Care Residential,Social Care and Health,Supplies & Services,"Equipment, Furniture and Materials",Provisions.,,26/01/2021,10842155,10103508,83.77,R,Total Produce (Hereford),,
Adult Services,Direct Care Residential,Social Care and Health,Supplies & Services,"Equipment, Furniture and Materials",Provisions.,,26/01/2021,10842158,10103508,42.49,R,Total Produce (Hereford),,
Planning & Housing,General Fund Housing,Enterprise,Supplies & Services,Services,Homelessness Bed & Breakfast Accomodation,,26/01/2021,10842170,10103995,350,R,The Lychgate Guest House,,
Adult Services,Direct Care Residential,Social Care and Health,Premises,Fixtures and Fittings,Alarm Systems,,26/01/2021,10842173,10104933,23.2,R,Orbis Protect Limited,,
Adult Services,Direct Care Residential,Social Care and Health,Premises,Fixtures and Fittings,Alarm Systems,,26/01/2021,10842175,10104933,23.2,R,Orbis Protect Limited,,
Planning & Housing,Highways Dev & Car Parks,Enterprise,Supplies & Services,"Equipment, Furniture and Materials",Advertising,,26/01/2021,10842184,10106835,446.25,R,Tindle Newspapers Wales & The Borders Ltd,,
Planning & Housing,Highways Dev & Car Parks,Enterprise,Supplies & Services,"Equipment, Furniture and Materials",Advertising,,26/01/2021,10842186,10106835,297.5,R,Tindle Newspapers Wales & The Borders Ltd,,
Planning & Housing,Highways Dev & Car Parks,Enterprise,Supplies & Services,"Equipment, Furniture and Materials",Advertising,,26/01/2021,10842188,10106835,297.5,R,Tindle Newspapers Wales & The Borders Ltd,,
Planning & Housing,Highways Dev & Car Parks,Enterprise,Supplies & Services,"Equipment, Furniture and Materials",Advertising,,26/01/2021,10842190,10106835,297.5,R,Tindle Newspapers Wales & The Borders Ltd,,
Planning & Housing,Highways Dev & Car Parks,Enterprise,Supplies & Services,"Equipment, Furniture and Materials",Advertising,,26/01/2021,10842192,10106835,297.5,R,Tindle Newspapers Wales & The Borders Ltd,,
Planning & Housing,Highways Dev & Car Parks,Enterprise,Supplies & Services,"Equipment, Furniture and Materials",Advertising,,26/01/2021,10842195,10106835,297.5,R,Tindle Newspapers Wales & The Borders Ltd,,
Planning & Housing,Highways Dev & Car Parks,Enterprise,Supplies & Services,"Equipment, Furniture and Materials",Advertising,,26/01/2021,10842197,10106835,297.5,R,Tindle Newspapers Wales & The Borders Ltd,,
Schools Total,School Group 7 � Pupil Capacity 501-1800,MCC Schools,Supplies & Services,Services,Training Charges,,26/01/2021,10842214,80076544,100,R,WJEC CBAC Limited,,
Planning & Housing,Highways Dev & Car Parks,Enterprise,Supplies & Services,Communications and Computing,Postages,,26/01/2021,10842226,816771,13.25,R,Korec,,
Public Protection,Public Protection,Social Care and Health,Supplies & Services,Services,Professional And Specialist Fees,,26/01/2021,10842228,0,"6,990.49",R,Vale Of Glamorgan Council,,
Facilities & Fleet Management,Transport Department,Enterprise,Supplies & Services,"Equipment, Furniture and Materials",Materials & Consumables.,,26/01/2021,10842230,0,-300,R,Tennants Distribution Limited,,
"Commercial, Corporate & landlord Services",Property Services & Facilities Management,Resources,Premises,"Repairs, Alterations & Maintenance of Buildings",Building Improvements / Maintenance,,26/01/2021,10842318,760015650,"4,618.62",R,Lorne Stewart  Plc,,
"Commercial, Corporate & landlord Services",Property Services & Facilities Management,Resources,Premises,"Repairs, Alterations & Maintenance of Buildings",Building Improvements / Maintenance,,25/01/2021,10842319,760015736,228.68,R,Lorne Stewart  Plc,,
"Commercial, Corporate & landlord Services",Property Services & Facilities Management,Resources,Premises,"Repairs, Alterations & Maintenance of Buildings",Building Improvements / Maintenance,,25/01/2021,10842320,760015966,294.01,R,Lorne Stewart  Plc,,
"Commercial, Corporate & landlord Services",Property Services & Facilities Management,Resources,Premises,"Repairs, Alterations & Maintenance of Buildings",Building Improvements / Maintenance,,26/01/2021,10842322,760015242,"1,673.79",R,Lorne Stewart  Plc,,
"Commercial, Corporate & landlord Services",Property Services & Facilities Management,Resources,Premises,"Repairs, Alterations & Maintenance of Buildings",Building Improvements / Maintenance,,25/01/2021,10842323,760015474,312.48,R,Lorne Stewart  Plc,,
"Commercial, Corporate & landlord Services",Property Services & Facilities Management,Resources,Premises,"Repairs, Alterations & Maintenance of Buildings",Building Improvements / Maintenance,,25/01/2021,10842324,760015460,900,R,Lorne Stewart  Plc,,
"Commercial, Corporate & landlord Services",Property Services & Facilities Management,Resources,Premises,"Repairs, Alterations & Maintenance of Buildings",Building Improvements / Maintenance,,25/01/2021,10842325,760015737,80.97,R,Lorne Stewart  Plc,,
"Commercial, Corporate & landlord Services",Property Services & Facilities Management,Resources,Premises,"Repairs, Alterations & Maintenance of Buildings",Building Improvements / Maintenance,,25/01/2021,10842326,760015746,208.42,R,Lorne Stewart  Plc,,
"Commercial, Corporate & landlord Services",Property Services & Facilities Management,Resources,Premises,"Repairs, Alterations & Maintenance of Buildings",Building Improvements / Maintenance,,26/01/2021,10842328,760016041,324.53,R,Lorne Stewart  Plc,,
"Commercial, Corporate & landlord Services",Property Services & Facilities Management,Resources,Premises,"Repairs, Alterations & Maintenance of Buildings",Building Improvements / Maintenance,,26/01/2021,10842330,760016076,572.45,R,Lorne Stewart  Plc,,
"Commercial, Corporate & landlord Services",Property Services & Facilities Management,Resources,Premises,"Repairs, Alterations & Maintenance of Buildings",Building Improvements / Maintenance,,26/01/2021,10842332,760016083,55.48,R,Lorne Stewart  Plc,,
"Commercial, Corporate & landlord Services",Property Services & Facilities Management,Resources,Premises,"Repairs, Alterations & Maintenance of Buildings",Building Improvements / Maintenance,,26/01/2021,10842334,760016087,80.97,R,Lorne Stewart  Plc,,
"Commercial, Corporate & landlord Services",Property Services & Facilities Management,Resources,Premises,"Repairs, Alterations & Maintenance of Buildings",Building Improvements / Maintenance,,26/01/2021,10842336,90055028,183.87,R,A.J Quinn Building Contractors Ltd,,
"Commercial, Corporate & landlord Services",Property Services & Facilities Management,Resources,Premises,"Repairs, Alterations & Maintenance of Buildings",Building Improvements / Maintenance,,27/01/2021,10842338,90055671,"26,010.00",R,A.J Quinn Building Contractors Ltd,,
Schools Total,School Group 2 � Pupil Capacity 144-314,MCC Schools,Supplies & Services,"Equipment, Furniture and Materials",Materials & Consumables.,,26/01/2021,10842340,80076570,75,R,Llandaff Diocesan Board of Finance,,
Schools Total,School Group 2 � Pupil Capacity 144-314,MCC Schools,Employees,Direct Employee Expenses,Agency Staff,,26/01/2021,10842342,80076572,897.8,R,TeacherActive,,
Adult Services,Direct Care,Social Care and Health,Premises,Rents,Rents/Hire Of Premises.,,26/01/2021,10842351,10108949,"1,638.99",R,Charter Housing Association,,
Standards,Early Years,Children & Young People,Supplies & Services,"Equipment, Furniture and Materials",Materials & Consumables.,,26/01/2021,10842354,10109009,279.6,R,TTS Group Ltd,,
Information Communication Technology,Technology & Organisational Design,Resources,Supplies & Services,"Equipment, Furniture and Materials",Materials & Consumables.,,26/01/2021,10842370,10107436,427.5,R,Stoneleigh Consultancy Ltd,,
Information Communication Technology,Technology & Organisational Design,Resources,Supplies & Services,"Equipment, Furniture and Materials",Materials & Consumables.,,26/01/2021,10842372,10107438,225,R,Stoneleigh Consultancy Ltd,,
Information Communication Technology,Technology & Organisational Design,Resources,Supplies & Services,"Equipment, Furniture and Materials",Materials & Consumables.,,26/01/2021,10842376,10106744,212.5,R,Stoneleigh Consultancy Ltd,,
Information Communication Technology,Technology & Organisational Design,Resources,Supplies & Services,"Equipment, Furniture and Materials",Materials & Consumables.,,26/01/2021,10842378,10106989,400,R,Stoneleigh Consultancy Ltd,,
Planning & Housing,General Fund Housing,Enterprise,Supplies & Services,Services,Homelessness Bed & Breakfast Accomodation,,26/01/2021,10842386,10104056,"1,050.00",R,Great Western Hotel,,
"Commercial, Corporate & landlord Services",Property Services & Facilities Management,Resources,Supplies & Services,Communications and Computing,Mobile Telephones,,26/01/2021,10842400,10103153,140,R,EE Limited,,
Facilities & Fleet Management,Transport Department,Enterprise,Supplies & Services,"Equipment, Furniture and Materials",Repairs & Maintenance.,,26/01/2021,10842410,0,69.6,R,Safety-Kleen Uk Ltd,,
"Commercial, Corporate & landlord Services",Property Services & Facilities Management,Resources,Premises,"Repairs, Alterations & Maintenance of Buildings",Building Improvements / Maintenance,,26/01/2021,10842412,760016394,55.5,R,EFS Systems (UK) Ltd,,
"Commercial, Corporate & landlord Services",Property Services & Facilities Management,Resources,Premises,"Repairs, Alterations & Maintenance of Buildings",Building Improvements / Maintenance,,27/01/2021,10842413,760016400,23,R,EFS Systems (UK) Ltd,,
"Commercial, Corporate & landlord Services",Property Services & Facilities Management,Resources,Premises,"Repairs, Alterations & Maintenance of Buildings",Building Improvements / Maintenance,,26/01/2021,10842415,760016407,37,R,EFS Systems (UK) Ltd,,
"Commercial, Corporate & landlord Services",Property Services & Facilities Management,Resources,Premises,"Repairs, Alterations & Maintenance of Buildings",Building Improvements / Maintenance,,27/01/2021,10842416,760016309,511.94,R,EFS Systems (UK) Ltd,,
"Commercial, Corporate & landlord Services",Property Services & Facilities Management,Resources,Premises,"Repairs, Alterations & Maintenance of Buildings",Building Improvements / Maintenance,,27/01/2021,10842418,760016414,153.74,R,EFS Systems (UK) Ltd,,
"Commercial, Corporate & landlord Services",Property Services & Facilities Management,Resources,Premises,"Repairs, Alterations & Maintenance of Buildings",Premises Repairs And Maintenance,,27/01/2021,10842421,90053425,80,R,Ambassador Fire & Security LTD,,
Adult Services,Direct Care Residential,Social Care and Health,Supplies & Services,"Equipment, Furniture and Materials",Provisions.,,26/01/2021,10842455,10103508,17.75,R,Total Produce (Hereford),,
Facilities & Fleet Management,Home to School Transport Dept,Enterprise,Transport,Direct Transport Costs,Vechicles Repairs and Maintenance,,26/01/2021,10842464,10106236,195,R,Bulwark Bus & Coach Eng. Ltd,,
Adult Services,Direct Care,Social Care and Health,Supplies & Services,Communications and Computing,IT Hardware,,26/01/2021,10842481,10108953,30,R,SRS Public,,
"Commercial, Corporate & landlord Services",Property Services & Facilities Management,Resources,Supplies & Services,"Printing, Stationery and General Office Expenses",Stationery,,26/01/2021,10842484,10109069,597.8,R,Uk Laser Suppliers,,
Schools Total,School Group 2 � Pupil Capacity 144-314,MCC Schools,Supplies & Services,"Printing, Stationery and General Office Expenses",Photocopying.,,26/01/2021,10842492,80073043,137.5,R,Canon UK Ltd,,
Schools Total,School Group 2 � Pupil Capacity 144-314,MCC Schools,Supplies & Services,"Equipment, Furniture and Materials",Provisions.,,26/01/2021,10842494,80075483,36.35,R,Castell Howell Foods Ltd,,
"Commercial, Corporate & landlord Services",Property Services & Facilities Management,Resources,Premises,"Repairs, Alterations & Maintenance of Buildings",Building Improvements / Maintenance,,27/01/2021,10842512,760015986,50,R,Ambassador Fire & Security LTD,,
"Commercial, Corporate & landlord Services",Property Services & Facilities Management,Resources,Premises,"Repairs, Alterations & Maintenance of Buildings",Building Improvements / Maintenance,,26/01/2021,10842514,760014949,50,R,Ambassador Fire & Security LTD,,
"Commercial, Corporate & landlord Services",Property Services & Facilities Management,Resources,Premises,"Repairs, Alterations & Maintenance of Buildings",Premises Repairs And Maintenance,,26/01/2021,10842515,90053530,101.96,R,Lorne Stewart  Plc,,
"Commercial, Corporate & landlord Services",Property Services & Facilities Management,Resources,Premises,"Repairs, Alterations & Maintenance of Buildings",Premises Repairs And Maintenance,,26/01/2021,10842516,90053684,195.65,R,Lorne Stewart  Plc,,
"Commercial, Corporate & landlord Services",Property Services & Facilities Management,Resources,Premises,"Repairs, Alterations & Maintenance of Buildings",Premises Repairs And Maintenance,,26/01/2021,10842517,90053528,250.69,R,Lorne Stewart  Plc,,
"Commercial, Corporate & landlord Services",Property Services & Facilities Management,Resources,Premises,"Repairs, Alterations & Maintenance of Buildings",Premises Repairs And Maintenance,,26/01/2021,10842518,90053529,89.22,R,Lorne Stewart  Plc,,
"Commercial, Corporate & landlord Services",Property Services & Facilities Management,Resources,Premises,"Repairs, Alterations & Maintenance of Buildings",Premises Repairs And Maintenance,,26/01/2021,10842519,90053521,101.96,R,Lorne Stewart  Plc,,
"Commercial, Corporate & landlord Services",Property Services & Facilities Management,Resources,Premises,"Repairs, Alterations & Maintenance of Buildings",Premises Repairs And Maintenance,,26/01/2021,10842520,90054907,178.43,R,Lorne Stewart  Plc,,
Neighbourhood Services,Highways,Enterprise,Transport,Contract Hire and Operating Leases,Plant Hire Charge,,26/01/2021,10842521,816538,17.4,R,Gap Group Limited,,
"Commercial, Corporate & landlord Services",Property Services & Facilities Management,Resources,Premises,"Repairs, Alterations & Maintenance of Buildings",Premises Repairs And Maintenance,,26/01/2021,10842522,90054560,544.12,R,Lorne Stewart  Plc,,
"Commercial, Corporate & landlord Services",Property Services & Facilities Management,Resources,Premises,"Repairs, Alterations & Maintenance of Buildings",Premises Repairs And Maintenance,,26/01/2021,10842523,90054563,63.73,R,Lorne Stewart  Plc,,
"Commercial, Corporate & landlord Services",Property Services & Facilities Management,Resources,Premises,"Repairs, Alterations & Maintenance of Buildings",Premises Repairs And Maintenance,,27/01/2021,10842524,90054565,63.73,R,Lorne Stewart  Plc,,
"Commercial, Corporate & landlord Services",Property Services & Facilities Management,Resources,Premises,"Repairs, Alterations & Maintenance of Buildings",Premises Repairs And Maintenance,,27/01/2021,10842525,90055295,442.16,R,Lorne Stewart  Plc,,
"Commercial, Corporate & landlord Services",Property Services & Facilities Management,Resources,Premises,"Repairs, Alterations & Maintenance of Buildings",Premises Repairs And Maintenance,,26/01/2021,10842526,90054913,115.75,R,Lorne Stewart  Plc,,
"Commercial, Corporate & landlord Services",Property Services & Facilities Management,Resources,Premises,"Repairs, Alterations & Maintenance of Buildings",Premises Repairs And Maintenance,,27/01/2021,10842527,90054916,55.75,R,Lorne Stewart  Plc,,
"Commercial, Corporate & landlord Services",Property Services & Facilities Management,Resources,Premises,"Repairs, Alterations & Maintenance of Buildings",Premises Repairs And Maintenance,,26/01/2021,10842528,90055271,185,R,Lorne Stewart  Plc,,
"Commercial, Corporate & landlord Services",Property Services & Facilities Management,Resources,Premises,"Repairs, Alterations & Maintenance of Buildings",Premises Repairs And Maintenance,,27/01/2021,10842529,90055282,55.75,R,Lorne Stewart  Plc,,
"Commercial, Corporate & landlord Services",Property Services & Facilities Management,Resources,Premises,"Repairs, Alterations & Maintenance of Buildings",Premises Repairs And Maintenance,,27/01/2021,10842530,90055286,125.75,R,Lorne Stewart  Plc,,
"Commercial, Corporate & landlord Services",Property Services & Facilities Management,Resources,Premises,"Repairs, Alterations & Maintenance of Buildings",Premises Repairs And Maintenance,,27/01/2021,10842531,90055805,175.75,R,Lorne Stewart  Plc,,
"Commercial, Corporate & landlord Services",Property Services & Facilities Management,Resources,Premises,"Repairs, Alterations & Maintenance of Buildings",Premises Repairs And Maintenance,,27/01/2021,10842532,90055807,185.75,R,Lorne Stewart  Plc,,
"Commercial, Corporate & landlord Services",Property Services & Facilities Management,Resources,Premises,"Repairs, Alterations & Maintenance of Buildings",Premises Repairs And Maintenance,,27/01/2021,10842533,90055808,125.75,R,Lorne Stewart  Plc,,
"Commercial, Corporate & landlord Services",Property Services & Facilities Management,Resources,Premises,"Repairs, Alterations & Maintenance of Buildings",Premises Repairs And Maintenance,,27/01/2021,10842534,90055810,281.5,R,Lorne Stewart  Plc,,
"Commercial, Corporate & landlord Services",Property Services & Facilities Management,Resources,Premises,"Repairs, Alterations & Maintenance of Buildings",Premises Repairs And Maintenance,,27/01/2021,10842535,90055811,250.75,R,Lorne Stewart  Plc,,
Neighbourhood Services,Highways,Enterprise,Transport,Contract Hire and Operating Leases,Plant Hire Charge,,26/01/2021,10842536,816129,924,R,Gap Group Limited,,
"Commercial, Corporate & landlord Services",Property Services & Facilities Management,Resources,Premises,"Repairs, Alterations & Maintenance of Buildings",Premises Repairs And Maintenance,,26/01/2021,10842537,90055812,55.48,R,Lorne Stewart  Plc,,
Neighbourhood Services,Highways,Enterprise,Transport,Contract Hire and Operating Leases,Plant Hire Charge,,26/01/2021,10842538,816538,34.8,R,Gap Group Limited,,
Neighbourhood Services,Highways,Enterprise,Employees,Indirect Employee Expenses,Staff Welfare,,26/01/2021,10842539,816557,86,R,Gap Group Limited,,
"Commercial, Corporate & landlord Services",Property Services & Facilities Management,Resources,Premises,"Repairs, Alterations & Maintenance of Buildings",Premises Repairs And Maintenance,,26/01/2021,10842540,90055611,11.8,R,Circuit Compliance t/a Circuit Electrical Testing Ltd,,
"Commercial, Corporate & landlord Services",Property Services & Facilities Management,Resources,Premises,"Repairs, Alterations & Maintenance of Buildings",Premises Repairs And Maintenance,,27/01/2021,10842541,90055610,491.47,R,Circuit Compliance t/a Circuit Electrical Testing Ltd,,
"Commercial, Corporate & landlord Services",Property Services & Facilities Management,Resources,Premises,"Repairs, Alterations & Maintenance of Buildings",Premises Repairs And Maintenance,,27/01/2021,10842542,90055178,76.7,R,Circuit Compliance t/a Circuit Electrical Testing Ltd,,
Neighbourhood Services,Highways,Enterprise,Third Party Payments,Third Party,General Contracts,,26/01/2021,10842543,10104853,"10,561.37",R,Cardiff City Council,,
Neighbourhood Services,Highways,Enterprise,Third Party Payments,Third Party,General Contracts,,27/01/2021,10842544,10104853,"6,921.20",R,Cardiff City Council,,
"Commercial, Corporate & landlord Services",Property Services & Facilities Management,Resources,Premises,"Repairs, Alterations & Maintenance of Buildings",Building Improvements / Maintenance,,27/01/2021,10842545,90048836,402.4,R,Lorne Stewart  Plc,,
"Commercial, Corporate & landlord Services",Property Services & Facilities Management,Resources,Premises,"Repairs, Alterations & Maintenance of Buildings",Building Improvements / Maintenance,,29/01/2021,10842546,90051058,131.14,R,Lorne Stewart  Plc,,
"Commercial, Corporate & landlord Services",Property Services & Facilities Management,Resources,Premises,"Repairs, Alterations & Maintenance of Buildings",Building Improvements / Maintenance,,27/01/2021,10842547,90052076,"1,250.00",R,Lorne Stewart  Plc,,
"Commercial, Corporate & landlord Services",Property Services & Facilities Management,Resources,Premises,"Repairs, Alterations & Maintenance of Buildings",Premises Repairs And Maintenance,,27/01/2021,10842549,90054898,208.24,R,Lorne Stewart  Plc,,
"Commercial, Corporate & landlord Services",Property Services & Facilities Management,Resources,Premises,"Repairs, Alterations & Maintenance of Buildings",Building Improvements / Maintenance,,27/01/2021,10842550,90055358,514.32,R,Lorne Stewart  Plc,,
"Commercial, Corporate & landlord Services",Property Services & Facilities Management,Resources,Premises,"Repairs, Alterations & Maintenance of Buildings",Building Improvements / Maintenance,,27/01/2021,10842551,90055436,"1,409.56",R,Lorne Stewart  Plc,,
"Commercial, Corporate & landlord Services",Property Services & Facilities Management,Resources,Premises,"Repairs, Alterations & Maintenance of Buildings",Building Improvements / Maintenance,,27/01/2021,10842553,90055562,106.46,R,Lorne Stewart  Plc,,
"Commercial, Corporate & landlord Services",Property Services & Facilities Management,Resources,Premises,"Repairs, Alterations & Maintenance of Buildings",Building Improvements / Maintenance,,27/01/2021,10842554,90055621,106.46,R,Lorne Stewart  Plc,,
Planning & Housing,General Fund Housing,Enterprise,Premises,Rents,Rents/Hire Of Premises.,,27/01/2021,10842556,0,354.28,R,REDACTED PERSONAL DATA,,
Planning & Housing,General Fund Housing,Enterprise,Premises,Rents,Rents/Hire Of Premises.,,27/01/2021,10842558,0,354.28,R,REDACTED PERSONAL DATA,,
Planning & Housing,General Fund Housing,Enterprise,Premises,Rents,Rents/Hire Of Premises.,,27/01/2021,10842560,0,354.28,R,REDACTED PERSONAL DATA,,
Planning & Housing,General Fund Housing,Enterprise,Premises,Rents,Rents/Hire Of Premises.,,27/01/2021,10842562,0,354.28,R,REDACTED PERSONAL DATA,,
Planning & Housing,General Fund Housing,Enterprise,Premises,Rents,Rents/Hire Of Premises.,,27/01/2021,10842564,0,420.71,R,REDACTED PERSONAL DATA,,
Planning & Housing,General Fund Housing,Enterprise,Premises,Rents,Rents/Hire Of Premises.,,27/01/2021,10842566,0,420.71,R,REDACTED PERSONAL DATA,,
Planning & Housing,General Fund Housing,Enterprise,Premises,Rents,Rents/Hire Of Premises.,,27/01/2021,10842568,0,420.71,R,REDACTED PERSONAL DATA,,
Planning & Housing,General Fund Housing,Enterprise,Premises,Rents,Rents/Hire Of Premises.,,27/01/2021,10842570,0,442.85,R,REDACTED PERSONAL DATA,,
Planning & Housing,General Fund Housing,Enterprise,Premises,Rents,Rents/Hire Of Premises.,,27/01/2021,10842572,0,442.85,R,REDACTED PERSONAL DATA,,
Planning & Housing,General Fund Housing,Enterprise,Premises,Rents,Rents/Hire Of Premises.,,27/01/2021,10842574,0,442.85,R,REDACTED PERSONAL DATA,,
Planning & Housing,General Fund Housing,Enterprise,Premises,Rents,Rents/Hire Of Premises.,,27/01/2021,10842576,0,442.85,R,REDACTED PERSONAL DATA,,
Planning & Housing,General Fund Housing,Enterprise,Premises,Rents,Rents/Hire Of Premises.,,27/01/2021,10842578,0,420.71,R,REDACTED PERSONAL DATA,,
Planning & Housing,General Fund Housing,Enterprise,Premises,Rents,Rents/Hire Of Premises.,,27/01/2021,10842580,0,420.71,R,REDACTED PERSONAL DATA,,
Planning & Housing,General Fund Housing,Enterprise,Premises,Rents,Rents/Hire Of Premises.,,27/01/2021,10842582,0,420.71,R,REDACTED PERSONAL DATA,,
Planning & Housing,General Fund Housing,Enterprise,Premises,Rents,Rents/Hire Of Premises.,,27/01/2021,10842584,0,420.71,R,REDACTED PERSONAL DATA,,
Planning & Housing,General Fund Housing,Enterprise,Premises,Rents,Rents/Hire Of Premises.,,27/01/2021,10842586,0,420.71,R,REDACTED PERSONAL DATA,,
Planning & Housing,General Fund Housing,Enterprise,Premises,Rents,Rents/Hire Of Premises.,,27/01/2021,10842588,0,268.57,R,REDACTED PERSONAL DATA,,
Planning & Housing,General Fund Housing,Enterprise,Premises,Rents,Rents/Hire Of Premises.,,27/01/2021,10842590,0,354.28,R,REDACTED PERSONAL DATA,,
Planning & Housing,General Fund Housing,Enterprise,Premises,Rents,Rents/Hire Of Premises.,,27/01/2021,10842592,0,354.28,R,REDACTED PERSONAL DATA,,
Planning & Housing,General Fund Housing,Enterprise,Premises,Rents,Rents/Hire Of Premises.,,27/01/2021,10842594,0,354.28,R,REDACTED PERSONAL DATA,,
Planning & Housing,General Fund Housing,Enterprise,Premises,Rents,Rents/Hire Of Premises.,,27/01/2021,10842596,0,354.28,R,REDACTED PERSONAL DATA,,
Planning & Housing,General Fund Housing,Enterprise,Premises,Rents,Rents/Hire Of Premises.,,27/01/2021,10842598,0,354.28,R,REDACTED PERSONAL DATA,,
Planning & Housing,General Fund Housing,Enterprise,Premises,Rents,Rents/Hire Of Premises.,,27/01/2021,10842600,0,354.28,R,REDACTED PERSONAL DATA,,
Planning & Housing,General Fund Housing,Enterprise,Premises,Rents,Rents/Hire Of Premises.,,27/01/2021,10842602,0,420.71,R,REDACTED PERSONAL DATA,,
Planning & Housing,General Fund Housing,Enterprise,Premises,Rents,Rents/Hire Of Premises.,,27/01/2021,10842604,0,420.71,R,REDACTED PERSONAL DATA,,
Planning & Housing,General Fund Housing,Enterprise,Premises,Rents,Rents/Hire Of Premises.,,27/01/2021,10842606,0,420.71,R,REDACTED PERSONAL DATA,,
Planning & Housing,General Fund Housing,Enterprise,Premises,Rents,Rents/Hire Of Premises.,,27/01/2021,10842608,0,420.71,R,REDACTED PERSONAL DATA,,
Planning & Housing,General Fund Housing,Enterprise,Premises,Rents,Rents/Hire Of Premises.,,27/01/2021,10842610,0,420.71,R,REDACTED PERSONAL DATA,,
Neighbourhood Services,Highways,Enterprise,Third Party Payments,Third Party,General Contracts,,27/01/2021,10842612,10105527,"5,440.09",R,Cardiff City Council,,
Neighbourhood Services,Highways,Enterprise,Third Party Payments,Third Party,General Contracts,,27/01/2021,10842613,10105527,"4,965.22",R,Cardiff City Council,,
Neighbourhood Services,Highways,Enterprise,Third Party Payments,Third Party,General Contracts,,27/01/2021,10842614,10105527,"7,088.52",R,Cardiff City Council,,
Neighbourhood Services,Highways,Enterprise,Third Party Payments,Third Party,General Contracts,,27/01/2021,10842616,10105527,"1,363.31",R,Cardiff City Council,,
Neighbourhood Services,Highways,Enterprise,Third Party Payments,Third Party,General Contracts,,27/01/2021,10842618,10105527,292.25,R,Cardiff City Council,,
"Commercial, Corporate & landlord Services",Property Services & Facilities Management,Resources,Premises,"Repairs, Alterations & Maintenance of Buildings",Building Improvements / Maintenance,,27/01/2021,10842619,90055624,68.23,R,Lorne Stewart  Plc,,
"Commercial, Corporate & landlord Services",Property Services & Facilities Management,Resources,Premises,"Repairs, Alterations & Maintenance of Buildings",Building Improvements / Maintenance,,27/01/2021,10842620,90055647,55.48,R,Lorne Stewart  Plc,,
"Commercial, Corporate & landlord Services",Property Services & Facilities Management,Resources,Premises,"Repairs, Alterations & Maintenance of Buildings",Building Improvements / Maintenance,,27/01/2021,10842621,90055691,93.72,R,Lorne Stewart  Plc,,
Neighbourhood Services,Highways,Enterprise,Third Party Payments,Third Party,General Contracts,,27/01/2021,10842622,10105527,"4,759.98",R,Cardiff City Council,,
"Commercial, Corporate & landlord Services",Property Services & Facilities Management,Resources,Premises,"Repairs, Alterations & Maintenance of Buildings",Building Improvements / Maintenance,,27/01/2021,10842623,90055801,68.23,R,Lorne Stewart  Plc,,
"Commercial, Corporate & landlord Services",Property Services & Facilities Management,Resources,Premises,"Repairs, Alterations & Maintenance of Buildings",Building Improvements / Maintenance,,27/01/2021,10842624,90055835,119.21,R,Lorne Stewart  Plc,,
Neighbourhood Services,Highways,Enterprise,Third Party Payments,Third Party,General Contracts,,27/01/2021,10842625,10105527,"4,101.27",R,Cardiff City Council,,
Neighbourhood Services,Highways,Enterprise,Supplies & Services,Services,Professional And Specialist Fees,,27/01/2021,10842681,816216,"11,194.00",R,Forest Traffic Signals Ltd,,
Neighbourhood Services,Highways,Enterprise,Supplies & Services,"Equipment, Furniture and Materials",Repairs & Maintenance.,,27/01/2021,10842684,816632,"1,965.00",R,Vertiv Infrastructure Ltd,,
"Commercial, Corporate & landlord Services",Property Services & Facilities Management,Resources,Premises,"Repairs, Alterations & Maintenance of Buildings",Premises Repairs And Maintenance,,28/01/2021,10842696,90053893,240.15,R,Lorne Stewart  Plc,,
"Commercial, Corporate & landlord Services",Property Services & Facilities Management,Resources,Premises,"Repairs, Alterations & Maintenance of Buildings",Building Improvements / Maintenance,,29/01/2021,10842697,90055548,300.11,R,Lorne Stewart  Plc,,
"Commercial, Corporate & landlord Services",Property Services & Facilities Management,Resources,Premises,"Repairs, Alterations & Maintenance of Buildings",Building Improvements / Maintenance,,28/01/2021,10842701,90055506,55.48,R,Lorne Stewart  Plc,,
"Commercial, Corporate & landlord Services",Property Services & Facilities Management,Resources,Premises,"Repairs, Alterations & Maintenance of Buildings",Building Improvements / Maintenance,,28/01/2021,10842703,90055646,112.21,R,Lorne Stewart  Plc,,
"Commercial, Corporate & landlord Services",Property Services & Facilities Management,Resources,Premises,"Repairs, Alterations & Maintenance of Buildings",Building Improvements / Maintenance,,29/01/2021,10842704,90055699,61.23,R,Lorne Stewart  Plc,,
"Commercial, Corporate & landlord Services",Property Services & Facilities Management,Resources,Premises,"Repairs, Alterations & Maintenance of Buildings",Building Improvements / Maintenance,,28/01/2021,10842705,90055641,55.48,R,Lorne Stewart  Plc,,
"Commercial, Corporate & landlord Services",Property Services & Facilities Management,Resources,Premises,"Repairs, Alterations & Maintenance of Buildings",Building Improvements / Maintenance,,28/01/2021,10842766,760016672,406.5,R,Kone Plc,,
"Commercial, Corporate & landlord Services",Property Services & Facilities Management,Resources,Premises,"Repairs, Alterations & Maintenance of Buildings",Building Improvements / Maintenance,,29/01/2021,10842767,90055054,"1,520.00",R,Springvale Wproofing Ltd,,
"Commercial, Corporate & landlord Services",Property Services & Facilities Management,Resources,Premises,"Repairs, Alterations & Maintenance of Buildings",Building Improvements / Maintenance,,27/01/2021,10842768,760016702,"1,250.00",R,Power Solutions,,
"Commercial, Corporate & landlord Services",Property Services & Facilities Management,Resources,Premises,"Repairs, Alterations & Maintenance of Buildings",Building Improvements / Maintenance,,28/01/2021,10842769,90056168,"1,100.00",R,Pick Everard,,
"Commercial, Corporate & landlord Services",Property Services & Facilities Management,Resources,Premises,"Repairs, Alterations & Maintenance of Buildings",Premises Repairs And Maintenance,,28/01/2021,10842778,90053609,710,R,Enviroteq,,
"Commercial, Corporate & landlord Services",Property Services & Facilities Management,Resources,Premises,"Repairs, Alterations & Maintenance of Buildings",Building Improvements / Maintenance,,28/01/2021,10842779,90053504,"1,520.00",R,Enviroteq,,
"Commercial, Corporate & landlord Services",Property Services & Facilities Management,Resources,Premises,"Repairs, Alterations & Maintenance of Buildings",Premises Repairs And Maintenance,,27/01/2021,10842780,90056036,220,R,Enviroteq,,
"Commercial, Corporate & landlord Services",Property Services & Facilities Management,Resources,Premises,"Repairs, Alterations & Maintenance of Buildings",Building Improvements / Maintenance,,28/01/2021,10842782,90053504,"1,520.00",R,Enviroteq,,
"Commercial, Corporate & landlord Services",Property Services & Facilities Management,Resources,Premises,"Repairs, Alterations & Maintenance of Buildings",Building Improvements / Maintenance,,28/01/2021,10842784,90053504,"1,520.00",R,Enviroteq,,
Neighbourhood Services,Highways,Enterprise,Supplies & Services,"Equipment, Furniture and Materials",Materials & Consumables.,,27/01/2021,10842785,816447,"1,372.00",R,Severn Sands Ltd,,
Planning & Housing,Highways Dev & Car Parks,Enterprise,Supplies & Services,Services,Professional And Specialist Fees,,27/01/2021,10842786,816793,787.5,R,Robin Carr Associates,,
"Commercial, Corporate & landlord Services",Property Services & Facilities Management,Resources,Premises,"Repairs, Alterations & Maintenance of Buildings",Building Improvements / Maintenance,,28/01/2021,10842789,90056185,80.09,R,EFS Systems (UK) Ltd,,
"Commercial, Corporate & landlord Services",Property Services & Facilities Management,Resources,Premises,"Repairs, Alterations & Maintenance of Buildings",Building Improvements / Maintenance,,28/01/2021,10842810,90056228,74.77,R,EFS Systems (UK) Ltd,,
"Commercial, Corporate & landlord Services",Property Services & Facilities Management,Resources,Premises,"Repairs, Alterations & Maintenance of Buildings",Building Improvements / Maintenance,,28/01/2021,10842862,760015327,968.62,R,Lorne Stewart  Plc,,
"Commercial, Corporate & landlord Services",Property Services & Facilities Management,Resources,Premises,"Repairs, Alterations & Maintenance of Buildings",Building Improvements / Maintenance,,28/01/2021,10842865,760015560,38.24,R,Lorne Stewart  Plc,,
"Commercial, Corporate & landlord Services",Property Services & Facilities Management,Resources,Premises,"Repairs, Alterations & Maintenance of Buildings",Building Improvements / Maintenance,,29/01/2021,10842867,760015723,277.78,R,Lorne Stewart  Plc,,
"Commercial, Corporate & landlord Services",Property Services & Facilities Management,Resources,Premises,"Repairs, Alterations & Maintenance of Buildings",Building Improvements / Maintenance,,28/01/2021,10842868,760015730,38.24,R,Lorne Stewart  Plc,,
"Commercial, Corporate & landlord Services",Property Services & Facilities Management,Resources,Premises,"Repairs, Alterations & Maintenance of Buildings",Building Improvements / Maintenance,,28/01/2021,10842869,760015973,127.45,R,Lorne Stewart  Plc,,
Neighbourhood Services,Highways,Enterprise,Premises,Ground Maintenance Costs,Grounds Maintenance - Direct.,,28/01/2021,10842871,816800,"4,375.00",R,Treescape Tree Services,,
Neighbourhood Services,Highways,Enterprise,Premises,Ground Maintenance Costs,Grounds Maintenance - Direct.,,28/01/2021,10842872,816799,"11,750.00",R,Treescape Tree Services,,
Neighbourhood Services,Highways,Enterprise,Premises,Ground Maintenance Costs,Grounds Maintenance - Direct.,,28/01/2021,10842873,816798,"11,750.00",R,Treescape Tree Services,,
Neighbourhood Services,Highways,Enterprise,Premises,Ground Maintenance Costs,Grounds Maintenance - Direct.,,28/01/2021,10844493,816804,"3,500.00",R,Treescape Tree Services,,
Neighbourhood Services,Highways,Enterprise,Premises,Ground Maintenance Costs,Grounds Maintenance - Direct.,,28/01/2021,10844494,816803,"8,800.00",R,Treescape Tree Services,,
Neighbourhood Services,Highways,Enterprise,Premises,Ground Maintenance Costs,Grounds Maintenance - Direct.,,28/01/2021,10844495,816802,"11,750.00",R,Treescape Tree Services,,
Neighbourhood Services,Highways,Enterprise,Premises,Ground Maintenance Costs,Grounds Maintenance - Direct.,,28/01/2021,10844496,816801,"4,375.00",R,Treescape Tree Services,,
Neighbourhood Services,Highways,Enterprise,Third Party Payments,Third Party,General Contracts,,28/01/2021,10844548,10107012,846.79,R,Cardiff City Council,,
Neighbourhood Services,Highways,Enterprise,Third Party Payments,Third Party,General Contracts,,28/01/2021,10844551,10104853,"3,645.64",R,Cardiff City Council,,
Neighbourhood Services,Highways,Enterprise,Third Party Payments,Third Party,General Contracts,,29/01/2021,10844553,10104531,"3,490.49",R,Cardiff City Council,,
Neighbourhood Services,Highways,Enterprise,Supplies & Services,"Equipment, Furniture and Materials",Display Equipment,,28/01/2021,10844562,816556,235,R,Griffiths Signs & Equipment Co.,,
Neighbourhood Services,Highways,Enterprise,Supplies & Services,"Equipment, Furniture and Materials",Display Equipment,,28/01/2021,10844563,816539,"2,232.00",R,Griffiths Signs & Equipment Co.,,
Neighbourhood Services,Highways,Enterprise,Third Party Payments,Third Party,Hedge/Tree Cutting,,29/01/2021,10844564,816426,"1,580.00",R,Eco Vigour Ltd,,
Neighbourhood Services,Highways,Enterprise,Supplies & Services,"Equipment, Furniture and Materials",Display Equipment,,28/01/2021,10844566,816613,300,R,Griffiths Signs & Equipment Co.,,
Neighbourhood Services,Highways,Enterprise,Supplies & Services,"Equipment, Furniture and Materials",Display Equipment,,28/01/2021,10844567,816612,80,R,Griffiths Signs & Equipment Co.,,
Neighbourhood Services,Highways,Enterprise,Supplies & Services,"Equipment, Furniture and Materials",Small Plant & Tools.,,28/01/2021,10844568,816553,201,R,Griffiths Signs & Equipment Co.,,
"Commercial, Corporate & landlord Services",Property Services & Facilities Management,Resources,Premises,"Repairs, Alterations & Maintenance of Buildings",Building Improvements / Maintenance,,29/01/2021,10844575,90053904,143.65,R,Phs Group,,
"Commercial, Corporate & landlord Services",Property Services & Facilities Management,Resources,Premises,"Repairs, Alterations & Maintenance of Buildings",Building Improvements / Maintenance,,29/01/2021,10844577,90054995,323.31,R,Phs Group,,
"Commercial, Corporate & landlord Services",Property Services & Facilities Management,Resources,Premises,"Repairs, Alterations & Maintenance of Buildings",Building Improvements / Maintenance,,29/01/2021,10844578,90053903,65.91,R,Phs Group,,
"Commercial, Corporate & landlord Services",Property Services & Facilities Management,Resources,Premises,"Repairs, Alterations & Maintenance of Buildings",Building Improvements / Maintenance,,29/01/2021,10844579,90053308,6.24,R,Phs Group,,
"Commercial, Corporate & landlord Services",Property Services & Facilities Management,Resources,Premises,"Repairs, Alterations & Maintenance of Buildings",Building Improvements / Maintenance,,29/01/2021,10844669,760016346,"49,701.93",R,A.J Quinn Building Contractors Ltd,,
Planning & Housing,General Fund Housing,Enterprise,Premises,Rents,Rents/Hire Of Premises.,,29/01/2021,10844688,0,625,R,REDACTED PERSONAL DATA,,
Planning & Housing,General Fund Housing,Enterprise,Premises,Rents,Rents/Hire Of Premises.,,29/01/2021,10844690,0,720,R,REDACTED PERSONAL DATA,,
Planning & Housing,General Fund Housing,Enterprise,Premises,Rents,Rents/Hire Of Premises.,,29/01/2021,10844692,0,625,R,REDACTED PERSONAL DATA,,
Schools Total,School Group 7 � Pupil Capacity 501-1800,MCC Schools,Employees,Direct Employee Expenses,Agency Staff,,29/01/2021,10844693,0,185,R,New Directions Education Ltd,,
Schools Total,School Group 7 � Pupil Capacity 501-1800,MCC Schools,Employees,Direct Employee Expenses,Agency Staff,,29/01/2021,10844695,0,185,R,New Directions Education Ltd,,
Schools Total,School Group 7 � Pupil Capacity 501-1800,MCC Schools,Employees,Direct Employee Expenses,Agency Staff,,29/01/2021,10844697,0,135.33,R,New Directions Education Ltd,,
Schools Total,School Group 7 � Pupil Capacity 501-1800,MCC Schools,Employees,Direct Employee Expenses,Agency Staff,,29/01/2021,10844699,0,135.33,R,New Directions Education Ltd,,
Schools Total,SCHGRP3 � School Group 3 � Pupil Capacity 315-500,MCC Schools,Employees,Direct Employee Expenses,Agency Staff,,29/01/2021,10844701,0,184,R,New Directions Education Ltd,,
Schools Total,SCHGRP3 � School Group 3 � Pupil Capacity 315-500,MCC Schools,Employees,Direct Employee Expenses,Agency Staff,,29/01/2021,10844703,0,184,R,New Directions Education Ltd,,
Schools Total,SCHGRP3 � School Group 3 � Pupil Capacity 315-500,MCC Schools,Employees,Direct Employee Expenses,Agency Staff,,29/01/2021,10844705,0,184,R,New Directions Education Ltd,,
"Commercial, Corporate & landlord Services",Procurement,Resources,Income,Customer and Client Receipts,External Fee Income,,29/01/2021,10844783,0,"-1,020.07",R,Randstad Solutions Ltd,,
"Commercial, Corporate & landlord Services",Property Services & Facilities Management,Resources,Premises,"Repairs, Alterations & Maintenance of Buildings",Premises Repairs And Maintenance,,29/01/2021,10844787,90055590,50,R,D and C Utilities LTD,,
"Commercial, Corporate & landlord Services",Property Services & Facilities Management,Resources,Premises,"Repairs, Alterations & Maintenance of Buildings",Premises Repairs And Maintenance,,29/01/2021,10844788,90056064,28.98,R,Fire Safety Direct,,
